Workbook

Sheet Index
A1: Number | B1: Magazine Reference | C1: Spreadsheet | D1: File Hyperlink Location | E1: Title | F1: Method | G1: MAXIMUM | H1: MINIMUM | I1: DIFFERENCE | J1: AVERAGE | K1: 4600 To 4999 | L1: 5000 To 5999 | M1: 6,000 To 9999 | N1: Galaxy | O1: Universe | P1: Total
A2: 1 | B2: Earth and Planetary Science Letters 301 (2011) 469–478 | C2: Pb_207_01 | D2: C:\Essays\Geo_Dating\Lead_206_207\Pb_207_01.pdf | E2: The Tethyan Realm Lamproites | F2: Pb-207/Pb-206 | G2: 6194.367072 | H2: 969.7035437 | I2: 5224.663528 | J2: 4754.938813 | K2: 16 | L2: 19 | M2: 2 | P2: =SUM(K2:O2) -> 37 | Q2: =(K2+L2+M2) -> 37 | R2: 37
A3: 2 | B3: Earth and Planetary Science Letters, 104 (1991) 1-15 | C3: Pb_207_02 | D3: C:\Essays\Geo_Dating\Lead_206_207\Pb_207_02.pdf | E3: Th, Pb, and Sr Isotope Variations | F3: Pb-207/Pb-206 | G3: 5145.413482 | H3: 4947.453232 | I3: 197.9602503 | J3: 4983.751051 | K3: 33 | L3: 4 | P3: 37 | Q3: =(K3+L3+M3) -> 37 | R3: 37
A4: 3 | B4: Earth and Planetary Science Letters 245 (2006) 743–761 | C4: Pb_207_03 | D4: C:\Essays\Geo_Dating\Lead_206_207\Pb_207_03.pdf | E4: Comparison of Th, Sr, Nd and Pb isotopes | F4: Pb-207/Pb-206 | G4: 4975.787742 | H4: 4893.977592 | I4: 81.81015051 | J4: 4929.258378 | K4: 17 | P4: 17 | Q4: 17 | R4: 17
A5: 4 | B5: Earth and Planetary Science Letters 240 (2005) 605– 620 | C5: Pb_207_04 | D5: C:\Essays\Geo_Dating\Lead_206_207\Pb_207_04.pdf | E5: Pb Isotopic Variability in Melt Inclusions | F5: Pb-207/Pb-206 | G5: 5049.006386 | H5: 4742.979152 | I5: 306.0272332 | J5: 4909.764277 | K5: 88 | L5: 16 | P5: 104 | Q5: 104 | R5: 104
A6: 5 | B6: Earth and Planetary Science Letters 296 (2010) 267–277 | C6: Pb_207_05 | D6: C:\Essays\Geo_Dating\Lead_206_207\Pb_207_05.pdf | E6: Microanalysis Of Individual Fluid Inclusions | F6: Pb-207/Pb-206 | G6: 5074.544863 | H6: 5069.453808 | I6: 5.091055319 | J6: 5071.163458 | L6: 36 | P6: 36 | Q6: 36 | R6: 36
A7: 6 | B7: Earth and Planetary Science Letters 306 (2011) 86–97 | C7: Pb_207_06 | D7: C:\Essays\Geo_Dating\Lead_206_207\Pb_207_06.pdf | E7: South Atlantic Mid-Ocean-Ridge | F7: Pb-207/Pb-206 | G7: 6214.394049 | H7: 4923.675688 | I7: 1290.718361 | J7: 4990.388372 | K7: 74 | L7: 21 | M7: 1 | P7: 96 | Q7: 96 | R7: 96
A8: 7 | B8: Earth And Planetary Science Letters 7 (1969) 141-147 | C8: Pb_207_07 | D8: C:\Essays\Geo_Dating\Lead_206_207\Pb_207_07.pdf | E8: Uranium, Thorium, And Lead Systematics | F8: Pb-207/Pb-206 | G8: 4821.5498 | H8: 3279.347581 | I8: 1542.202219 | J8: 4213.715491 | K8: 1 | N8: 8 | O8: 4 | P8: 13 | Q8: 1 | R8: 1 | S8: 8 | T8: 4
A9: 9 | B9: Earth and Planetary Science Letters 165 (1999) 117–127 | C9: Pb_207_08 | D9: C:\Essays\Geo_Dating\Lead_206_207\Pb_207_08.pdf | E9: Iceland Pb-Isotopic Array | F9: Pb-207/Pb-206 | G9: 4974.855842 | H9: 4932.502492 | I9: 42.35335005 | J9: 4939.38909 | K9: 9 | P9: 9 | Q9: 9 | R9: 9
A10: 10 | B10: Earth and Planetary Science Letters 267 (2008) 236–246 | C10: Pb_207_10 | D10: C:\Essays\Geo_Dating\Lead_206_207\Pb_207_10.pdf | E10: U–Pb Dating Of Fossil Enamel | F10: Pb-207/Pb-206 | G10: 5002.10558 | H10: 4852.091101 | I10: 150.0144791 | J10: 4956.050565 | K10: 8 | L10: 1 | P10: 9 | Q10: 9 | R10: 9
A11: 11 | B11: Earth and Planetary Science Letters, 34 (1977) 419-431 | C11: Pb_207_11 | D11: C:\Essays\Geo_Dating\Lead_206_207\Pb_207_11.pdf | E11: Lead And Strontium Isotopes In Cretaceous Kimberlites | F11: Pb-207/Pb-206 | G11: 5111.649363 | H11: 5109.109204 | I11: 2.540159605 | J11: 5110.223347 | K11: 21 | L11: 18 | P11: 39 | Q11: 39 | R11: 39
A12: 15 | B12: Earth and Planetary Science Letters 245 (2006) 137–152 | C12: Pb_207_12 | D12: C:\Essays\Geo_Dating\Lead_206_207\Pb_207_12.pdf | E12: Trace Element-Pb Isotope Enrichments | F12: Pb-207/Pb-206 | G12: 5004.789546 | H12: 4958.996095 | I12: 45.7934508 | J12: 4987.928897 | K12: 33 | L12: 3 | P12: 36 | Q12: 36 | R12: 36
A13: 16 | B13: Precambrian Research 162 (2008) 441–474 | C13: Pb_207_13 | D13: C:\Essays\Geo_Dating\Lead_206_207\Pb_207_13.pdf | E13: Iron Formations In The Black Hills | F13: Pb-207/Pb-206 | G13: 5250.032554 | H13: 4006.905795 | I13: 1243.126759 | J13: 4776.559938 | K13: 39 | L13: 24 | P13: 63 | Q13: 63 | R13: 63
A14: 17 | B14: Precambrian Research 114 (2002) 277–294 | C14: Pb_207_14 | D14: C:\Essays\Geo_Dating\Lead_206_207\Pb_207_14.pdf | E14: Pb and Nd Isotope Systematics | F14: Pb-207/Pb-206 | G14: 5318.754346 | H14: 4872.609634 | I14: 446.1447121 | J14: 5096.195617 | K14: 11 | L14: 32 | P14: 43 | Q14: 43 | R14: 43
A15: 18 | B15: Precambrian Research 78 (1996) 261-272 | C15: Pb_207_15 | D15: C:\Essays\Geo_Dating\Lead_206_207\Pb_207_15.pdf | E15: Whole-Rock Pb/Pb Isotopic Ages | F15: Pb-207/Pb-206 | G15: 5338.975567 | H15: 4299.565566 | I15: 1039.410002 | J15: 5007.88714 | K15: 5 | L15: 25 | P15: 30 | Q15: 30 | R15: 30
A16: 20 | B16: Precambrian Research 113 (2002) 155–168 | C16: Pb_207_16 | D16: C:\Essays\Geo_Dating\Lead_206_207\Pb_207_16.pdf | E16: Ion Microprobe Pb–Pb Dating | F16: Pb-207/Pb-206 | G16: 5122.990853 | H16: 4027.829019 | I16: 1095.161834 | J16: 4901.571839 | K16: 31 | L16: 15 | P16: 46 | Q16: 46 | R16: 46
A17: 21 | B17: Precambrian Research 72 ( 1995 ) 247-261 | C17: U_238_01 | D17: C:\Essays\Geo_Dating\Lead_206_207\U_238_01.pdf | E17: Carbonate Pb-Pb ages of the Wittenoom Formation | F17: Pb-207/Pb-206 | G17: 6590.578713 | H17: 3959.403895 | I17: 2631.174818 | J17: 5593.608361 | K17: 6 | L17: 2 | M17: 17 | P17: 25 | Q17: 25 | R17: 25
A18: 22 | B18: Precambrian Research 117 (2002) 185-24 | C18: U_238_02 | D18: C:\Essays\Geo_Dating\Lead_206_207\U_238_02.pdf | E18: Dating Of Zircon-Free Protoliths | Q18: 0
A19: 23 | B19: Precambrian Research 90 (1998) 203-238 | C19: U_238_03 | D19: C:\Essays\Geo_Dating\Lead_206_207\U_238_03.pdf | E19: The Broken Hill Pb-Zn-Ag Orebody, Australia | Q19: 0
A20: 24 | B20: Earth and Planetary Science Letters 319-320 (2012) 197–206 | C20: Th_232_01 | D20: C:\Essays\Geo_Dating\Lead_206_207\Th_232_01.pdf | E20: U–Th–Pb Isotope Data | F20: Pb-207/Pb-206 | G20: 5403.170217 | H20: 5222.336113 | I20: 180.8341036 | J20: 5325.2282 | L20: 13 | M20: 2 | N20: 3 | O20: 19 | P20: =SUM(K20:O20) -> 37 | Q20: 15 | R20: 15 | S20: 3 | T20: 19
A21: 27 | B21: Earth and Planetary Science Letters 183 (2000) 93-106 | C21: Th_232_02 | D21: C:\Essays\Geo_Dating\Lead_206_207\Th_232_02.pdf | E21: The Age Of The Lithospheric Mantle | F21: Pb-207/Pb-206 | G21: 5235.002558 | H21: 5076.99591 | I21: 158.0066481 | J21: 5161.231745 | K21: 1 | L21: 3 | P21: 4 | Q21: 4 | R21: 4
A22: 29 | B22: Earth and Planetary Science Letters 134 (1995) 169-185 | C22: Th_232_03 | D22: C:\Essays\Geo_Dating\Lead_206_207\Th_232_03.pdf | E22: Evolution Of Reunion Hotspot Mantle | F22: Pb-206⁄U-238 | G22: 6285.48251 | H22: 3009.915661 | I22: 3275.56685 | J22: 4449.350323 | K22: 21 | L22: 6 | M22: 16 | N22: 3 | O22: 1 | P22: 47 | Q22: 43 | R22: 43 | S22: 3 | T22: 1
K23: =SUM(K2:K22) -> 414 | L23: 238 | M23: 38 | N23: 14 | O23: 24 | P23: 728 | Q23: 690

Sheet Pb_207_01
T1: 6194.367072
F2: 206Pb/204Pb | G2: 207Pb/204Pb | H2: 207Pb/206Pb | I2: 207Pb/206Pb | T2: 6012.393497
F3: Ratio | G3: Ratio | H3: Ratio | I3: Age | T3: 5945.644548
A4: 2.86 | B4: 101.2 | C4: 21.3 | D4: 0.7184 | E4: 0.51203 | F4: 18.78 | G4: 15.72 | H4: =(G4/F4) -> 0.8370607029 | I4: =[1]!AgePb76($H$4) -> 4986.140665 | J4: 5.2 | K4: 0.79 | L4: 582 | M4: 0.32 | N4: 5.1 | O4: 37 | T4: 5237.372407
A5: 0.59 | B5: 21.6 | C5: 5.7 | D5: 0.0025 | E5: 2e-05 | F5: 0.05 | G5: 0.02 | H5: =(G5/F5) -> 0.4 | I5: =[1]!AgePb76($H$5) -> 3909.07842 | J5: 6.9 | K5: 0.41 | L5: 148 | M5: 0.03 | N5: 2.3 | O5: 7.6 | T5: 5161.622839
A6: 2.03 | B6: 64 | C6: 8.5 | D6: 0.7115 | E6: 0.51197 | F6: 18.66 | G6: 15.68 | H6: 0.8403001072 | I6: =[1]!AgePb76($H$6) -> 4991.625416 | J6: 2 | K6: 0.05 | L6: 255 | M6: 0.26 | N6: 3.4 | O6: 23.8 | T6: 5146.053176
A7: 3.95 | B7: 159.7 | C7: 34.5 | D7: 0.7226 | E7: 0.51207 | F7: 18.84 | G7: 15.78 | H7: 0.8375796178 | I7: =[1]!AgePb76($H$7) -> 4987.020774 | J7: 39.2 | K7: 1.46 | L7: 921 | M7: 0.38 | N7: 15.3 | O7: 53.5 | T7: 5117.265797
H8: 0 | J8: 33 | K8: 41 | L8: 33 | M8: 33 | N8: 33 | O8: 31 | T8: 5116.112426
A9: 2.02 | B9: 142.5 | C9: 25.5 | D9: 0.7168 | E9: 0.51203 | F9: 18.62 | G9: 15.69 | H9: 0.8426423201 | I9: =[1]!AgePb76($H$9) -> 4995.577125 | J9: 9.5 | K9: 0.56 | L9: 451 | M9: 0.31 | N9: 5.6 | O9: 68.9 | T9: 5104.550969
A10: 0.39 | B10: 35.2 | C10: 5.2 | D10: 0.0024 | E10: 4e-05 | F10: 0.06 | G10: 0.02 | H10: 0.3333333333 | I10: =[1]!AgePb76($H$10) -> 3632.478997 | J10: 3.3 | K10: 0.22 | L10: 98 | M10: 0.03 | N10: 1 | O10: 16.9 | T10: 5091.929259
A11: 1.41 | B11: 81.9 | C11: 15.2 | D11: 0.7121 | E11: 0.51199 | F11: 18.5 | G11: 15.67 | H11: 0.847027027 | I11: =[1]!AgePb76($H$11) -> 5002.943595 | J11: 5.5 | K11: 0.24 | L11: 353 | M11: 0.26 | N11: 4.1 | O11: 46.8 | T11: 5090.342657
A12: 2.73 | B12: 226 | C12: 33.6 | D12: 0.7217 | E12: 0.5121 | F12: 18.72 | G12: 15.72 | H12: 0.8397435897 | I12: =[1]!AgePb76($H$12) -> 4990.684756 | J12: 14.6 | K12: 1.17 | L12: 728 | M12: 0.35 | N12: 8.1 | O12: 108.7 | T12: 5088.687226
H13: 0 | J13: 15 | K13: 17 | L13: 17 | M13: 12 | N13: 16 | O13: 14 | T13: 5079.094798
A14: 3.54 | B14: 36 | C14: 12.8 | D14: 0.71237 | E14: 0.51215 | F14: 18.82 | G14: 15.7 | H14: 0.834218916 | I14: =[1]!AgePb76($H$14) -> 4981.310532 | J14: 3.5 | K14: 0.45 | L14: 5197 | M14: 0.11 | N14: 6.1 | O14: 8.4 | T14: 5075.336322
A15: 0.57 | B15: 16.6 | C15: 16 | D15: 0.0002 | E15: 0.05 | F15: 0.01 | G15: 0.02 | H15: 2 | I15: =[1]!AgePb76($H$15) -> 6194.367072 | J15: 0.03 | K15: 7607 | L15: 0.01 | M15: 4 | N15: 5.1 | T15: 5074.146142
A16: 3 | B16: 4.3 | C16: 4.3 | D16: 0.71226 | E16: 0.51215 | F16: 18.79 | G16: 15.69 | H16: 0.8350186269 | I16: =[1]!AgePb76($H$16) -> 4982.671552 | J16: 2.9 | K16: 0.4 | L16: 1590 | M16: 0.1 | N16: 0.1 | O16: 1.4 | T16: 5069.979247
A17: 4.1 | B17: 53 | C17: 36.8 | D17: 0.71256 | E17: 0.51215 | F17: 18.85 | G17: 15.7 | H17: 0.8328912467 | I17: =[1]!AgePb76($H$17) -> 4979.04792 | J17: 4.6 | K17: 0.5 | L17: 20715 | M17: 0.12 | N17: 8.6 | O17: 13.7 | T17: 5069.188994
H18: 0 | J18: 7 | K18: 7 | L18: 6 | M18: 4 | N18: 4 | O18: 4 | T18: 5062.964688
A19: 2.47 | B19: 102.2 | C19: 14.9 | D19: 0.7161 | E19: 0.51211 | F19: 18.66 | G19: 15.67 | H19: 0.8397642015 | I19: =[1]!AgePb76($H$19) -> 4990.719607 | J19: 2.2 | K19: 1.23 | L19: 684 | M19: 0.23 | N19: 5.7 | O19: 39.3 | T19: 5060.694106
A20: 0.37 | B20: 26.5 | C20: 3 | D20: 0.0004 | E20: 2e-05 | F20: 0.03 | G20: 0.03 | H20: 1 | I20: =[1]!AgePb76($H$20) -> 5237.372407 | J20: 0.6 | K20: 0.57 | L20: 247 | M20: 0.05 | N20: 1.4 | O20: 13.9 | T20: 5010.768276
A21: 2 | B21: 50.4 | C21: 10.7 | D21: 0.7158 | E21: 0.51209 | F21: 18.62 | G21: 15.64 | H21: 0.8399570354 | I21: =[1]!AgePb76($H$21) -> 4991.045613 | J21: 0.9 | K21: 0.57 | L21: 513 | M21: 0.18 | N21: 4.3 | O21: 20.4 | T21: 5002.943595
A22: 3.1 | B22: 121 | C22: 18.2 | D22: 0.7168 | E22: 0.51212 | F22: 18.69 | G22: 15.69 | H22: 0.8394863563 | I22: =[1]!AgePb76($H$22) -> 4990.249741 | J22: 3.5 | K22: 2.46 | L22: 1229 | M22: 0.32 | N22: 8 | O22: 58 | T22: 4996.28689
H23: 0 | J23: 30 | K23: 30 | L23: 14 | M23: 9 | N23: 7 | O23: 9 | T23: 4995.577125
A24: 1.32 | B24: 36.3 | C24: 7.3 | D24: 0.7095 | E24: 0.5123 | F24: 18.76 | G24: 15.65 | H24: 0.8342217484 | I24: =[1]!AgePb76($H$24) -> 4981.315355 | J24: 10.8 | K24: 0.28 | L24: 1370 | M24: 0.2 | N24: 6.2 | O24: 28.4 | T24: 4991.625416
A25: 0.47 | B25: 14.6 | C25: 3.8 | D25: 0.0014 | E25: 0.00012 | F25: 0.08 | G25: 0.14 | H25: 1.75 | I25: =[1]!AgePb76($H$25) -> 6012.393497 | J25: 8.6 | K25: 0.18 | L25: 634 | M25: 0.04 | N25: 3.9 | O25: 16.4 | T25: 4991.045613
A26: 0.77 | B26: 15 | C26: 1.9 | D26: 0.7075 | E26: 0.51213 | F26: 18.58 | G26: 15.12 | H26: 0.8137782562 | I26: =[1]!AgePb76($H$26) -> 4946.044018 | J26: 1.6 | K26: 0.07 | L26: 611 | M26: 0.13 | N26: 2.5 | O26: 11 | T26: 4990.719607
A27: 3.01 | B27: 76.5 | C27: 17.5 | D27: 0.7116 | E27: 0.51252 | F27: 18.89 | G27: 15.74 | H27: 0.8332451032 | I27: =[1]!AgePb76($H$27) -> 4979.651336 | J27: 38.4 | K27: 1.41 | L27: 3132 | M27: 0.26 | N27: 18 | O27: 72.2 | T27: 4990.684756
A28: 29 | B28: 55 | C28: 55 | D28: 36 | E28: 36 | F28: 0 | G28: 0 | H28: 0 | J28: 56 | K28: 56 | L28: 55 | M28: 49 | N28: 55 | O28: 29 | T28: 4990.249741
A29: 5.41 | B29: 17.2 | C29: 6.4 | D29: 0.7067 | E29: 0 | F29: 0 | G29: 0 | H29: 0 | J29: 0.13 | K29: 3 | L29: 4.3 | T29: 4987.020774
A30: 2.83 | B30: 4.1 | C30: 2 | D30: 0.0025 | E30: 0 | F30: 0 | G30: 0 | H30: 0 | J30: 0.05 | K30: 0.9 | L30: 3.1 | T30: 4986.140665
A31: 1.23 | B31: 10 | C31: 2.5 | D31: 0.7038 | E31: 0 | F31: 0 | G31: 0 | H31: 0 | J31: 0.07 | K31: 1.9 | L31: 1.6 | T31: 4985.642334
A32: 10 | B32: 28 | C32: 10 | D32: 0.7103 | E32: 0 | F32: 0 | G32: 0 | H32: 0 | J32: 0.22 | K32: 5.3 | L32: 15.4 | T32: 4982.671552
A33: 24 | B33: 25 | C33: 16 | D33: 6 | E33: 2 | F33: 15 | G33: 25 | H33: 1.666666667 | I33: =[1]!AgePb76($H$33) -> 5945.644548 | J33: 14 | K33: 16 | L33: 24 | T33: 4981.315355
A34: 2.78 | B34: 171.4 | C34: 21.3 | D34: 0.7235 | E34: 0.51188 | F34: 18.67 | G34: 15.74 | H34: 0.8430637386 | I34: =[1]!AgePb76($H$34) -> 4996.28689 | J34: 4.6 | K34: 0.75 | L34: 365 | M34: 0.29 | N34: 8.5 | O34: 67.8 | T34: 4981.310532
A35: 0.94 | B35: 34.2 | C35: 5 | D35: 0.0069 | E35: 6e-05 | F35: 0.17 | G35: 0.05 | H35: 0.2941176471 | I35: =[1]!AgePb76($H$35) -> 3439.514965 | J35: 1.5 | K35: 0.26 | L35: 80 | M35: 0.06 | N35: 2.3 | O35: 24.4 | T35: 4979.651336
A36: 1.3 | B36: 112 | C36: 9.6 | D36: 0.7166 | E36: 0.5118 | F36: 18.41 | G36: 15.68 | H36: 0.8517110266 | I36: =[1]!AgePb76($H$36) -> 5010.768276 | J36: 2.7 | K36: 0.24 | L36: 274 | M36: 0.15 | N36: 4.6 | O36: 33.4 | T36: 4979.04792
A37: 4.54 | B37: 231.7 | C37: 29.4 | D37: 0.7363 | E37: 0.512 | F37: 18.93 | G37: 15.84 | H37: 0.8367670365 | I37: =[1]!AgePb76($H$37) -> 4985.642334 | J37: 8.8 | K37: 1.14 | L37: 549 | M37: 0.38 | N37: 13.7 | O37: 130 | T37: 4946.044018
H38: 0 | J38: 29 | K38: 29 | L38: 29 | M38: 29 | N38: 29 | O38: 29 | T38: 3909.07842
A39: 4.99 | B39: 23.2 | C39: 3.2 | D39: 0.7096 | E39: 0.51192 | F39: 17.5 | G39: 15.6 | H39: 0.8914285714 | I39: =[1]!AgePb76($H$39) -> 5075.336322 | J39: 18 | K39: 0.18 | L39: 4245 | M39: 0.082 | N39: 7.4 | O39: 4.7 | T39: 3909.07842
A40: 0.25 | B40: 2.8 | C40: 0.4 | D40: 0.0002 | E40: 4e-05 | F40: 0.05 | G40: 0.02 | H40: 0.4 | I40: =[1]!AgePb76($H$40) -> 3909.07842 | J40: 3.4 | K40: 0.03 | L40: 573 | M40: 0.004 | N40: 1 | O40: 0.6 | T40: 3632.478997
A41: 4.41 | B41: 15.9 | C41: 2.2 | D41: 0.7092 | E41: 0.51187 | F41: 17.42 | G41: 15.57 | H41: 0.8938002296 | I41: =[1]!AgePb76($H$41) -> 5079.094798 | J41: 15.5 | K41: 0.1 | L41: 3373 | M41: 0.077 | N41: 4.6 | O41: 2.9 | T41: 3439.514965
A42: 5.42 | B42: 28.3 | C42: 3.8 | D42: 0.7099 | E42: 0.51202 | F42: 17.61 | G42: 15.63 | H42: 0.8875638842 | I42: =[1]!AgePb76($H$42) -> 5069.188994 | J42: 29.7 | K42: 0.21 | L42: 6056 | M42: 0.093 | N42: 9.5 | O42: 5.8 | T42: 3369.883976
H43: 0 | J43: 24 | K43: 24 | L43: 24 | M43: 24 | N43: 24 | O43: 24 | T43: 2720.356136
A44: 5.09 | B44: 36.2 | C44: 8.5 | D44: 0.7057 | E44: 0.51195 | F44: 17.38 | G44: 15.48 | H44: 0.8906789413 | I44: =[1]!AgePb76($H$44) -> 5074.146142 | J44: 32.8 | K44: 0.08 | L44: 2513 | M44: 0.1 | N44: 4.2 | O44: 7.3 | T44: 2455.66046
A45: 1.96 | B45: 12.9 | C45: 2.8 | D45: 0.0004 | E45: 0.00011 | F45: 0.14 | G45: 0.01 | H45: 0.07142857143 | I45: =[1]!AgePb76($H$45) -> 969.7035437 | J45: 14.2 | K45: 0.04 | L45: 2085 | M45: 0.02 | N45: 0.6 | O45: 1.6 | T45: 969.7035437
A46: 2 | B46: 13.7 | C46: 3.4 | D46: 0.70534 | E46: 0.51177 | F46: 17.18 | G46: 15.46 | H46: 0.8998835856 | I46: =[1]!AgePb76($H$46) -> 5088.687226 | J46: 10.2 | K46: 0.02 | L46: 904 | M46: 0.06 | N46: 3.1 | O46: 4.9
A47: 8.81 | B47: 48 | C47: 11.4 | D47: 0.70779 | E47: 0.51211 | F47: 17.58 | G47: 15.51 | H47: 0.8822525597 | I47: =[1]!AgePb76($H$47) -> 5060.694106 | J47: 70.4 | K47: 0.17 | L47: 6968 | M47: 0.17 | N47: 5.2 | O47: 10.8
H48: 0 | J48: 40 | K48: 40 | L48: 16 | M48: 33 | N48: 16 | O48: 16
A49: 8.08 | B49: 32.9 | C49: 4.1 | D49: 0.7169 | E49: 0.51188 | F49: 17.44 | G49: 15.73 | H49: 0.9019495413 | I49: =[1]!AgePb76($H$49) -> 5091.929259 | J49: 29.9 | K49: 0.28 | L49: 2392 | M49: 0.071 | N49: 9.7 | O49: 3.7
A50: 3.1 | B50: 19.1 | C50: 2.9 | D50: 0.0031 | E50: 0.00013 | F50: 0.16 | G50: 0.03 | H50: 0.1875 | I50: =[1]!AgePb76($H$50) -> 2720.356136 | J50: 10.8 | K50: 0.14 | L50: 1655 | M50: 0.005 | N50: 6.3 | O50: 1
A51: 4.68 | B51: 0 | C51: 0 | D51: 0.711 | E51: 0.51166 | F51: 17.23 | G51: 15.68 | H51: 0.9100406268 | I51: =[1]!AgePb76($H$51) -> 5104.550969 | J51: 12.7 | K51: 0.16 | L51: 687 | M51: 0.064 | N51: 2.6 | O51: 2.5
A52: 15.9 | B52: 69.1 | C52: 10.3 | D52: 0.7206 | E52: 0.5121 | F52: 17.88 | G52: 15.8 | H52: 0.8836689038 | I52: =[1]!AgePb76($H$52) -> 5062.964688 | J52: 50 | K52: 0.65 | L52: 6286 | M52: 0.081 | N52: 31.5 | O52: 6
H53: 0 | J53: 14 | K53: 15 | L53: 15 | M53: 15 | N53: 25 | O53: 15
A54: 5.81 | B54: 6.5 | C54: 1.9 | D54: 0.7061 | E54: 0.51138 | F54: 16.24 | G54: 15.22 | H54: 0.9371921182 | I54: =[1]!AgePb76($H$54) -> 5146.053176 | J54: 126.7 | K54: 0.04 | L54: 10387 | M54: 0.1 | N54: 4 | O54: 1.1
A55: 0.64 | B55: 1 | C55: 1.1 | D55: 0.0002 | E55: 8e-05 | F55: 0.25 | G55: 0.04 | H55: 0.16 | I55: =[1]!AgePb76($H$55) -> 2455.66046 | J55: 50.1 | K55: 0.02 | L55: 2379 | M55: 0.001 | N55: 1.1 | O55: 0.1
A56: 5.08 | B56: 5.3 | C56: 1.1 | D56: 0.7058 | E56: 0.51127 | F56: 16.03 | G56: 15.19 | H56: 0.9475982533 | I56: =[1]!AgePb76($H$56) -> 5161.622839 | J56: 73.9 | K56: 0.02 | L56: 8077 | M56: 0.098 | N56: 1.8 | O56: 1
A57: 6.79 | B57: 7.8 | C57: 4 | D57: 0.7063 | E57: 0.5115 | F57: 16.64 | G57: 15.28 | H57: 0.9182692308 | I57: =[1]!AgePb76($H$57) -> 5117.265797 | J57: 191 | K57: 0.05 | L57: 13872 | M57: 0.101 | N57: 4.8 | O57: 1.2
H58: 0 | J58: 6 | K58: 6 | L58: 6 | M58: 6 | N58: 6 | O58: 6
A59: 0.4 | B59: 4 | C59: 1.7 | D59: 0.7065 | E59: 0.51167 | F59: 17.06 | G59: 15.37 | H59: 0.9009378664 | I59: =[1]!AgePb76($H$59) -> 5090.342657 | J59: 22.5 | K59: 0.17 | L59: 22321 | M59: 0.24 | N59: 2.6 | O59: 12.3
A60: 0.43 | B60: 3.6 | C60: 1.6 | D60: 0.0008 | E60: 0.00022 | F60: 0.32 | G60: 0.09 | H60: 0.28125 | I60: =[1]!AgePb76($H$60) -> 3369.883976 | J60: 21.6 | K60: 0.15 | L60: 25192 | M60: 0.09 | N60: 0.7 | O60: 6.1
A61: 0.09 | B61: 0.8 | C61: 0.2 | D61: 0.7055 | E61: 0.51135 | F61: 16.61 | G61: 15.24 | H61: 0.9175195665 | I61: =[1]!AgePb76($H$61) -> 5116.112426 | J61: 5.4 | K61: 0.04 | L61: 5481 | M61: 0.15 | N61: 1.9 | O61: 4.8
A62: 1.4 | B62: 12.5 | C62: 5.7 | D62: 0.7079 | E62: 0.51193 | F62: 17.42 | G62: 15.47 | H62: 0.8880597015 | I62: =[1]!AgePb76($H$62) -> 5069.979247 | J62: 77.9 | K62: 0.51 | L62: 84592 | M62: 0.45 | N62: 3.9 | O62: 23.8
H63: 0 | I63: =MAX(I4:I62) -> 6194.367072 | J63: 10 | K63: 10 | L63: 10 | M63: 10 | N63: 10 | O63: 10
H65: 207Pb/206Pb | I65: 207Pb/206Pb
H66: Ratio | I66: Age
H67: 0.8370607029 | I67: 4986.140665
H68: 0.4 | I68: 3909.07842
H69: 0.8403001072 | I69: 4991.625416
H70: 0.8375796178 | I70: 4987.020774
H71: 0.8426423201 | I71: 4995.577125
H72: 0.3333333333 | I72: 3632.478997
H73: 0.847027027 | I73: 5002.943595
H74: 0.8397435897 | I74: 4990.684756
H75: 0.834218916 | I75: 4981.310532
H76: 2 | I76: 6194.367072
H77: 0.8350186269 | I77: 4982.671552
H78: 0.8328912467 | I78: 4979.04792
H79: 0.8397642015 | I79: 4990.719607
H80: 1 | I80: 5237.372407
H81: 0.8399570354 | I81: 4991.045613
H82: 0.8394863563 | I82: 4990.249741
H83: 0.8342217484 | I83: 4981.315355
H84: 1.75 | I84: 6012.393497
H85: 0.8137782562 | I85: 4946.044018
H86: 0.8332451032 | I86: 4979.651336
H87: 1.666666667 | I87: 5945.644548
H88: 0.8430637386 | I88: 4996.28689
H89: 0.2941176471 | I89: 3439.514965
H90: 0.8517110266 | I90: 5010.768276
H91: 0.8367670365 | I91: 4985.642334
H92: 0.8914285714 | I92: 5075.336322
H93: 0.4 | I93: 3909.07842
H94: 0.8938002296 | I94: 5079.094798
H95: 0.8875638842 | I95: 5069.188994
H96: 0.8906789413 | I96: 5074.146142
H97: 0.07142857143 | I97: 969.7035437
H98: 0.8998835856 | I98: 5088.687226
H99: 0.8822525597 | I99: 5060.694106
H100: 0.9019495413 | I100: 5091.929259
H101: 0.1875 | I101: 2720.356136
H102: 0.9100406268 | I102: 5104.550969
H103: 0.8836689038 | I103: 5062.964688
H104: 0.9371921182 | I104: 5146.053176
H105: 0.16 | I105: 2455.66046
H106: 0.9475982533 | I106: 5161.622839
H107: 0.9182692308 | I107: 5117.265797
H108: 0.9009378664 | I108: 5090.342657
H109: 0.28125 | I109: 3369.883976
H110: 0.9175195665 | I110: 5116.112426
H111: 0.8880597015 | I111: 5069.979247
I112: =COUNT(I67:I111) -> 45

Sheet Pb_207_02
K1: 206Pb/204Pb | L1: 207Pb/204Pb | M1: 207Pb/206Pb | N1: 207Pb/206Pb
K2: Ratio | L2: Ratio | M2: Ratio | N2: Age
A3: B3M | B3: Philippines | C3: 20.36 | D3: 3.67 | E3: 0.548 | F3: 4 | G3: 5.54 | J3: 0.547 | K3: 18.455 | L3: 15.64 | M3: =(L3/K3) -> 0.8474668112 | N3: =[1]!AgePb76(M3) -> 5003.680213 | O3: 0.70476
A4: B10 | B4: Philippines | C4: 23.99 | D4: 4.33 | E4: 0.555 | F4: 4 | G4: 5.47 | J4: 0.548 | K4: 18.272 | L4: 15.501 | M4: =(L4/K4) -> 0.8483471979 | N4: =[1]!AgePb76($M$4) -> 5005.1536 | O4: 0.70445
A5: B82 | B5: Philippines | C5: 13.77 | D5: 2.74 | E5: 0.551 | F5: 5 | G5: 5.51 | J5: 0.604 | K5: 18.344 | L5: 15.544 | M5: 0.8473615351 | N5: =[1]!AgePb76($M$5) -> 5003.503917 | O5: 0.70459
A6: Cml2 | B6: Philippines | C6: 3.75 | D6: 0.95 | E6: 0.706 | F6: 15 | G6: 4.29 | J6: 0.769 | K6: 18.372 | L6: 15.51 | M6: 0.8442194644 | N6: =[1]!AgePb76($M$6) -> 4998.231465 | O6: 0.70356
A7: Call | B7: Philippines | C7: 3.11 | D7: 0.89 | E7: 0.767 | F7: 7 | G7: 3.96 | J7: 0.868 | K7: 18.466 | L7: 15.493 | M7: 0.839001408 | N7: =[1]!AgePb76($M$7) -> 4989.429245 | O7: 0.70388
A8: CL | B8: 2 | C8: Nicaragua | D8: 3.58 | E8: 2.26 | F8: 2.445 | G8: 19 | H8: 1.24 | I8: 1.963 | K8: 18.616 | L8: 15.404 | M8: 0.8274602492 | N8: =[1]!AgePb76($M$8) -> 4969.752344 | O8: 0.704
A9: CL | B9: 10 | C9: Nicaragua | D9: 3.52 | E9: 2.29 | F9: 2.386 | G9: 11 | H9: 1.27 | I9: 1.617 | K9: 18.602 | L9: 15.488 | M9: 0.8325986453 | N9: =[1]!AgePb76($M$9) -> 4978.548754 | O9: 0.70402
A10: CL | B10: 13 | C10: Nicaragua | D10: 18.608 | E10: 15.494 | F10: 38.167 | G10: 0.933 | H10: 0.704 | K10: 18.608 | L10: 15.494 | M10: 0.8326526225 | N10: =[1]!AgePb76($M$10) -> 4978.640851 | O10: 0.704
A11: CL | B11: 18 | C11: Nicaragua | D11: 3.89 | E11: 2.56 | F11: 2.351 | G11: 15 | H11: 1.29 | I11: 1.997 | J11: 18.606 | K11: 18.606 | L11: 15.497 | M11: 0.8329033645 | N11: =[1]!AgePb76($M$11) -> 4979.068589 | O11: 0.70403
A12: CL | B12: 31 | C12: Nicaragua | D12: 2.27 | E12: 5 | F12: 14 | G12: 1.34 | H12: 18.615 | I12: 15.491 | J12: 38.16 | K12: 18.615 | L12: 15.491 | M12: 0.8321783508 | N12: =[1]!AgePb76($M$12) -> 4977.831422 | O12: 0.70392
A13: CL | B13: 35 | C13: Nicaragua | D13: 18.631 | E13: 15.495 | F13: 38.188 | G13: 0.933 | H13: 0.70408 | K13: 18.631 | L13: 15.495 | M13: 0.8316783855 | N13: =[1]!AgePb76($M$13) -> 4976.977612 | O13: 0.70408
A14: LATE | B14: 7 | C14: Tonga | D14: 0.136 | E14: 0.11 | F14: 2.454 | G14: 18.524 | H14: 15.541 | I14: 38.11 | J14: 0.936 | K14: 18.524 | L14: 15.541 | M14: 0.8389656662 | N14: =[1]!AgePb76($M$14) -> 4989.368752 | O14: 0.70361
A15: LATE | B15: 13 | C15: Tonga | D15: 0.21 | E15: 0.189 | F15: 1.87 | G15: 2.731 | H15: 0.70369 | M15: 0
A16: FON | B16: 31 | C16: Tonga | D16: 0.299 | E16: 0.299 | F16: 1.5315 | G16: 20 | H16: 3.034 | I16: 18.554 | J16: 15.552 | K16: 18.554 | L16: 15.552 | M16: 0.838202005 | N16: =[1]!AgePb76($M$16) -> 4988.075614 | O16: 0.70381
A17: FON | B17: 39 | C17: Tonga | D17: 0.43 | E17: 0.365 | F17: 1.5745 | G17: 20 | H17: 1.69 | I17: 2.575 | J17: 18.533 | K17: 18.533 | L17: 15.56 | M17: 0.8395834457 | N17: =[1]!AgePb76($M$17) -> 4990.413949 | O17: 0.70376
A18: 14831 | B18: Tonga | C18: 0.577 | D18: 0.165 | E18: 1.0645 | F18: 15 | G18: 2.85 | H18: 0.867 | I18: 18.727 | J18: 15.586 | K18: 18.727 | L18: 15.586 | M18: 0.8322742564 | N18: =[1]!AgePb76($M$18) -> 4977.995142 | O18: 0.70404
A19: PA | B19: 1 | C19: Marianas | D19: 0.62 | E19: 0.253 | F19: 1.145 | G19: 5 | H19: 21 | I19: 2.65 | J19: 1.238 | K19: 18.734 | L19: 15.501 | M19: 0.8274260702 | N19: =[1]!AgePb76($M$19) -> 4969.693639 | O19: 0.70348
A20: GU6 | B20: Marianas | C20: 0.36 | D20: 0.303 | E20: 1.1505 | F20: 15 | G20: 2.64 | H20: 2.554 | I20: 18.736 | J20: 15.53 | K20: 18.736 | L20: 15.53 | M20: 0.8288855679 | N20: =[1]!AgePb76($M$20) -> 4972.19815 | O20: 0.7034
A21: U | B21: 4 | C21: Marianas | D21: 0.96 | E21: 0.355 | F21: 1.1825 | G21: 8 | H21: 2.57 | I21: 1.122 | J21: 18.732 | K21: 18.732 | L21: 15.543 | M21: 0.8297565663 | N21: =[1]!AgePb76($M$21) -> 4973.690559 | O21: 0.70362
A22: GU9 | B22: Marianas | C22: 0.32 | D22: 0.159 | E22: 1.508 | F22: 18.703 | G22: 15.491 | H22: 38.14 | I22: 0.921 | J22: 0.70345 | K22: 18.703 | L22: 15.491 | M22: 0.8282628455 | N22: =[1]!AgePb76($M$22) -> 4971.130127 | O22: 0.70345
A23: U2 | B23: Marianas | C23: 1.11 | D23: 0.428 | E23: 1.231 | F23: 5 | G23: 15 | H23: 2.46 | I23: 1.169 | J23: 18.782 | K23: 18.782 | L23: 15.567 | M23: 0.8288254712 | N23: =[1]!AgePb76($M$23) -> 4972.095116 | O23: 0.70353
A24: M12 | B24: Java | C24: 6.07 | D24: 1.075 | E24: 0.537 | F24: 0.70576 | M24: 0
A25: M13 | B25: Java | C25: 6.46 | D25: 1.198 | E25: 0.563 | F25: 18.719 | G25: 15.63 | H25: 38.938 | I25: 1.004 | J25: 0.70536 | K25: 18.719 | L25: 15.63 | M25: 0.8349805011 | N25: =[1]!AgePb76($M$25) -> 4982.606697 | O25: 0.70536
A26: M15 | B26: Java | C26: 4.64 | D26: 0.979 | E26: 0.64 | F26: 18.718 | G26: 15.647 | H26: 38.923 | I26: 1.003 | J26: 0.70519 | K26: 18.718 | L26: 15.647 | M26: 0.8359333262 | N26: =[1]!AgePb76($M$26) -> 4984.226572 | O26: 0.70519
A27: M17 | B27: Java | C27: 5.94 | D27: 1.101 | E27: 0.821 | F27: 12 | G27: 3.69 | H27: 0.562 | I27: 18.714 | J27: 15.638 | K27: 18.714 | L27: 15.638 | M27: 0.8356310783 | N27: =[1]!AgePb76($M$27) -> 4983.71294 | O27: 0.70504
A28: M18 | B28: Java | C28: 4.81 | D28: 0.725 | E28: 0.682 | F28: 5 | G28: 19 | H28: 4.45 | I28: 0.457 | J28: 18.695 | K28: 18.695 | L28: 15.629 | M28: 0.8359989302 | N28: =[1]!AgePb76($M$28) -> 4984.338031 | O28: 0.70514
A29: STD8 | B29: Stromboli | C29: 11.58 | D29: 2.98 | E29: 0.9275 | F29: 11 | G29: 3.27 | H29: 0.78 | I29: 19.034 | J29: 15.666 | K29: 19.034 | L29: 15.666 | M29: 0.8230534832 | N29: =[1]!AgePb76($M$29) -> 4962.162034 | O29: 0.70615
A30: STB32 | B30: Stromboli | C30: 19.58 | D30: 5.84 | E30: 0.9335 | F30: 4 | G30: 3.25 | H30: 0.899 | I30: 18.934 | J30: 15.644 | K30: 18.934 | L30: 15.644 | M30: 0.8262385127 | N30: =[1]!AgePb76($M$30) -> 4967.652312 | O30: 0.7075
A31: STC14 | B31: Stromboli | C31: 18.56 | D31: 4.5 | E31: 0.839 | F31: 6 | G31: 3.62 | H31: 0.735 | I31: 19.093 | J31: 15.967 | K31: 19.093 | L31: 15.967 | M31: 0.8362750746 | N31: =[1]!AgePb76($M$31) -> 4984.807092 | O31: 0.70603
A32: CY2 | B32: 101 | C32: N. | D32: Pacific | E32: 10.3 | F32: 1.63 | G32: 0.4545 | H32: 3 | I32: 6.68 | J32: 0.48 | K32: 18.83 | L32: 15.637 | M32: 0.8304301646 | N32: =[1]!AgePb76($M$32) -> 4974.843593 | O32: 0.72253
A33: CY3 | B33: 249 | C33: N. | D33: Pacific | E33: 6.42 | F33: 2.05 | G33: 1.275 | H33: 5 | I33: 16 | J33: 2.38 | K33: 18.722 | L33: 15.592 | M33: 0.8328170067 | N33: =[1]!AgePb76($M$33) -> 4978.921287 | O33: 0
A34: CY2 | B34: 114 | C34: N. | D34: Pacific | E34: 11.5 | F34: 1.56 | G34: 0.4075 | H34: 8 | I34: 7.45 | J34: 0.412 | K34: 19.07 | L34: 15.745 | M34: 0.8256423702 | N34: =[1]!AgePb76($M$34) -> 4966.626409 | O34: 0.71672
A35: CY1 | B35: 214 | C35: N. | D35: Pacific | E35: 12 | F35: 1.33 | G35: 0.5065 | H35: 6 | I35: 5.99 | J35: 0.336 | K35: 18.699 | L35: 15.645 | M35: 0.8366757581 | N35: =[1]!AgePb76($M$35) -> 4985.487403 | O35: 0.70929
A36: A2 | B36: 7B4 | C36: N. | D36: Pacific | E36: 6.08 | F36: 2.04 | G36: 1.1575 | H36: 6 | I36: 2.62 | J36: 1.018 | K36: 19.157 | L36: 15.605 | M36: 0.8145847471 | N36: =[1]!AgePb76($M$36) -> 4947.453232 | O36: 0.70665
A37: A2 | B37: 9A1 | C37: N. | D37: Pacific | E37: 6.03 | F37: 2.83 | G37: 1.357 | H37: 9 | I37: 2.24 | J37: 1.424 | K37: 19.127 | L37: 15.593 | M37: 0.8152350081 | N37: =[1]!AgePb76($M$37) -> 4948.58838 | O37: 0.7069
A38: CY1 | B38: 224 | C38: N. | D38: Pacific | E38: 12.3 | F38: 2.21 | G38: 0.5025 | H38: 4 | I38: 6.04 | J38: 0.545 | K38: 18.558 | L38: 15.61 | M38: 0.8411466753 | N38: =[1]!AgePb76($M$38) -> 4993.055068 | O38: 0.71342
A39: CY1 | B39: 233 | C39: N. | D39: Pacific | E39: 16 | F39: 3.21 | G39: 0.4995 | H39: 6 | I39: 6.08 | J39: 0.609 | K39: 16.716 | L39: 15.659 | M39: 0.9367671692 | N39: =[1]!AgePb76($M$39) -> 5145.413482 | O39: 0.71558
A40: CY2 | B40: 90 | C40: N. | D40: Pacific | E40: 2.86 | F40: 0.76 | G40: 0.6185 | H40: 47 | I40: 4.91 | J40: 0.806 | K40: 18.556 | L40: 15.566 | M40: 0.8388661349 | N40: =[1]!AgePb76($M$40) -> 4989.200283 | O40: 0.70787
A41: A2 | B41: 10A4 | C41: N. | D41: Pacific | E41: 6.83 | F41: 1.68 | G41: 0.6845 | H41: 4 | I41: 4.44 | J41: 0.746 | K41: 19.17 | L41: 15.69 | M41: 0.8184663537 | N41: =[1]!AgePb76($M$41) -> 4954.21503 | O41: 0.70775
N42: =STDEV(N3:N41) -> 30.5045847

Sheet Pb_207_03
F1: 207Pb/204Pb | G1: 206Pb/204Pb | H1: 207Pb/206Pb | I1: 207Pb/206Pb
A2: Samoa | F2: Ratio | G2: Ratio | H2: Ratio | I2: Age
A3: 63-13 | B3: 0.70552 | C3: 0.512716 | D3: 1.5 | E3: 39.699 | F3: 15.624 | G3: 19.352 | H3: =(F3/G3) -> 0.8073584126 | I3: =[1]!AgePb76($H$3) -> 4934.77311
A4: 68-30 | B4: 0.705215 | C4: 0.512734 | D4: 1.9 | E4: 39.589 | F4: 15.615 | G4: 19.332 | H4: =(F4/G4) -> 0.8077281192 | I4: =[1]!AgePb76($H$4) -> 4935.424763
A5: 70-1 | B5: 0.705371 | C5: 0.512768 | D5: 2.5 | E5: 39.641 | F5: 15.608 | G5: 19.371 | H5: 0.80574054 | I5: =[1]!AgePb76($H$5) -> 4931.917673
A6: 70-9 | B6: 0.705352 | C6: 0.512753 | D6: 2.2 | E6: 39.683 | F6: 15.619 | G6: 19.386 | H6: 0.8056845146 | I6: =[1]!AgePb76($H$6) -> 4931.818682
A7: 71-2 | B7: 0.705943 | C7: 0.512743 | D7: 2 | E7: 39.68 | F7: 15.605 | G7: 19.332 | H7: 0.8072108421 | I7: =[1]!AgePb76($H$7) -> 4934.51291
A8: 72-2 | B8: 0.705395 | C8: 0.51274 | D8: 2 | E8: 39.657 | F8: 15.604 | G8: 19.365 | H8: 0.8057836303 | I8: =[1]!AgePb76($H$8) -> 4931.993803
A9: 73-1 | B9: 0.70672 | C9: 0.512669 | D9: 0.6 | E9: 39.585 | F9: 15.617 | G9: 19.215 | H9: 0.8127504554 | I9: =[1]!AgePb76($H$9) -> 4944.245946
A10: 73-3 | B10: 0.705616 | C10: 0.512711 | D10: 1.4 | E10: 39.638 | F10: 15.602 | G10: 19.328 | H10: 0.8072226821 | I10: =[1]!AgePb76($H$10) -> 4934.533789
A11: 73-12 | B11: 0.706653 | C11: 0.512686 | D11: 0.9 | E11: 39.529 | F11: 15.6 | G11: 19.195 | H11: 0.8127116437 | I11: =[1]!AgePb76($H$11) -> 4944.178
A12: 76-1 | B12: 0.707192 | C12: 0.512637 | D12: 0 | E12: 39.847 | F12: 15.636 | G12: 19.338 | H12: 0.8085634502 | I12: =[1]!AgePb76($H$12) -> 4936.895968
A13: 77-9 | B13: 0.70726 | C13: 0.512579 | D13: −1.2 | E13: 39.853 | F13: 15.635 | G13: 19.331 | H13: 0.8088045109 | I13: =[1]!AgePb76($H$13) -> 4937.32023
A14: 78-1 | B14: 0.708901 | C14: 0.512521 | D14: −2.3 | E14: 39.862 | F14: 15.647 | G14: 19.237 | H14: 0.8133804647 | I14: =[1]!AgePb76($H$14) -> 4945.348394
A15: SAV | B15: 0.705786 | C15: 0.512716 | D15: 1.5 | E15: 39.121 | F15: 15.61 | G15: 18.785 | H15: 0.8309821666 | I15: =[1]!AgePb76($H$15) -> 4975.787742
A16: Mt. | B16: Erebus
A17: ER | B17: 0.703039 | C17: 0.512908 | D17: 5.3 | E17: 39.515 | F17: 15.649 | G17: 19.946 | H17: 0.7845683345 | I17: =[1]!AgePb76($H$17) -> 4893.977592
A18: ER-84505 | B18: 0.703133 | C18: 0.512906 | D18: 5.2 | E18: 39.489 | F18: 15.648 | G18: 19.916 | H18: 0.7856999397 | I18: =[1]!AgePb76($H$18) -> 4896.032827
A19: ER | B19: 0.703033 | C19: 0.512911 | D19: 5.3 | E19: 39.509 | F19: 15.648 | G19: 19.941 | H19: 0.784714909 | I19: =[1]!AgePb76($H$19) -> 4894.24398
A20: ER | B20: 0.703043 | C20: 0.512905 | D20: 5.2 | E20: 39.508 | F20: 15.648 | G20: 19.939 | H20: 0.7847936205 | I20: =[1]!AgePb76($H$20) -> 4894.38701
I21: =STDEV(I3:I20) -> 22.26277236

Sheet Pb_207_04
B1: 207Pb/206Pb | C1: 207Pb/206Pb
B2: Ratio | C2: Age
A3: 1 | B3: 0.754 | C3: =[1]!AgePb76($B$3) -> 4837.231513 | D3: 0.017
A4: 2 | B4: 0.743 | C4: =[1]!AgePb76($B$4) -> 4816.209176 | D4: 1.887 | E4: 0.013
A5: 5 | B5: 0.765 | C5: =[1]!AgePb76($B$5) -> 4857.929376 | D5: 1.924 | E5: 0.017
A6: 6 | B6: 0.731 | C6: =[1]!AgePb76($B$6) -> 4792.893692 | D6: 1.89 | E6: 0.022
A7: 8 | B7: 0.728 | C7: =[1]!AgePb76($B$7) -> 4787.000984 | D7: 1.89 | E7: 0.026
A8: 8 | B8: 0.745 | C8: =[1]!AgePb76($B$8) -> 4820.056006 | D8: 1.894 | E8: 0.023
A9: 9 | B9: 0.768 | C9: =[1]!AgePb76($B$9) -> 4863.519222 | D9: 1.94 | E9: 0.032
A10: 10 | B10: 0.793 | C10: =[1]!AgePb76($B$10) -> 4909.216011 | D10: 1.969 | E10: 0.009
A11: 11 | B11: 0.793 | C11: =[1]!AgePb76($B$11) -> 4909.216011 | D11: 1.974 | E11: 0.014
A12: Duplicate | B12: 0.804 | C12: =[1]!AgePb76($B$12) -> 4928.838917 | D12: 1.979 | E12: 0.024
A13: 12 | B13: 0.771 | C13: =[1]!AgePb76($B$13) -> 4869.085851 | D13: 1.955 | E13: 0.031
A14: 13 | B14: 0.729 | C14: =[1]!AgePb76($B$14) -> 4788.968095 | D14: 1.861 | E14: 0.021
A15: 16 | B15: 0.735 | C15: =[1]!AgePb76($B$15) -> 4800.710613 | D15: 1.868 | E15: 0.017
A16: 19 | B16: 0.812 | C16: =[1]!AgePb76($B$16) -> 4942.931543 | D16: 2.02 | E16: 0.011
A17: 23 | B17: 0.738 | C17: =[1]!AgePb76($B$17) -> 4806.543571 | D17: 1.892 | E17: 0.011
A18: 25 | B18: 0.745 | C18: =[1]!AgePb76($B$18) -> 4820.056006 | D18: 1.901 | E18: 0.017
A19: 33A | B19: 0.727 | C19: =[1]!AgePb76($B$19) -> 4785.030986 | D19: 1.864 | E19: 0.022
A20: 36 | B20: 0.813 | C20: =[1]!AgePb76($B$20) -> 4944.68273 | D20: 2.022 | E20: 0.014
A21: 39 | B21: 0.792 | C21: =[1]!AgePb76($B$21) -> 4907.417765 | D21: 1.967 | E21: 0.011
A22: 42 | B22: 0.744 | C22: =[1]!AgePb76($B$22) -> 4818.13397 | D22: 1.883 | E22: 0.01
A23: 43 | B23: 0.727 | C23: =[1]!AgePb76($B$23) -> 4785.030986 | D23: 1.844 | E23: 0.009
A24: 44 | B24: 0.735 | C24: =[1]!AgePb76($B$24) -> 4800.710613 | D24: 1.86 | E24: 0.013
A25: 44A | B25: 0.727 | C25: =[1]!AgePb76($B$25) -> 4785.030986 | D25: 1.844 | E25: 0.009
A26: 45A | B26: 0.721 | C26: =[1]!AgePb76($B$26) -> 4773.149913 | D26: 1.854 | E26: 0.023
A27: 46 | B27: 0.806 | C27: =[1]!AgePb76($B$27) -> 4932.376013 | D27: 1.995 | E27: 0.013
A28: 48 | B28: 0.805 | C28: =[1]!AgePb76($B$28) -> 4930.608633 | D28: 1.987 | E28: 0.008
A29: 49 | B29: 0.793 | C29: =[1]!AgePb76($B$29) -> 4909.216011 | D29: 1.978 | E29: 0.01
A30: 50 | B30: 0.748 | C30: =[1]!AgePb76($B$30) -> 4825.805647 | D30: 1.911 | E30: 0.027
A31: 52 | B31: 0.706 | C31: =[1]!AgePb76($B$31) -> 4742.979152 | D31: 1.84 | E31: 0.027
A32: 55 | B32: 0.776 | C32: =[1]!AgePb76($B$32) -> 4878.312483 | D32: 1.957 | E32: 0.019
A33: 56 | B33: 0.753 | C33: =[1]!AgePb76($B$33) -> 4835.333949 | D33: 1.906 | E33: 0.016
A34: 57 | B34: 0.803 | C34: =[1]!AgePb76($B$34) -> 4927.066857 | D34: 1.986 | E34: 0.007 | F34: 19.64 | G34: 0.31
A35: Duplicate | B35: 0.8 | C35: =[1]!AgePb76($B$35) -> 4921.736555 | D35: 2 | E35: 0.013
A36: 58 | B36: 0.783 | C36: =[1]!AgePb76($B$36) -> 4891.123939 | D36: 1.964 | E36: 0.026
A37: 60 | B37: 0.747 | C37: =[1]!AgePb76($B$37) -> 4823.891837 | D37: 1.897 | E37: 0.016
A38: 61 | B38: 0.813 | C38: =[1]!AgePb76($B$38) -> 4944.68273 | D38: 2.003 | E38: 0.006
A39: Duplicate | B39: 0.796 | C39: =[1]!AgePb76($B$39) -> 4914.596305 | D39: 1.986 | E39: 0.019
A40: 67 | B40: 0.727 | C40: =[1]!AgePb76($B$40) -> 4785.030986 | D40: 1.866 | E40: 0.025
A41: 1 | B41: 0.731 | C41: =[1]!AgePb76($B$41) -> 4792.893692 | D41: 1.866 | E41: 0.019
A42: 2 | B42: 0.75 | C42: =[1]!AgePb76($B$42) -> 4829.625094 | D42: 1.916 | E42: 0.022
A43: 12 | B43: 0.748 | C43: =[1]!AgePb76($B$43) -> 4825.805647 | D43: 1.899 | E43: 0.025
A44: 17 | B44: 0.841 | C44: =[1]!AgePb76($B$44) -> 4992.807478 | D44: 2.06 | E44: 0.023
A45: 18A | B45: 0.839 | C45: =[1]!AgePb76($B$45) -> 4989.426862 | D45: 2.066 | E45: 0.025
A46: 24 | B46: 0.76 | C46: =[1]!AgePb76($B$46) -> 4848.56085 | D46: 1.923 | E46: 0.012
A47: 25 | B47: 0.737 | C47: =[1]!AgePb76($B$47) -> 4804.602067 | D47: 1.871 | E47: 0.027
A48: 25 | B48: 0.731 | C48: =[1]!AgePb76($B$48) -> 4792.893692 | D48: 1.866 | E48: 0.005 | F48: 21.46 | G48: 0.12
A49: 28 | B49: 0.732 | C49: =[1]!AgePb76($B$49) -> 4794.852194 | D49: 1.865 | E49: 0.013
A50: 31E | B50: 0.74 | C50: =[1]!AgePb76($B$50) -> 4810.418172 | D50: 1.891 | E50: 0.009
A51: 32 | B51: 0.727 | C51: =[1]!AgePb76($B$51) -> 4785.030986 | D51: 1.865 | E51: 0.007 | F51: 22.01 | G51: 0.16
A52: 35 | B52: 0.808 | C52: =[1]!AgePb76($B$52) -> 4935.903784 | D52: 2.003 | E52: 0.022
A53: 44 | B53: 0.75 | C53: =[1]!AgePb76($B$53) -> 4829.625094 | D53: 1.909 | E53: 0.012 | F53: 21.28 | G53: 0.3
A54: 48 | B54: 0.736 | C54: =[1]!AgePb76($B$54) -> 4802.657751 | D54: 1.884 | E54: 0.017
A55: 54 | B55: 0.739 | C55: =[1]!AgePb76($B$55) -> 4808.48227 | D55: 1.885 | E55: 0.009 | F55: 21.61 | G55: 0.21
A56: 1 | B56: 0.814 | C56: =[1]!AgePb76($B$56) -> 4946.431628 | D56: 2.027 | E56: 0.007 | F56: 19.73 | G56: 0.2
A57: E1 | B57: 0.819 | C57: =[1]!AgePb76($B$57) -> 4955.14198 | D57: 2.045 | E57: 0.014
A58: E2 | B58: 0.815 | C58: =[1]!AgePb76($B$58) -> 4948.178242 | D58: 2.033 | E58: 0.01
A59: 3 | B59: 0.821 | C59: =[1]!AgePb76($B$59) -> 4958.6103 | D59: 2.043 | E59: 0.016
A60: 4 | B60: 0.822 | C60: =[1]!AgePb76($B$60) -> 4960.341093 | D60: 2.039 | E60: 0.012 | F60: 19.25 | G60: 0.29
A61: 4 | B61: 0.814 | C61: =[1]!AgePb76($B$61) -> 4946.431628 | D61: 2.028 | E61: 0.004 | F61: 19.17 | G61: 0.1
A62: 6 | B62: 0.819 | C62: =[1]!AgePb76($B$62) -> 4955.14198 | D62: 2.032 | E62: 0.011
A63: 7 | B63: 0.823 | C63: =[1]!AgePb76($B$63) -> 4962.069648 | D63: 2.036 | E63: 0.011 | F63: 19.21 | G63: 0.26
A64: 14 | B64: 0.823 | C64: =[1]!AgePb76($B$64) -> 4962.069648 | D64: 2.044 | E64: 0.015
A65: 20 | B65: 0.816 | C65: =[1]!AgePb76($B$65) -> 4949.922578 | D65: 2.022 | E65: 0.008
A66: 21 | B66: 0.81 | C66: =[1]!AgePb76($B$66) -> 4939.422278 | D66: 2.024 | E66: 0.007 | F66: 19.33 | G66: 0.17
A67: Duplicate | B67: 0.818 | C67: =[1]!AgePb76($B$67) -> 4953.404442 | D67: 2.028 | E67: 0.009
A68: 22 | B68: 0.814 | C68: =[1]!AgePb76($B$68) -> 4946.431628 | D68: 2.015 | E68: 0.009
A69: 24 | B69: 0.817 | C69: =[1]!AgePb76($B$69) -> 4951.664643 | D69: 2.021 | E69: 0.011
A70: 28 | B70: 0.809 | C70: =[1]!AgePb76($B$70) -> 4937.664187 | D70: 2.023 | E70: 0.007
A71: 35 | B71: 0.817 | C71: =[1]!AgePb76($B$71) -> 4951.664643 | D71: 2.035 | E71: 0.008
A72: 38 | B72: 0.816 | C72: =[1]!AgePb76($B$72) -> 4949.922578 | D72: 2.04 | E72: 0.023 | F72: 19.54 | G72: 0.24
A73: Duplicate | B73: 0.814 | C73: =[1]!AgePb76($B$73) -> 4946.431628 | D73: 2.034 | E73: 0.011
A74: 40 | B74: 0.816 | C74: =[1]!AgePb76($B$74) -> 4949.922578 | D74: 2.033 | E74: 0.013
A75: 50 | B75: 0.824 | C75: =[1]!AgePb76($B$75) -> 4963.795973 | D75: 2.041 | E75: 0.013
A76: 51 | B76: 0.809 | C76: =[1]!AgePb76($B$76) -> 4937.664187 | D76: 2.048 | E76: 0.02
A77: 52 | B77: 0.816 | C77: =[1]!AgePb76($B$77) -> 4949.922578 | D77: 2.028 | E77: 0.006 | F77: 18.94 | G77: 0.12
A78: 54 | B78: 0.811 | C78: =[1]!AgePb76($B$78) -> 4941.178061 | D78: 2.027 | E78: 0.022
A79: 59 | B79: 0.816 | C79: =[1]!AgePb76($B$79) -> 4949.922578 | D79: 2.026 | E79: 0.008
A80: 60 | B80: 0.817 | C80: =[1]!AgePb76($B$80) -> 4951.664643 | D80: 2.033 | E80: 0.008
A81: 61 | B81: 0.81 | C81: =[1]!AgePb76($B$81) -> 4939.422278 | D81: 2.013 | E81: 0.009
A82: 62E | B82: 0.815 | C82: =[1]!AgePb76($B$82) -> 4948.178242 | D82: 2.03 | E82: 0.007 | F82: 19.26 | G82: 0.16
A83: 62 | B83: 0.82 | C83: =[1]!AgePb76($B$83) -> 4956.877265 | D83: 2.036 | E83: 0.014
A84: 63 | B84: 0.818 | C84: =[1]!AgePb76($B$84) -> 4953.404442 | D84: 2.032 | E84: 0.008
A85: 65 | B85: 0.812 | C85: =[1]!AgePb76($B$85) -> 4942.931543 | D85: 2.009 | E85: 0.013 | F85: 19.27 | G85: 0.21
A86: 68 | B86: 0.814 | C86: =[1]!AgePb76($B$86) -> 4946.431628 | D86: 2.023 | E86: 0.009
A87: 69 | B87: 0.815 | C87: =[1]!AgePb76($B$87) -> 4948.178242 | D87: 2.023 | E87: 0.017
A88: 5A | B88: 0.85 | C88: =[1]!AgePb76($B$88) -> 5007.915295 | D88: 2.118 | E88: 0.006
A89: 22 | B89: 0.864 | C89: =[1]!AgePb76($B$89) -> 5031.081896 | D89: 2.159 | E89: 0.019
A90: 23A | B90: 0.868 | C90: =[1]!AgePb76($B$90) -> 5037.627772 | D90: 2.154 | E90: 0.009
A91: 25B | B91: 0.865 | C91: =[1]!AgePb76($B$91) -> 5032.721376 | D91: 2.165 | E91: 0.008
A92: 27A | B92: 0.87 | C92: =[1]!AgePb76($B$92) -> 5040.888714 | D92: 2.177 | E92: 0.01
A93: 32A | B93: 0.874 | C93: =[1]!AgePb76($B$93) -> 5047.386796 | D93: 2.196 | E93: 0.006
A94: 46A | B94: 0.841 | C94: =[1]!AgePb76($B$94) -> 4992.807478 | D94: 2.054 | E94: 0.022
A95: 48A | B95: 0.875 | C95: =[1]!AgePb76($B$95) -> 5049.006386 | D95: 2.19 | E95: 0.009
A96: 52A | B96: 0.849 | C96: =[1]!AgePb76($B$96) -> 5006.24506 | D96: 2.116 | E96: 0.008
A97: 54 | B97: 0.849 | C97: =[1]!AgePb76($B$97) -> 5006.24506 | D97: 2.089 | E97: 0.017
A98: 59 | B98: 0.863 | C98: =[1]!AgePb76($B$98) -> 5029.440401 | D98: 2.173 | E98: 0.012
A99: 73A | B99: 0.874 | C99: =[1]!AgePb76($B$99) -> 5047.386796 | D99: 2.195 | E99: 0.008
A100: 81 | B100: 0.865 | C100: =[1]!AgePb76($B$100) -> 5032.721376 | D100: 2.17 | E100: 0.019
A101: 81B | B101: 0.865 | C101: =[1]!AgePb76($B$101) -> 5032.721376 | D101: 2.177 | E101: 0.008
A102: 83A | B102: 0.87 | C102: =[1]!AgePb76($B$102) -> 5040.888714 | D102: 2.185 | E102: 0.015
A103: 89A | B103: 0.858 | C103: =[1]!AgePb76($B$103) -> 5021.202518 | D103: 2.154 | E103: 0.007
A104: 91B | B104: 0.874 | C104: =[1]!AgePb76($B$104) -> 5047.386796 | D104: 2.16 | E104: 0.026
A105: 2012-01-09 | B105: 0.748 | C105: =[1]!AgePb76($B$105) -> 4825.805647 | D105: 1.922 | E105: 0.005 | F105: 21.07 | G105: 0.0.8
A106: 2012-01-09 | B106: 0.75 | C106: =[1]!AgePb76($B$106) -> 4829.625094 | D106: 1.925 | E106: 0.003 | F106: 21.12 | G106: 0.13
B107: AVG | C107: =AVERAGE(C3:C106) -> 4909.764277
B108: MAX | C108: =MAX(C4:C107) -> 5049.006386
B109: MIN | C109: =MIN(C5:C108) -> 4742.979152
B110: STD DEV | C110: =STDEV(C3:C106) -> 83.03273203

Sheet Pb_207_05
E1: 207Pb/206Pb | F1: 207Pb/206Pb
A2: Porphyry | B2: Cu–Au | C2: stage | E2: Ratio | F2: Age
A3: 208-37: | B3: 1 | C3: 2.1829 | D3: 0.0014 | E3: 0.8886 | F3: =[1]!AgePb76($E$3) -> 5070.839863
A4: 208-37: | B4: 2 | C4: 2.1808 | D4: 0.0008 | E4: 0.88811 | F4: =[1]!AgePb76($E$4) -> 5070.059388
A5: 208-37: | B5: 3 | C5: 2.1813 | D5: 0.0011 | E5: 0.88817 | F5: =[1]!AgePb76($E$5) -> 5070.154981
A6: 208-37: | B6: 4 | C6: 2.1821 | D6: 0.0011 | E6: 0.88838 | F6: =[1]!AgePb76($E$6) -> 5070.489502
A7: 208-37: | B7: 5 | C7: 2.1852 | D7: 0.0012 | E7: 0.88911 | F7: =[1]!AgePb76($E$7) -> 5071.651709
A8: 208-37: | B8: 6 | C8: 2.1819 | D8: 0.0012 | E8: 0.88829 | F8: =[1]!AgePb76($E$8) -> 5070.346146
A9: 208-37: | B9: 7 | C9: 2.1826 | D9: 0.0011 | E9: 0.8886 | F9: =[1]!AgePb76($E$9) -> 5070.839863
A10: 208-37: | B10: 8 | C10: 2.1824 | D10: 0.0013 | E10: 0.88813 | F10: =[1]!AgePb76($E$10) -> 5070.091253
A11: Assemblage | B11: average | C11: 2.1824 | D11: 0.88842 | E11: 0.88842 | F11: =[1]!AgePb76($E$11) -> 5070.553211
A12: Assemblage | B12: 2s.d. | C12: 0.0026 | D12: 0.00068 | E12: 0.00068 | F12: =[1]!AgePb76($E$11) -> 5070.553211
A13: 211-113.5M: | B13: 19a | C13: 2.187 | D13: 0.0009 | E13: 0.89093 | F13: =[1]!AgePb76($E$13) -> 5074.544863
A14: 211-113.5M: | B14: 20a | C14: 2.1849 | D14: 0.001 | E14: 0.89023 | F14: =[1]!AgePb76($E$14) -> 5073.432854
A15: 211-113.5M: | B15: 21a | C15: 2.185 | D15: 0.0012 | E15: 0.88961 | F15: =[1]!AgePb76($E$15) -> 5072.447157
A16: 211-113.5M: | B16: 22a | C16: 2.1845 | D16: 0.0013 | E16: 0.88945 | F16: =[1]!AgePb76($E$16) -> 5072.192665
A17: Sample | B17: average | C17: 2.1853 | D17: 0.89006 | E17: 0.89006 | F17: =[1]!AgePb76($E$17) -> 5073.162655
A18: Sample | B18: 2s.d. | C18: 0.0022 | D18: 0.00135 | E18: 0.00135 | F18: =[1]!AgePb76($E$11) -> 5070.553211
A19: 211-113.5N: | B19: 23a | C19: 2.1834 | D19: 0.0014 | E19: 0.88893 | F19: =[1]!AgePb76($E$19) -> 5071.365231
A20: 211-113.5N: | B20: 24a | C20: 2.1833 | D20: 0.001 | E20: 0.88984 | F20: =[1]!AgePb76($E$20) -> 5072.812904
A21: Assemblage | B21: average | C21: 2.1834 | D21: 0.88938 | E21: 0.88938 | F21: =[1]!AgePb76($E$21) -> 5072.08131
A22: Assemblage | B22: 2s.d. | C22: 0.0001 | D22: 0.00128 | E22: 0.00128 | F22: =[1]!AgePb76($E$11) -> 5070.553211
A23: 1386B: | B23: 9 | C23: 2.18 | D23: 0.0034 | E23: 0.88773 | F23: =[1]!AgePb76($E$23) -> 5069.453808
A24: 1386B: | B24: 10 | C24: 2.1795 | D24: 0.0016 | E24: 0.88798 | F24: =[1]!AgePb76($E$24) -> 5069.852247
A25: 1386B: | B25: 11 | C25: 2.1814 | D25: 0.0021 | E25: 0.88843 | F25: =[1]!AgePb76($E$25) -> 5070.569138
A26: Assemblage | B26: average | C26: 2.1803 | D26: 0.88805 | E26: 0.88805 | F26: =[1]!AgePb76($E$26) -> 5069.963789
A27: Assemblage | B27: 2s.d. | C27: 0.002 | D27: 0.0007 | E27: 0.0007 | F27: =[1]!AgePb76($E$11) -> 5070.553211
A28: CAH-2003-C: | B28: 12 | C28: 2.1823 | D28: 0.0032 | E28: 0.88773 | F28: =[1]!AgePb76($E$28) -> 5069.453808
A29: CAH-2003-C: | B29: 13 | C29: 2.1844 | D29: 0.0023 | E29: 0.88799 | F29: =[1]!AgePb76($E$29) -> 5069.868182
A30: CAH-2003-C: | B30: 14 | C30: 2.1848 | D30: 0.0021 | E30: 0.88847 | F30: =[1]!AgePb76($E$30) -> 5070.632843
A31: Assemblage | B31: average | C31: 2.1838 | D31: 0.88806 | E31: 0.88806 | F31: =[1]!AgePb76($E$31) -> 5069.979723
A32: Assemblage | B32: 2s.d. | C32: 0.0026 | D32: 0.00074 | E32: 0.00074 | F32: =[1]!AgePb76($E$11) -> 5070.553211
A33: 195-714: | B33: 15 | C33: 2.1854 | D33: 0.0009 | E33: 0.89012 | F33: =[1]!AgePb76($E$33) -> 5073.258025
A34: 195-714: | B34: 16 | C34: 2.1823 | D34: 0.0014 | E34: 0.88906 | F34: =[1]!AgePb76($E$34) -> 5071.572138
A35: 195-714: | B35: 17 | C35: 2.1838 | D35: 0.0012 | E35: 0.88979 | F35: =[1]!AgePb76($E$35) -> 5072.733402
A36: 195-714: | B36: 18 | C36: 2.1835 | D36: 0.0011 | E36: 0.88921 | F36: =[1]!AgePb76($E$36) -> 5071.810836
A37: Assemblage | B37: average | C37: 2.1838 | D37: 0.88955 | E37: 0.88955 | F37: =[1]!AgePb76($E$37) -> 5072.351728
A38: Assemblage | B38: 2s.d. | C38: 0.0025 | D38: 0.00099 | E38: 0.00099 | F38: =[1]!AgePb76($E$11) -> 5070.553211
E39: AVG | F39: =AVERAGE(F3:F38) -> 5071.163458
E40: MAX | F40: =MAX(F3:F38) -> 5074.544863
E41: MIN | F41: =MIN(F3:F38) -> 5069.453808
E42: STD DEV | F42: =STDEV(F3:F38) -> 1.265163511

Sheet Pb_207_06
C1: 207Pb/206Pb | D1: 207Pb/206Pb
C2: Ratio | D2: Age
A3: M64/1 | B3: 109GTV-1 | C3: 0.87477 | D3: =[1]!AgePb76($C$3) -> 5048.634054 | E3: 3 | F3: 14
A4: M64/1 | B4: 118VSR | C4: 0.87772 | D4: =[1]!AgePb76($C$4) -> 5053.401753 | E4: 3 | F4: 15
A5: M64/1 | B5: 119VSR | C5: 0.87713 | D5: =[1]!AgePb76($C$5) -> 5052.449575 | E5: 4 | F5: 16
A6: M64/1 | B6: 123ROV-8 | C6: 0.87411 | D6: =[1]!AgePb76($C$6) -> 5047.565047 | E6: 4 | F6: 18
A7: M64/1 | B7: 124GTV-1A | C7: 0.87446 | D7: =[1]!AgePb76($C$7) -> 5048.132051 | E7: 1 | F7: 7
A8: M64/1 | B8: 125ROV-6 | C8: 0.87472 | D8: =[1]!AgePb76($C$8) -> 5048.553099 | E8: 3 | F8: 17
A9: M64/1 | B9: 125ROV-8 | C9: 0.87595 | D9: =[1]!AgePb76($C$9) -> 5050.543178 | E9: 4 | F9: 23
A10: M64/1 | B10: 131GTV-1 | C10: 0.87404 | D10: =[1]!AgePb76($C$10) -> 5047.451617 | E10: 3 | F10: 15
A11: M64/1 | B11: 135VSR | C11: 0.87383 | D11: =[1]!AgePb76($C$11) -> 5047.11127 | E11: 2 | F11: 8
A12: M64/1 | B12: 146ROV-2 | C12: 0.87471 | D12: =[1]!AgePb76($C$12) -> 5048.536907 | E12: 3 | F12: 16
A13: M41/2 | B13: 119DS-1 | C13: 0.87358 | D13: =[1]!AgePb76($C$13) -> 5046.705982 | E13: 1 | F13: 2
A14: M41/2 | B14: 120DS-2 | C14: 0.86514 | D14: =[1]!AgePb76($C$14) -> 5032.950743 | E14: 1 | F14: 5
A15: M41/2 | B15: 121DS-1 | C15: 0.87275 | D15: =[1]!AgePb76($C$15) -> 5045.359541 | E15: 2 | F15: 8
A16: M41/2 | B16: 126DS-2 | C16: 0.86618 | D16: =[1]!AgePb76($C$16) -> 5034.653377 | E16: 2 | F16: 10
A17: M41/2 | B17: 130DS-1 | C17: 0.86459 | D17: =[1]!AgePb76($C$17) -> 5032.049433 | E17: 2 | F17: 3
A18: M41/2 | B18: 132DS-1 | C18: 0.82506 | D18: =[1]!AgePb76($C$18) -> 4965.623446 | E18: 1 | F18: 2
A19: M41/2 | B19: 133DS-7 | C19: 0.83245 | D19: =[1]!AgePb76($C$19) -> 4978.2951 | E19: 1 | F19: 3
A20: M41/2 | B20: 136DS-1 | C20: 0.83587 | D20: =[1]!AgePb76($C$20) -> 4984.118973 | E20: 1 | F20: 3
A21: M41/2 | B21: 137DS-2 | C21: 0.84441 | D21: =[1]!AgePb76($C$21) -> 4998.55178 | E21: 2 | F21: 7
A22: M41/2 | B22: 138DS-1 | C22: 0.80368 | D22: =[1]!AgePb76($C$22) -> 4928.272113 | E22: 1 | F22: 1
A23: M41/2 | B23: 138DS-2 | C23: 0.80598 | D23: =[1]!AgePb76($C$23) -> 4932.340688 | E23: 1 | F23: 2
A24: M41/2 | B24: 138DS-3 | C24: 0.80109 | D24: =[1]!AgePb76($C$24) -> 4923.675688 | E24: 1 | F24: 4
A25: M41/2 | B25: 139DS-1 | C25: 0.84395 | D25: =[1]!AgePb76($C$25) -> 4997.778329 | E25: 3 | F25: 15
A26: M41/2 | B26: 139DS-3 | C26: 0.83244 | D26: =[1]!AgePb76($C$26) -> 4978.278034 | E26: 1 | F26: 2
A27: M41/2 | B27: 140DS-1 | C27: 0.85135 | D27: =[1]!AgePb76($C$27) -> 5010.166804 | E27: 1 | F27: 4
A28: M41/2 | B28: 141DS-1 | C28: 0.85701 | D28: =[1]!AgePb76($C$28) -> 5019.565373 | E28: 3 | F28: 15
A29: M41/2 | B29: 142DS-2 | C29: 0.84288 | D29: =[1]!AgePb76($C$29) -> 4995.977478 | E29: 1 | F29: 4
A30: M41/2 | B30: 143DS-2 | C30: 0.85105 | D30: =[1]!AgePb76($C$30) -> 5009.666796 | E30: 1 | F30: 4
A31: M41/2 | B31: 143DS-2 | C31: 0.85104 | D31: =[1]!AgePb76($C$31) -> 5009.650126 | E31: 2 | F31: 6
A32: M41/2 | B32: 146DS-2 | C32: 0.84008 | D32: =[1]!AgePb76($C$32) -> 4991.253457 | E32: 1 | F32: 2
A33: M41/2 | B33: 147DS-1 | C33: 0.8337 | D33: =[1]!AgePb76($C$33) -> 4980.426652 | E33: 1 | F33: 5
A34: M41/2 | B34: 153DS-1 | C34: 0.8237 | D34: =[1]!AgePb76($C$34) -> 4963.278309 | E34: 2 | F34: 8
A35: M64/1 | B35: 163VSR | C35: 0.8199 | D35: =[1]!AgePb76($C$35) -> 4956.703837 | E35: 2 | F35: 11
A36: M64/1 | B36: 162VSR | C36: 0.83643 | D36: =[1]!AgePb76($C$36) -> 4985.070177 | E36: 2 | F36: 8
A37: M64/1 | B37: 162VSR | C37: 0.83633 | D37: =[1]!AgePb76($C$37) -> 4984.900369 | E37: 2 | F37: 10
A38: M64/1 | B38: 160VSR | C38: 0.82011 | D38: =[1]!AgePb76($C$38) -> 4957.068008 | E38: 1 | F38: 5
A39: M64/1 | B39: 159ROV-10 | C39: 0.81947 | D39: =[1]!AgePb76($C$39) -> 4955.957844 | E39: 1 | F39: 4
A40: M64/1 | B40: 159ROV-10 | C40: 2.0297 | D40: =[1]!AgePb76($C$40) -> 6214.394049 | E40: 2
A41: M64/1 | B41: 159ROV-6 | C41: 0.82961 | D41: =[1]!AgePb76($C$41) -> 4973.439542 | E41: 1 | F41: 3
A42: M64/1 | B42: 159ROV-4 | C42: 0.8234 | D42: =[1]!AgePb76($C$42) -> 4962.760446 | E42: 2 | F42: 7
A43: M64/1 | B43: 159ROV-4 | C43: 0.82331 | D43: =[1]!AgePb76($C$43) -> 4962.605047 | E43: 1 | F43: 2
A44: M64/1 | B44: 159ROV-3 | C44: 0.82338 | D44: =[1]!AgePb76($C$44) -> 4962.725914 | E44: 1 | F44: 5
A45: M64/1 | B45: 159ROV-3 | C45: 0.82334 | D45: =[1]!AgePb76($C$45) -> 4962.656849 | E45: 1 | F45: 5
A46: M64/1 | B46: 159ROV-1 | C46: 0.82128 | D46: =[1]!AgePb76($C$46) -> 4959.095148 | E46: 1 | F46: 3
A47: M41/2 | B47: 157DS-3 | C47: 0.82202 | D47: =[1]!AgePb76($C$47) -> 4960.375686 | E47: 3 | F47: 15
A48: M64/1 | B48: 155ROV-4 | C48: 0.82332 | D48: =[1]!AgePb76($C$48) -> 4962.622315 | E48: 1 | F48: 3
A49: M64/1 | B49: 155ROV-1 | C49: 0.82289 | D49: =[1]!AgePb76($C$49) -> 4961.879617 | E49: 1 | F49: 2
A50: M64/1 | B50: 155ROV-1 | C50: 0.82278 | D50: =[1]!AgePb76($C$50) -> 4961.689558 | E50: 2 | F50: 10
A51: M64/1 | B51: 155ROV-7 | C51: 0.82187 | D51: =[1]!AgePb76($C$51) -> 4960.116216 | E51: 1 | F51: 6
A52: M41/2 | B52: 160DS-1 | C52: 0.82045 | D52: =[1]!AgePb76($C$52) -> 4957.657409 | E52: 1 | F52: 3
A53: M41/2 | B53: 160DS-2 | C53: 0.82065 | D53: =[1]!AgePb76($C$53) -> 4958.003993 | E53: 1 | F53: 3
A54: M41/2 | B54: 160DS-3 | C54: 0.81908 | D54: =[1]!AgePb76($C$54) -> 4955.280886 | E54: 1 | F54: 4
A55: M41/2 | B55: 161DS-1 | C55: 0.82082 | D55: =[1]!AgePb76($C$55) -> 4958.298519 | E55: 1 | F55: 6
A56: M41/2 | B56: 162DS-1 | C56: 0.81544 | D56: =[1]!AgePb76($C$56) -> 4948.94603 | E56: 1 | F56: 1
A57: M41/2 | B57: 162DS-1 | C57: 0.81532 | D57: =[1]!AgePb76($C$57) -> 4948.736677 | E57: 2 | F57: 13
A58: M41/2 | B58: 166DS-4 | C58: 0.81251 | D58: =[1]!AgePb76($C$58) -> 4943.824935 | E58: 1 | F58: 6
A59: M41/2 | B59: 166DS-4 | C59: 0.81244 | D59: =[1]!AgePb76($C$59) -> 4943.702348 | E59: 1 | F59: 4
A60: M68/1 | B60: 36VSR | C60: 0.81282 | D60: =[1]!AgePb76($C$60) -> 4944.367686 | E60: 1 | F60: 6
A61: M64/1 | B61: 203VSR | C61: 0.81374 | D61: =[1]!AgePb76($C$61) -> 4945.977134 | E61: 3 | F61: 15
A62: M64/1 | B62: 214GTV-1 | C62: 0.81279 | D62: =[1]!AgePb76($C$62) -> 4944.315171 | E62: 2 | F62: 7
A63: M64/1 | B63: 209GTV-1 | C63: 0.8128 | D63: =[1]!AgePb76($C$63) -> 4944.332676 | E63: 1 | F63: 2
A64: M64/1 | B64: 200ROV-6 | C64: 0.81293 | D64: =[1]!AgePb76($C$64) -> 4944.560222 | E64: 1 | F64: 6
A65: M64/1 | B65: 205VSR | C65: 0.81339 | D65: =[1]!AgePb76($C$65) -> 4945.365072 | E65: 1 | F65: 4
A66: M41/2 | B66: 172DS-3 | C66: 0.81291 | D66: =[1]!AgePb76($C$66) -> 4944.525217 | E66: 1 | F66: 2
A67: M64/1 | B67: 211VSR | C67: 0.81291 | D67: =[1]!AgePb76($C$67) -> 4944.525217 | E67: 2 | F67: 7
A68: M64/1 | B68: 194ROV-7 | C68: 0.81288 | D68: =[1]!AgePb76($C$68) -> 4944.472709 | E68: 2 | F68: 8
A69: M64/1 | B69: 194ROV-11 | C69: 0.81291 | D69: =[1]!AgePb76($C$69) -> 4944.525217 | E69: 2 | F69: 9
A70: M64/1 | B70: 194ROV-9 | C70: 0.8128 | D70: =[1]!AgePb76($C$70) -> 4944.332676 | E70: 1 | F70: 4
A71: M41/2 | B71: 190DS-4 | C71: 0.81226 | D71: =[1]!AgePb76($C$71) -> 4943.387073 | E71: 1 | F71: 5
A72: M41/2 | B72: 191DS-3 | C72: 0.81519 | D72: =[1]!AgePb76($C$72) -> 4948.509841 | E72: 1 | F72: 2
A73: M41/2 | B73: 194DS-1 | C73: 0.82582 | D73: =[1]!AgePb76($C$73) -> 4966.932175 | E73: 1 | F73: 4
A74: M41/2 | B74: 195DS-2 | C74: 0.84177 | D74: =[1]!AgePb76($C$74) -> 4994.106739 | E74: 1 | F74: 3
A75: M41/2 | B75: 196DS-3 | C75: 0.82105 | D75: =[1]!AgePb76($C$75) -> 4958.696893 | E75: 1 | F75: 6
A76: M41/2 | B76: 197DS-3 | C76: 0.81824 | D76: =[1]!AgePb76($C$76) -> 4953.821657 | E76: 1 | F76: 5
A77: M41/2 | B77: 198DS-1 | C77: 0.84129 | D77: =[1]!AgePb76($C$77) -> 4993.296958 | E77: 1 | F77: 3
A78: M41/2 | B78: 198DS-1 | C78: 0.84126 | D78: =[1]!AgePb76($C$78) -> 4993.246331 | E78: 2 | F78: 7
A79: M41/2 | B79: 199DS-2 | C79: 0.85514 | D79: =[1]!AgePb76($C$79) -> 5016.467501 | E79: 2 | F79: 7
A80: M41/2 | B80: 199DS-2 | C80: 0.85513 | D80: =[1]!AgePb76($C$80) -> 5016.450916 | E80: 2 | F80: 11
A81: M41/2 | B81: 200DS-1 | C81: 0.83955 | D81: =[1]!AgePb76($C$81) -> 4990.357384 | E81: 1 | F81: 6
A82: M41/2 | B82: 200DS-1 | C82: 0.83958 | D82: =[1]!AgePb76($C$82) -> 4990.408121 | E82: 1 | F82: 3
A83: M41/2 | B83: 201DS-5 | C83: 0.81726 | D83: =[1]!AgePb76($C$83) -> 4952.117208 | E83: 1 | F83: 3
A84: M41/2 | B84: 201DS-5 | C84: 0.81723 | D84: =[1]!AgePb76($C$84) -> 4952.064997 | E84: 4 | F84: 18
A85: M41/2 | B85: 202DS-1 | C85: 0.83763 | D85: =[1]!AgePb76($C$85) -> 4987.106194 | E85: 1 | F85: 4
A86: M41/2 | B86: 202DS-1 | C86: 0.83739 | D86: =[1]!AgePb76($C$86) -> 4986.699239 | E86: 3 | F86: 17
A87: M41/2 | B87: 202DS-1 | C87: 0.83749 | D87: =[1]!AgePb76($C$87) -> 4986.868819 | E87: 2 | F87: 8
A88: M41/2 | B88: 203DS-2 | C88: 0.84126 | D88: =[1]!AgePb76($C$88) -> 4993.246331 | E88: 2 | F88: 9
A89: M41/2 | B89: 203DS-2 | C89: 0.84129 | D89: =[1]!AgePb76($C$89) -> 4993.296958 | E89: 1 | F89: 6
A90: M64/1 | B90: 188ROV-4 | C90: 0.81074 | D90: =[1]!AgePb76($C$90) -> 4940.721779 | E90: 0.81074 | F90: 2.0214 | G90: 3
A91: M64/1 | B91: 188ROV-5 | C91: 0.81079 | D91: =[1]!AgePb76($C$91) -> 4940.809538 | E91: 0.81079 | F91: 2.02155 | G91: 17
A92: M41/2 | B92: 175DS-2 | C92: 0.81807 | D92: =[1]!AgePb76($C$92) -> 4953.526143 | E92: 0.81807 | F92: 2.03289 | G92: 8
A93: M41/2 | B93: 176DS-2 | C93: 0.81498 | D93: =[1]!AgePb76($C$93) -> 4948.143332 | E93: 0.81498 | F93: 2.03018 | G93: 4
A94: M41/2 | B94: 179DS-1 | C94: 0.80278 | D94: =[1]!AgePb76($C$94) -> 4926.676689 | E94: 1 | F94: 2
A95: M41/2 | B95: 179DS-3 | C95: 0.80337 | D95: =[1]!AgePb76($C$95) -> 4927.722793 | E95: 1 | F95: 4
A96: M41/2 | B96: 183DS-1 | C96: 0.81039 | D96: =[1]!AgePb76($C$96) -> 4940.107308 | E96: 0.81039 | F96: 2.0201 | G96: 3
A97: M41/2 | B97: 183DS-3 | C97: 0.80946 | D97: =[1]!AgePb76($C$97) -> 4938.473196 | E97: 0.80946 | F97: 2.01804 | G97: 5
A98: M41/2 | B98: 186DS-1 | C98: 0.81215 | D98: =[1]!AgePb76($C$98) -> 4943.194368 | E98: 0.81215 | F98: 2.0218 | G98: 3
C99: AVG | D99: =AVERAGE(D3:D98) -> 4990.388372
C100: MAX | D100: =MAX(D3:D98) -> 6214.394049
C101: MIN | D101: =MIN(D3:D98) -> 4923.675688
C102: STD DEV | D102: =STDEV(D3:D98) -> 131.4746618

Sheet Pb_207_07
E1: 206Pb/204Pb | F1: 207Pb/204Pb | G1: 208Pb/204Pb | H1: 238U/204Pb | J1: 207Pb/206Pb | K1: 207Pb/206Pb | L1: 206Pb/238U | M1: 206Pb/238U
E2: Ratio | F2: Ratio | G2: Ratio | H2: Ratio | J2: Ratio | K2: Age | L2: Ratio | M2: Age
A3: 1686 | B3: 2.64 | C3: 28.6 | D3: 49.9 | E3: 21.91 | F3: 16.34 | G3: 39.2 | H3: 3.59 | I3: 11.3 | J3: =(F3/E3) -> 0.7457781835 | K3: =[1]!AgePb76(J3) -> 4821.5498 | L3: =(E3/H3) -> 6.103064067 | M3: =[1]!AgePb6U8(L3) -> 12638.36422
A4: ZW-263 | B4: 2.42 | C4: 6.13 | D4: 41.6 | E4: 31.24 | F4: 18.34 | G4: 35.41 | H4: 4.32 | I4: 18.4 | J4: =(F4/E4) -> 0.5870678617 | K4: =[1]!AgePb76(J4) -> 4476.313584 | L4: =(E4/H4) -> 7.231481481 | M4: =[1]!AgePb6U8(L4) -> 13588.82197
A5: 114942 | B5: 4.29 | C5: 34 | D5: 80 | E5: 32.02 | F5: 18.14 | G5: 39.16 | H5: 4.19 | I5: 35.1 | J5: 0.5665209244 | K5: =[1]!AgePb76(J5) -> 4424.39412 | L5: 7.642004773 | M5: =[1]!AgePb6U8(L5) -> 13902.55981
A6: 114943 | B6: 4.69 | C6: 23.5 | D6: 73.9 | E6: 30.09 | F6: 18.03 | G6: 37.98 | H6: 4.78 | I6: 30.1 | J6: 0.5992023928 | K6: =[1]!AgePb76(J6) -> 4506.065521 | L6: 6.294979079 | M6: =[1]!AgePb6U8(L6) -> 12810.22604
A7: 114944 | B7: 3.33 | C7: 20.2 | D7: 67.7 | E7: 31.49 | F7: 18.3 | G7: 38.03 | H7: 3.77 | I7: 29.4 | J7: 0.5811368688 | K7: =[1]!AgePb76(J7) -> 4461.530105 | L7: 8.352785146 | M7: =[1]!AgePb6U8(L7) -> 14412.08171
A8: 114945 | B8: 5.21 | C8: 22.3 | D8: 70.1 | E8: 32.28 | F8: 18.41 | G8: 37.77 | H8: 5.73 | I8: 31.5 | J8: 0.5703221809 | K8: =[1]!AgePb76(J8) -> 4434.150737 | L8: 5.633507853 | M8: =[1]!AgePb6U8(L8) -> 12197.47786
A9: DDH-747 | B9: 7.09 | C9: 50.5 | D9: 47.7 | E9: 116.9 | F9: 31.57 | G9: 56.35 | H9: 13.1 | I9: 104 | J9: 0.2700598802 | K9: =[1]!AgePb76(J9) -> 3306.372481 | L9: 8.923664122 | M9: =[1]!AgePb6U8(L9) -> 14794.01915
A10: 256179 | B10: 402 | C10: 81 | D10: 312 | E10: 128.8 | F10: 34.19 | G10: 45.23 | H10: 23.5 | I10: 372 | J10: 0.2654503106 | K10: =[1]!AgePb76(J10) -> 3279.347581 | L10: 5.480851064 | M10: =[1]!AgePb6U8(L10) -> 12047.393
J11: AVG | K11: =AVERAGE(K3:K10) -> 4213.715491 | L11: AVG | M11: =AVERAGE(M3:M10) -> 13298.86797
J12: MAX | K12: =MAX(K3:K10) -> 4821.5498 | L12: MAX | M12: =MAX(M3:M10) -> 14794.01915
J13: MIN | K13: =MIN(K3:K10) -> 3279.347581 | L13: MIN | M13: =MIN(M3:M10) -> 12047.393
J14: STD DEV | K14: =STDEV(K3:K10) -> 582.4324413 | L14: STD DEV | M14: =STDEV(M3:M10) -> 1026.611971
J16: Dating | K16: 207Pb/206Pb | L16: 206Pb/238U
J17: Summary | K17: Age | L17: Age
J18: AVG | K18: 4213.715491 | L18: 13298.86797
J19: MAX | K19: 4821.5498 | L19: 14794.01915
J20: MIN | K20: 3279.347581 | L20: 12047.393
J21: STD DEV | K21: 582.4324413 | L21: 1026.611971

Sheet Pb_207_08
B1: 206Pb/204Pb | C1: 207Pb/204Pb | D1: 207Pb/206Pb | E1: 207Pb/206Pb
B2: Ratio | C2: Ratio | D2: Ratio | E2: Age
A3: T-25 | B3: 19.296 | C3: 15.587 | D3: =(C3/B3) -> 0.8077839967 | E3: =[1]!AgePb76($D$3) -> 4935.523226
A4: T-88 | B4: 19.272 | C4: 15.537 | D4: =(C4/B4) -> 0.8061955168 | E4: =[1]!AgePb76($D$4) -> 4932.721292
A5: T-38 | B5: 19.245 | C5: 15.542 | D5: 0.8075863861 | E5: =[1]!AgePb76($D$5) -> 4935.174979
A6: T-85 | B6: 19.256 | C6: 15.522 | D6: 0.8060864146 | E6: =[1]!AgePb76($D$6) -> 4932.528631
A7: T-21 | B7: 19.308 | C7: 15.579 | D7: 0.8068676196 | E7: =[1]!AgePb76($D$7) -> 4933.907537
A8: T-30 | B8: 19.168 | C8: 15.54 | D8: 0.8107262104 | E8: =[1]!AgePb76($D$8) -> 4940.697575
A9: T-64 | B9: 19.27 | C9: 15.533 | D9: 0.8060716139 | E9: =[1]!AgePb76($D$9) -> 4932.502492
A10: T-54 | B10: 19.19 | C10: 15.513 | D10: 0.8083897863 | E10: =[1]!AgePb76($D$10) -> 4936.59024
A11: BCR-1 | B11: 18.819 | C11: 15.628 | D11: 0.830437324 | E11: =[1]!AgePb76($D$11) -> 4974.855842
D12: AVG | E12: =AVERAGE(E3:E11) -> 4939.38909
D13: MAX | E13: =MAX(E3:E11) -> 4974.855842
D14: MIN | E14: =MIN(E3:E11) -> 4932.502492
D15: STD DEV | E15: =STDEV(E3:E11) -> 13.55146636

Sheet Pb_207_10
B1: 238U/206Pb | C1: 238U/206Pb | F1: 207Pb/206Pb | G1: 207Pb/206Pb
B2: Ratio | C2: Age | D2: Ratio | F2: Ratio | G2: Age
A3: M2-2916a | B3: 29.5 | C3: =[1]!AgePb6U8(1/B3) -> 214.9003724 | D3: 0.053756 | E3: 2 | F3: 0.840494 | G3: =[1]!AgePb76($F$3) -> 4991.95299
A4: M2-2916b | B4: 90.5 | C4: =[1]!AgePb6U8(1/B4) -> 70.84042917 | D4: 0.052131 | E4: 10 | F4: 0.817981 | G4: =[1]!AgePb76($F$4) -> 4953.371407
A5: M2-3705a | B5: 23.5 | C5: =[1]!AgePb6U8(1/B5) -> 268.6394611 | D5: 0.052589 | E5: 3 | F5: 0.826169 | G5: =[1]!AgePb76($F$5) -> 4967.532727
A6: M2-3705b | B6: 14.3 | C6: =[1]!AgePb6U8(1/B6) -> 435.7343506 | D6: 0.052652 | E6: 9 | F6: 0.828172 | G6: =[1]!AgePb76($F$6) -> 4970.974247
A7: M3-34459 | B7: 23.1 | C7: =[1]!AgePb6U8(1/B7) -> 273.194024 | D7: 0.047056 | E7: 2 | F7: 0.76188 | G7: =[1]!AgePb76($F$7) -> 4852.091101
A8: M3-34946 | B8: 87.9 | C8: =[1]!AgePb6U8(1/B8) -> 72.92401501 | D8: 0.0518 | E8: 4 | F8: 0.816171 | G8: =[1]!AgePb76($F$8) -> 4950.220632
A9: M3-30375 | B9: 20.1 | C9: =[1]!AgePb6U8(1/B9) -> 312.9942009 | D9: 0.051341 | E9: 2 | F9: 0.812817 | G9: =[1]!AgePb76($F$9) -> 4944.362434
A10: M3-36803 | B10: 82.6 | C10: =[1]!AgePb6U8(1/B10) -> 77.57511403 | D10: 0.052804 | E10: 2 | F10: 0.828679 | G10: =[1]!AgePb76($F$10) -> 4971.843963
A11: M3-38065 | B11: 23.5 | C11: =[1]!AgePb6U8(1/B11) -> 268.6394611 | D11: 0.054109 | E11: 4 | F11: 0.846527 | G11: =[1]!AgePb76($F$11) -> 5002.10558
D12: 0.6 | F12: AVG | G12: =AVERAGE(G3:G11) -> 4956.050565
D13: 1.7 | F13: MAX | G13: =MAX(G3:G11) -> 5002.10558
D14: 0.9 | F14: MIN | G14: =MIN(G3:G11) -> 4852.091101
D15: 0.3 | F15: STD DEV | G15: =STDEV(G3:G11) -> 43.3003823
D16: 0.4
D17: 1.2
D18: 0.3
D19: 3
D20: 0.7

Sheet Pb_207_11
B1: 206Pb/204Pb | C1: 207Pb/204Pb | D1: 207Pb/206Pb | E1: 207Pb/206Pb | F1: TABLE 2 | I1: 5112
B2: Ratio | C2: Ratio | D2: Ratio | E2: Age | I2: 5110
B3: 16.937 | C3: 15.491 | D3: =(C3/B3) -> 0.914624786 | E3: =[1]!AgePb76($D$3) -> 5111.649363 | I3: 5110
B4: 16.88 | C4: 15.42 | D4: =(C4/B4) -> 0.913507109 | E4: =[1]!AgePb76($D$4) -> 5109.922165 | I4: 5110
B5: 16.89 | C5: 15.43 | D5: 0.9135583185 | E5: =[1]!AgePb76($D$5) -> 5110.00135 | I5: 5110
B6: 16.847 | C6: 15.381 | D6: 0.9129815397 | E6: =[1]!AgePb76($D$6) -> 5109.109204 | I6: 5110
B7: 16.871 | C7: 15.414 | D7: 0.9136387885 | E7: =[1]!AgePb76($D$7) -> 5110.125772 | I7: 5110
B8: 16.894 | C8: 15.435 | D8: 0.913637978 | E8: =[1]!AgePb76($D$8) -> 5110.124519 | I8: 5110
B9: 16.91 | C9: 15.452 | D9: 0.9137788291 | E9: =[1]!AgePb76($D$9) -> 5110.342273 | I9: 5110
B10: 16.902 | C10: 15.442 | D10: 0.91361969 | E10: =[1]!AgePb76($D$10) -> 5110.096243 | I10: 5109
B11: 16.918 | C11: 15.461 | D11: 0.9138787091 | E11: =[1]!AgePb76($D$11) -> 5110.496664 | I11: 5061
B12: 16.913 | C12: 15.455 | D12: 0.9137941229 | E12: =[1]!AgePb76($D$12) -> 5110.365914 | I12: 5050
D13: AVG | E13: =AVERAGE(E3:E12) -> 5110.223347 | I13: 5045
D14: MAX | E14: =MAX(E3:E12) -> 5111.649363 | I14: 5039
D15: MIN | E15: =MIN(E3:E12) -> 5109.109204 | I15: 5036
D16: STD DEV | E16: =STDEV(E3:E12) -> 0.6288831026 | I16: 5029
I17: 5012
I18: 5003
B19: 206Pb/204Pb | C19: 207Pb/204Pb | D19: 207Pb/206Pb | E19: 207Pb/206Pb | F19: TABLE 3 | I19: 4971
B20: Ratio | C20: Ratio | D20: Ratio | E20: Age | I20: 4966
B21: 20.36 | C21: 15.73 | D21: =(C21/B21) -> 0.7725933202 | E21: =[1]!AgePb76($D$21) -> 4872.03295 | I21: 4956
B22: 20.15 | C22: 15.72 | D22: 0.7801488834 | E22: =[1]!AgePb76($D$22) -> 4885.920583 | I22: 4950
B23: 19.97 | C23: 15.7 | D23: 0.7861792689 | E23: =[1]!AgePb76($D$23) -> 4896.90244 | I23: 4945
B24: 23.06 | C24: 15.91 | D24: 0.6899392888 | E24: =[1]!AgePb76($D$24) -> 4709.905945 | I24: 4936
B25: 19.44 | C25: 15.67 | D25: 0.8060699588 | E25: =[1]!AgePb76($D$25) -> 4932.499569 | I25: 4932
B26: 20.12 | C26: 15.68 | D26: 0.7793240557 | E26: =[1]!AgePb76($D$26) -> 4884.411476 | I26: 4925
B27: 18.84 | C27: 15.6 | D27: 0.8280254777 | E27: =[1]!AgePb76($D$27) -> 4970.722795 | I27: 4916
B28: 19.6 | C28: 15.72 | D28: 0.8020408163 | E28: =[1]!AgePb76($D$28) -> 4925.364918 | I28: 4904
B29: 19.31 | C29: 15.6 | D29: 0.8078715691 | E29: =[1]!AgePb76($D$29) -> 4935.677526 | I29: 4904
B30: 20.22 | C30: 15.74 | D30: 0.7784371909 | E30: =[1]!AgePb76($D$30) -> 4882.786966 | I30: 4901
B31: 19.06 | C31: 15.62 | D31: 0.8195173137 | E31: =[1]!AgePb76($D$31) -> 4956.039948 | I31: 4898
B32: 17.79 | C32: 15.58 | D32: 0.8757729061 | E32: =[1]!AgePb76($D$32) -> 5050.256831 | I32: 4897
D33: AVG | E33: =AVERAGE(E21:E32) -> 4908.543496 | I33: 4886
D34: MAX | E34: =MAX(E21:E32) -> 5050.256831 | I34: 4884
D35: MIN | E35: =MIN(E21:E32) -> 4709.905945 | I35: 4883
D36: STD DEV | E36: =STDEV(E21:E32) -> 80.04596243 | I36: 4872
I37: 4868
I38: 4856
B39: 206Pb/204Pb | C39: 207Pb/204Pb | D39: 207Pb/206Pb | E39: 207Pb/206Pb | F39: TABLE 4 | I39: 4710
B40: Ratio | C40: Ratio | D40: Ratio | E40: Age
B41: 19.885 | C41: 15.711 | D41: =(C41/B41) -> 0.790093035 | E41: =[1]!AgePb76($D$41) -> 4903.981862
B42: 20.472 | C42: 15.767 | D42: =(C42/B42) -> 0.7701738961 | E42: =[1]!AgePb76($D$42) -> 4867.555285
B43: 20.669 | C43: 15.788 | D43: =(C43/B43) -> 0.7638492428 | E43: =[1]!AgePb76($D$43) -> 4855.778989
B44: 17.872 | C44: 15.526 | D44: =(C44/B44) -> 0.868733214 | E44: =[1]!AgePb76($D$44) -> 5038.824181
B45: 17.881 | C45: 15.506 | D45: =(C45/B45) -> 0.8671774509 | E45: =[1]!AgePb76($D$45) -> 5036.284315
D46: AVG | E46: =AVERAGE(E41:E45) -> 4940.484927
D47: MAX | E47: =MAX(E41:E45) -> 5038.824181
D48: MIN | E48: =MIN(E41:E45) -> 4855.778989
D49: STD DEV | E49: =STDEV(E41:E45) -> 90.38035429
B52: 206Pb/204Pb | C52: 207Pb/204Pb | D52: 207Pb/206Pb | E52: 207Pb/206Pb | F52: TABLE 6
B53: Ratio | C53: Ratio | D53: Ratio | E53: Age
B54: 19.94 | C54: 15.75 | D54: =(C54/B54) -> 0.7898696088 | E54: =[1]!AgePb76($D$54) -> 4903.578724
B55: 20.02 | C55: 15.75 | D55: =(C55/B55) -> 0.7867132867 | E55: =[1]!AgePb76($D$55) -> 4897.870607
B56: 19.96 | C56: 15.74 | D56: 0.7885771543 | E56: =[1]!AgePb76($D$56) -> 4901.244298
B57: 18.8 | C57: 15.51 | D57: 0.825 | E57: =[1]!AgePb76($D$57) -> 4965.520071
B58: 18.23 | C58: 15.54 | D58: 0.8524410313 | E58: =[1]!AgePb76($D$58) -> 5011.983641
B59: 19.66 | C59: 15.67 | D59: 0.7970498474 | E59: =[1]!AgePb76($D$59) -> 4916.474038
B60: 19.19 | C60: 15.66 | D60: 0.8160500261 | E60: =[1]!AgePb76($D$60) -> 4950.009781
B61: 19.3 | C61: 15.69 | D61: 0.8129533679 | E61: =[1]!AgePb76($D$61) -> 4944.60112
B62: 17.86 | C62: 15.41 | D62: 0.8628219485 | E62: =[1]!AgePb76($D$62) -> 5029.147918
B63: 17.57 | C63: 15.5 | D63: 0.8821855435 | E63: =[1]!AgePb76($D$63) -> 5060.586575
B64: 17.73 | C64: 15.47 | D64: 0.8725324309 | E64: =[1]!AgePb76($D$64) -> 5045.006372
B65: 18.21 | C65: 15.43 | D65: 0.8473366282 | E65: =[1]!AgePb76($D$65) -> 5003.462205
D66: AVG | E66: =AVERAGE(E54:E65) -> 4969.123779
D67: MAX | E67: =MAX(E54:E65) -> 5060.586575
D68: MIN | E68: =MIN(E54:E65) -> 4897.870607
D69: STD DEV | E69: =STDEV(E54:E65) -> 59.14165109

Sheet Pb_207_12
B1: 206Pb/204Pb | D1: 207Pb/204Pb | F1: 207Pb/206Pb | G1: 207Pb/206Pb
B2: Ratio | D2: Ratio | F2: Ratio | G2: Age
A3: DR12-3 | B3: 18.4427 | C3: 7 | D3: 15.5351 | E3: 6 | F3: =(D3/B3) -> 0.8423441253 | G3: =[1]!AgePb76($F$4) -> 4992.905248 | H3: 0.703278 | I3: 13 | J3: 0.513029 | K3: 5 | L3: 7.6
A4: DR11-1 | B4: 18.4627 | C4: 29 | D4: 15.5282 | E4: 26 | F4: =(D4/B4) -> 0.8410579168 | G4: =[1]!AgePb76($F$4) -> 4992.905248 | H4: 0.703202 | I4: 4 | J4: 0.513076 | K4: 11 | L4: 8.5
A5: PL09-7 | B5: 18.4842 | C5: 18 | D5: 15.5213 | E5: 17 | F5: 0.8397063438 | G5: =[1]!AgePb76($F$5) -> 4990.621777 | H5: 0.703238 | I5: 3 | J5: 0.512996 | K5: 10 | L5: 7
A6: PL07-1 | B6: 18.5178 | C6: 21 | D6: 15.5382 | E6: 19 | F6: 0.8390953569 | G6: =[1]!AgePb76($F$6) -> 4989.588238 | H6: 0.703243 | I6: 5
A7: PL06-4 | B7: 18.5229 | C7: 11 | D7: 15.5311 | E7: 11 | F7: 0.8384810154 | G7: =[1]!AgePb76($F$7) -> 4988.548218 | H7: 0.70336 | I7: 4
A8: PL06-4 | B8: 18.5238 | C8: 11 | D8: 15.534 | E8: 11 | F8: 0.8385968322 | G8: =[1]!AgePb76($F$8) -> 4988.744347 | H8: 10 | I8: 7.2
A9: PL01-1 | B9: 18.6156 | C9: 70 | D9: 15.5443 | E9: 60 | F9: 0.8350147188 | G9: =[1]!AgePb76($F$9) -> 4982.664904 | H9: 0.703327 | I9: 9
A10: PL01-1 | B10: 18.6164 | C10: 7 | D10: 15.5444 | E10: 0.703327 | F10: 0.8349842075 | G10: =[1]!AgePb76($F$10) -> 4982.613002 | H10: 6 | I10: 7.6
A11: PL20-2 | B11: 18.4326 | C11: 12 | D11: 15.5255 | E11: 12 | F11: 0.8422848649 | G11: =[1]!AgePb76($F$11) -> 4994.974792 | H11: 0.703417 | I11: 5 | J11: 0.513017 | K11: 7 | L11: 7.4
A12: PL01-5 | B12: 18.4883 | C12: 13 | D12: 15.524 | E12: 14 | F12: 0.8396661673 | G12: =[1]!AgePb76($F$12) -> 4990.55384 | H12: 0.703239 | I12: 7 | J12: 0.513009 | K12: 6 | L12: 7.2
A13: PL03-2 | B13: 18.489 | C13: 21 | D13: 15.5321 | E13: 20 | F13: 0.8400724755 | G13: =[1]!AgePb76($F$13) -> 4991.240739 | H13: 0.703164 | I13: 6
A14: PL05-5 | B14: 18.4124 | C14: 18 | D14: 15.5178 | E14: 18 | F14: 0.842790728 | G14: =[1]!AgePb76($F$14) -> 4995.827121 | H14: 0.703098 | I14: 5 | J14: 0.513022 | K14: 8 | L14: 7.5
A15: DR06-2 | B15: 18.5414 | C15: 11 | D15: 15.5349 | E15: 11 | F15: 0.8378493533 | G15: =[1]!AgePb76($F$15) -> 4987.478032 | H15: 0.703218 | I15: 6 | J15: 0.513014 | K15: 11 | L15: 7.3
A16: DR06-1 | B16: 18.4232 | C16: 8 | D16: 15.5212 | E16: 8 | F16: 0.8424812193 | G16: =[1]!AgePb76($F$16) -> 4995.305694 | H16: 0.703214 | I16: 10 | J16: 0.513023 | K16: 9 | L16: 7.5
A17: PL18-7 | B17: 18.4491 | C17: 20 | D17: 15.5232 | E17: 23 | F17: 0.8414068979 | G17: =[1]!AgePb76($F$17) -> 4993.494215 | H17: 0.513013 | I17: 11 | J17: 7.3
A18: DR05-1 | B18: 18.3893 | C18: 22 | D18: 15.5198 | E18: 24 | F18: 0.8439581713 | G18: =[1]!AgePb76($F$18) -> 4997.792072 | H18: 0.703311 | I18: 21 | J18: 0.513023 | K18: 10 | L18: 7.5
A19: DR05-1va | B19: 18.3881 | C19: 10 | D19: 15.5191 | E19: 11 | F19: 0.8439751796 | G19: =[1]!AgePb76($F$19) -> 4997.820678 | H19: 0.703343 | I19: 5 | J19: 0.513016 | K19: 8 | L19: 7.4
A20: PL12-5 | B20: 18.3043 | C20: 10 | D20: 15.5029 | E20: 10 | F20: 0.8469539944 | G20: =[1]!AgePb76($F$20) -> 5002.82123 | H20: 0.703144 | I20: 3 | J20: 0.513027 | K20: 9 | L20: 7.4
A21: PL11-2 | B21: 18.3855 | C21: 18 | D21: 15.5128 | E21: 20 | F21: 0.8437518697 | G21: =[1]!AgePb76($F$21) -> 4997.445051 | H21: 0.703303 | I21: 5 | J21: 0.513037 | K21: 14 | L21: 7.8
A22: PL11-1 | B22: 18.3853 | C22: 9 | D22: 15.5117 | E22: 10 | F22: 0.8437012178 | G22: =[1]!AgePb76($F$22) -> 4997.359835 | H22: 0.703298 | I22: 10 | J22: 0.513007 | K22: 7 | L22: 7.2
A23: PL17-7 | B23: 18.2873 | C23: 10 | D23: 15.51 | E23: 10 | F23: 0.8481295763 | G23: =[1]!AgePb76($F$23) -> 5004.789546 | H23: 0.703238 | I23: 4 | J23: 0.513045 | K23: 10 | L23: 7.9
A24: DR02-3 | B24: 18.3748 | C24: 13 | D24: 15.5187 | E24: 13 | F24: 0.8445642946 | G24: =[1]!AgePb76($F$24) -> 4998.811114 | H24: 0.703266 | I24: 10 | J24: 0.513029 | K24: 10 | L24: 7.6
A25: DR02-2 | B25: 18.3683 | C25: 10 | D25: 15.5159 | E25: 11 | F25: 0.8447107245 | G25: =[1]!AgePb76($F$25) -> 4999.057182 | H25: 0.703274 | I25: 5 | J25: 0.513007 | K25: 10 | L25: 7.5
A26: DR03-1_vc | B26: 18.426 | C26: 12 | D26: 15.5209 | E26: 12 | F26: 0.8423369152 | G26: =[1]!AgePb76($F$26) -> 4995.062517 | H26: 0.703232 | I26: 10
A27: DR03-2 | B27: 18.4222 | C27: 12 | D27: 15.5195 | E27: 11 | F27: 0.8424346712 | G27: =[1]!AgePb76($F$27) -> 4995.227258 | H27: 0.703319 | I27: 8 | J27: 0.513015 | K27: 10 | L27: 7.4
A28: DR03-1 | B28: 18.3366 | C28: 19 | D28: 15.5075 | E28: 20 | F28: 0.8457129457 | G28: =[1]!AgePb76($F$28) -> 5000.740148 | H28: 60 | I28: 0.703144 | J28: 12 | K28: 0.513057 | L28: 11 | M28: 8.2
A29: DR10-1 | B29: 18.7031 | C29: 13 | D29: 15.5717 | E29: 13 | F29: 0.8325732098 | G29: =[1]!AgePb76($F$29) -> 4978.505353 | H29: 0.703945 | I29: 3 | J29: 0.512908 | K29: 4 | L29: 5.3
A30: DR07-1 | B30: 18.7927 | C30: 26 | D30: 15.5793 | E30: 27 | F30: 0.8290080723 | G30: =[1]!AgePb76($F$30) -> 4972.408156 | H30: 0.703612 | I30: 5 | J30: 0.512931 | K30: 4 | L30: 5.7
A31: DR07-1 | B31: 18.7909 | C31: 6 | D31: 15.5767 | E31: 38.6911 | F31: 0.828949119 | G31: =[1]!AgePb76($F$31) -> 4972.307098
A32: DR09-1 | B32: 18.7041 | C32: 19 | D32: 15.5708 | E32: 16 | F32: 0.8324805791 | G32: =[1]!AgePb76($F$32) -> 4978.347285 | H32: 0.703873 | I32: 5 | J32: 0.512906 | K32: 14 | L32: 5.2
A33: DR04-4 | B33: 18.5832 | C33: 16 | D33: 15.5517 | E33: 16 | F33: 0.8368687847 | G33: =[1]!AgePb76($F$33) -> 4985.815015 | H33: 0.703838 | I33: 3 | J33: 0.512935 | K33: 4 | L33: 5.8
A34: DR08-1 | B34: 18.7465 | C34: 15 | D34: 15.5716 | E34: 16 | F34: 0.8306403862 | G34: =[1]!AgePb76($F$34) -> 4975.203236 | H34: 0.703973 | I34: 4
A35: 18DS2 | B35: 18.8326 | C35: 10 | D35: 15.6011 | F35: 0.8284092478 | G35: =[1]!AgePb76($F$35) -> 4971.381296 | H35: 0.51285 | I35: 4.1
A36: 18DS4 | B36: 18.9396 | C36: 13 | D36: 15.6058 | F36: 0.8239772751 | G36: =[1]!AgePb76($F$36) -> 4963.756767 | H36: 0.512848 | I36: 4.1
A37: 25DS9-1 | B37: 19.0041 | C37: 11 | D37: 15.6066 | F37: 0.8212227888 | G37: =[1]!AgePb76($F$37) -> 4958.996095
A38: 17DS2 | B38: 18.9309 | C38: 8 | D38: 15.6049 | F38: 0.8243084058 | G38: =[1]!AgePb76($F$38) -> 4964.327932 | H38: 0.512832 | I38: 3.8
F39: AVG | G39: =AVERAGE(G3:G38) -> 4987.928897
F40: MAX | G40: =MAX(G3:G38) -> 5004.789546
F41: MIN | G41: =MIN(G3:G38) -> 4958.996095
F42: STD DEV | G42: =STDEV(G3:G38) -> 11.71988287

Sheet Pb_207_13
A1: Samplea Locality/area | C1: Formation | D1: Type/microband | E1: 206Pb/204Pb | F1: ±2σb | G1: 207Pb/204Pb | H1: ±2σb | I1: 207Pb/206Pb | J1: 207Pb/206Pb | K1: r1c | L1: r2d | O1: 5250.032554
A2: Northern Black Hills (South Dakota) Neoarchean (2.90?–2.56 Ga) | I2: Ratio | J2: Age | O2: 5209.374554
A3: N-1A-89 | B3: DeadmanMtn./Nemo | C3: NemoIronFm. | D3: BulkBIF | E3: 21.075 | F3: 0.013 | G3: 15.884 | H3: 0.012 | I3: =(G3/E3) -> 0.7536892052 | J3: =[1]!AgePb76($I$3) -> 4836.642048 | K3: 0.964 | L3: 0.938 | O3: 5208.911127
A4: N-1A-89 | B4: DeadmanMtn./Nemo | C4: NemoIronFm. | D4: BulkBIF | E4: 21.098 | F4: 0.041 | G4: 15.905 | H4: 0.032 | I4: =(G4/E4) -> 0.7538629254 | J4: =[1]!AgePb76($I$4) -> 4836.971564 | K4: 0.985 | L4: 0.951 | O4: 5189.911612
A5: BH-RF-3B1 | B5: DeadmanMtn./Nemo | C5: NemoIronFm. | D5: OxideBIF/Si | E5: 20.247 | F5: 0.01 | G5: 15.943 | H5: 0.01 | I5: 0.7874252976 | J5: =[1]!AgePb76($I$5) -> 4899.160385 | K5: 0.968 | L5: 0.936 | O5: 5182.772775
A6: BH-RF-3B2 | B6: DeadmanMtn./Nemo | C6: NemoIronFm. | D6: OxideBIF/Si | E6: 19.187 | F6: 0.012 | G6: 15.833 | H6: 0.011 | I6: 0.8251941419 | J6: =[1]!AgePb76($I$6) -> 4965.854533 | K6: 0.968 | L6: 0.927 | O6: 5170.455501
A7: BH-RF-3B3 | B7: DeadmanMtn./Nemo | C7: NemoIronFm. | D7: OxideBIF/Fe | E7: 19.779 | F7: 0.011 | G7: 15.879 | H7: 0.011 | I7: 0.802821174 | J7: =[1]!AgePb76($I$7) -> 4926.749719 | K7: 0.965 | L7: 0.935 | O7: 5166.400074
A8: P-1D-89 | B8: Piedmont/Nemo | C8: NemoIronFm. | D8: BulkBIF | E8: 15.023 | F8: 0.009 | G8: 15.159 | H8: 0.011 | I8: 1.009052786 | J8: =[1]!AgePb76($I$8) -> 5250.032554 | K8: 0.962 | L8: 0.93 | O8: 5164.373855
A9: NQBIF-1 | B9: Piedmont/Nemo | C9: NemoIronFm. | D9: BulkBIF | E9: 16.17 | F9: 0.019 | G9: 15.419 | H9: 0.02 | I9: 0.9535559678 | J9: =[1]!AgePb76($I$9) -> 5170.455501 | K9: 0.969 | L9: 0.958 | O9: 5164.011845
A10: NQ-BIF-2B1 | B10: Piedmont/Nemo | C10: NemoIronFm. | D10: OxideBIF/Fe | E10: 18.705 | F10: 0.013 | G10: 15.714 | H10: 0.012 | I10: 0.840096231 | J10: =[1]!AgePb76($I$10) -> 4991.280889 | K10: 0.968 | L10: 0.929 | O10: 5145.610764
A11: NQ-BIF-2B2 | B11: Piedmont/Nemo | C11: NemoIronFm. | D11: OxideBIF/Fe | E11: 19.994 | F11: 0.028 | G11: 15.852 | H11: 0.023 | I11: 0.7928378514 | J11: =[1]!AgePb76($I$11) -> 4908.924592 | K11: 0.981 | L11: 0.971 | O11: 5140.738275
A12: NQ-BIF-2B3 | B12: Piedmont/Nemo | C12: NemoIronFm. | D12: OxideBIF/Si | E12: 18.818 | F12: 0.023 | G12: 15.751 | H12: 0.02 | I12: 0.837017749 | J12: =[1]!AgePb76($I$12) -> 4986.067787 | K12: 0.98 | L12: 0.955 | O12: 5136.892097
A13: NQ-CR-2 | B13: Piedmont/Nemo | C13: Unnamed | D13: Mafic phyllite | E13: 16.261 | F13: 0.013 | G13: 15.439 | H13: 0.013 | I13: 0.9494496033 | J13: =[1]!AgePb76($I$13) -> 5164.373855 | K13: 0.969 | L13: 0.94 | O13: 5121.026234
A14: NQ-CR-2 r | B14: Piedmont/Nemo | C14: Unnamed | D14: Mafic phyllite | E14: 16.245 | F14: 0.008 | G14: 15.446 | H14: 0.01 | I14: 0.9508156356 | J14: =[1]!AgePb76($I$14) -> 5166.400074 | K14: 0.956 | L14: 0.929 | O14: 5095.814328
A15: N-7-89B1 | B15: Nemo | C15: BenchmarkIronFm. | D15: OxideBIF | E15: 40.647 | F15: 0.04 | G15: 18.208 | H15: 0.019 | I15: 0.4479543386 | J15: =[1]!AgePb76($I$15) -> 4078.42905 | K15: 0.969 | L15: 0.928 | O15: 5086.952607
A16: N-7-89B2 | B16: Nemo | C16: BenchmarkIronFm. | D16: OxideBIF | E16: 43.342 | F16: 0.037 | G16: 18.506 | H16: 0.017 | I16: 0.4269761432 | J16: =[1]!AgePb76($I$16) -> 4006.905795 | K16: 0.979 | L16: 0.95 | O16: 5081.662695
A17: N-7-89B3 | B17: Nemo | C17: BenchmarkIronFm. | D17: OxideBIF | E17: 40.65 | F17: 0.027 | G17: 18.238 | H17: 0.014 | I17: 0.4486592866 | J17: =[1]!AgePb76($I$17) -> 4080.768742 | K17: 0.962 | L17: 0.908 | O17: 5059.584302
A18: BH-RF-14B1 | B18: Nemo | C18: BenchmarkIronFm. | D18: OxideBIF/Si | E18: 35.41 | F18: 0.041 | G18: 17.405 | H18: 0.021 | I18: 0.491527817 | J18: =[1]!AgePb76($I$18) -> 4216.000611 | K18: 0.981 | L18: 0.963 | O18: 5038.150536
A19: BH-RF-14B1r | B19: Nemo | C19: BenchmarkIronFm. | D19: OxideBIF/Si | E19: 34.511 | F19: 0.042 | G19: 17.32 | H19: 0.022 | I19: 0.5018689693 | J19: =[1]!AgePb76($I$19) -> 4246.707937 | K19: 0.972 | L19: 0.958 | O19: 5037.334827
A20: BH-RF-14B2 | B20: Nemo | C20: BenchmarkIronFm. | D20: OxideBIF/Si | E20: 21.057 | F20: 0.016 | G20: 15.932 | H20: 0.014 | I20: 0.7566130028 | J20: =[1]!AgePb76($I$20) -> 4842.177215 | K20: 0.938 | L20: 0.825 | O20: 5032.522035
A21: BH-RF-14B3 | B21: Nemo | C21: BenchmarkIronFm. | D21: OxideBIF/Fe | E21: 38.378 | F21: 0.051 | G21: 17.851 | H21: 0.025 | I21: 0.465136276 | J21: =[1]!AgePb76($I$21) -> 4134.343961 | K21: 0.984 | L21: 0.964 | O21: 5020.316931
A22: N-5A-89B1 | B22: Nemo | C22: EstesFm.e | D22: OxideBIF/Si | E22: 22.854 | F22: 0.027 | G22: 16.273 | H22: 0.02 | I22: 0.7120416557 | J22: =[1]!AgePb76($I$22) -> 4755.21285 | K22: 0.98 | L22: 0.91 | O22: 5016.305554
A23: N-5A-89B1 r | B23: Nemo | C23: EstesFm.e | D23: Oxide BIF/Si | E23: 22.311 | F23: 0.025 | G23: 16.171 | H23: 0.019 | I23: 0.7247994263 | J23: =[1]!AgePb76($I$23) -> 4780.685654 | K23: 0.975 | L23: 0.959 | O23: 5009.939653
A24: N-5A-89B2 | B24: Nemo | C24: EstesFm.e | D24: OxideBIF/Fe | E24: 30.194 | F24: 0.027 | G24: 16.995 | H24: 0.016 | I24: 0.5628601709 | J24: =[1]!AgePb76($I$24) -> 4414.931225 | K24: 0.978 | L24: 0.952 | O24: 5000.204844
A25: N-5A-89B2r | B25: Nemo | C25: EstesFm.e | D25: OxideBIF/Fe | E25: 28.383 | F25: 0.034 | G25: 16.707 | H25: 0.021 | I25: 0.588626995 | J25: =[1]!AgePb76($I$25) -> 4480.173181 | K25: 0.975 | L25: 0.959 | O25: 4991.280889
A26: N-5A-89B3 | B26: Nemo | C26: EstesFm.e | D26: OxideBIF/Fe | E26: 26.164 | F26: 0.021 | G26: 16.598 | H26: 0.015 | I26: 0.6343831218 | J26: =[1]!AgePb76($I$26) -> 4588.794835 | K26: 0.966 | L26: 0.917 | O26: 4986.067787
A27: N-5A-89 B3 r | B27: Nemo | C27: Estes Fm.e | D27: Oxide BIF/Fe | E27: 25.401 | F27: 0.04 | G27: 16.485 | H27: 0.027 | I27: 0.6489901972 | J27: =[1]!AgePb76($I$27) -> 4621.707749 | K27: 0.988 | L27: 0.978 | O27: 4965.854533
A28: N-5A-89B4 | B28: Nemo | C28: EstesFm.e | D28: OxideBIF/Si | E28: 23.02 | F28: 0.021 | G28: 16.359 | H28: 0.016 | I28: 0.7106429192 | J28: =[1]!AgePb76($I$28) -> 4752.390452 | K28: 0.975 | L28: 0.936 | O28: 4965.661927
A29: N-5A-89B4r | B29: Nemo | C29: EstesFm.e | D29: OxideBIF/Si | E29: 22.599 | F29: 0.02 | G29: 16.279 | H29: 0.016 | I29: 0.720341608 | J29: =[1]!AgePb76($I$29) -> 4771.839756 | K29: 0.962 | L29: 0.933 | O29: 4930.272038
A30: N-3A-89B1 | B30: Nemo | C30: EstesFm.e | D30: OxideBIF/Si | E30: 21.033 | F30: 0.019 | G30: 16.128 | H30: 0.016 | I30: 0.7667950364 | J30: =[1]!AgePb76($I$30) -> 4861.276836 | K30: 0.959 | L30: 0.931 | O30: 4926.749719
A31: N-3A-89B2 | B31: Nemo | C31: EstesFm.e | D31: OxideBIF/Fe | E31: 25.013 | F31: 0.026 | G31: 16.487 | H31: 0.018 | I31: 0.6591372486 | J31: =[1]!AgePb76($I$31) -> 4644.107238 | K31: 0.975 | L31: 0.95 | O31: 4916.825804
A32: N-3A-89B3 | B32: Nemo | C32: EstesFm.e | D32: OxideBIF/Si | E32: 22.823 | F32: 0.031 | G32: 16.252 | H32: 0.023 | I32: 0.7120886825 | J32: =[1]!AgePb76($I$32) -> 4755.307638 | K32: 0.978 | L32: 0.917 | O32: 4908.924592
A33: N-3A-89B4 | B33: Nemo | C33: EstesFm.e | D33: OxideBIF/Fe | E33: 20.388 | F33: 0.031 | G33: 16.04 | H33: 0.026 | I33: 0.7867372964 | J33: =[1]!AgePb76($I$33) -> 4897.91412 | K33: 0.967 | L33: 0.95 | O33: 4899.160385
A34: N-3A-89B5 | B34: Nemo | C34: EstesFm.e | D34: OxideBIF/Si | E34: 24.598 | F34: 0.02 | G34: 16.436 | H34: 0.015 | I34: 0.6681844052 | J34: =[1]!AgePb76($I$34) -> 4663.769409 | K34: 0.957 | L34: 0.938 | O34: 4897.91412
A35: BH-RF-11 B1 | B35: Nemo | C35: EstesFm.e | D35: Oxide BIF/Si | E35: 21.229 | F35: 0.017 | G35: 16.23 | H35: 0.015 | I35: 0.7645202318 | J35: =[1]!AgePb76($I$35) -> 4857.033266 | K35: 0.958 | L35: 0.898 | O35: 4883.406028
A36: BH-RF-11 B2 | B36: Nemo | C36: EstesFm.e | D36: Oxide BIF/Si | E36: 21.428 | F36: 0.018 | G36: 16.385 | H36: 0.016 | I36: 0.7646537241 | J36: =[1]!AgePb76($I$36) -> 4857.282663 | K36: 0.919 | L36: 0.779 | O36: 4877.462652
A37: BH-RF-11 B3 | B37: Nemo | C37: EstesFm.e | D37: Oxide BIF/Fe | E37: 23.995 | F37: 0.017 | G37: 16.648 | H37: 0.014 | I37: 0.6938112107 | J37: =[1]!AgePb76($I$37) -> 4717.953983 | K37: 0.96 | L37: 0.934 | O37: 4871.256133
A38: BM-BIF-2B1 | B38: Nemo | C38: EstesFm.e | D38: OxideBIF/Si | E38: 20.994 | F38: 0.015 | G38: 16.211 | H38: 0.013 | I38: 0.7721730018 | J38: =[1]!AgePb76($I$38) -> 4871.256133 | K38: 0.961 | L38: 0.935 | O38: 4861.276836
A39: BM-BIF-2B2 | B39: Nemo | C39: EstesFm.e | D39: OxideBIF/Fe | E39: 22.152 | F39: 0.018 | G39: 16.324 | H39: 0.015 | I39: 0.7369086313 | J39: =[1]!AgePb76($I$39) -> 4804.424534 | K39: 0.968 | L39: 0.937 | O39: 4857.282663
A40: N-2A-89B1 | B40: Roubaix/Nemo | C40: UnnamedIronFm. | D40: SilicateBIF | E40: 24.141 | F40: 0.017 | G40: 16.127 | H40: 0.012 | I40: 0.6680336357 | J40: =[1]!AgePb76($I$40) -> 4663.444083 | K40: 0.964 | L40: 0.976 | O40: 4857.033266
A41: N-2A-89B2 | B41: Roubaix/Nemo | C41: Unnamedironfm. | D41: SilicateBIF | E41: 24.977 | F41: 0.016 | G41: 16.241 | H41: 0.012 | I41: 0.6502382192 | J41: =[1]!AgePb76($I$41) -> 4624.482907 | K41: 0.969 | L41: 0.932 | O41: 4842.177215
A42: N-2A-89B3 | B42: Roubaix/Nemo | C42: Unnamedironfm. | D42: SilicateBIF | E42: 30.487 | F42: 0.026 | G42: 16.779 | H42: 0.016 | I42: 0.5503657297 | J42: =[1]!AgePb76($I$42) -> 4382.12666 | K42: 0.973 | L42: 0.927 | O42: 4836.971564
A43: N-2A-89B4 | B43: Roubaix/Nemo | C43: Unnamedironfm. | D43: SilicateBIF | E43: 28.903 | F43: 0.066 | G43: 16.621 | H43: 0.039 | I43: 0.5750614123 | J43: =[1]!AgePb76($I$43) -> 4446.217195 | K43: 0.987 | L43: 0.973 | O43: 4836.642048
A44: N-8B-89B1 | B44: Roubaix/Nemo | C44: Unnamedironfm. | D44: SilicateBIF | E44: 21.541 | F44: 0.016 | G44: 16.109 | H44: 0.013 | I44: 0.7478297201 | J44: =[1]!AgePb76($I$44) -> 4825.479956 | K44: 0.961 | L44: 0.932 | O44: 4825.479956
A45: N-8B-89B2 | B45: Roubaix/Nemo | C45: Unnamedironfm. | D45: SilicateBIF | E45: 21.635 | F45: 0.015 | G45: 16.129 | H45: 0.013 | I45: 0.7455049688 | J45: =[1]!AgePb76($I$45) -> 4821.025529 | K45: 0.96 | L45: 0.926 | O45: 4821.025529
A46: N-8B-89B3 | B46: Roubaix/Nemo | C46: Unnamedironfm. | D46: SilicateBIF | E46: 22.15 | F46: 0.013 | G46: 16.163 | H46: 0.012 | I46: 0.7297065463 | J46: =[1]!AgePb76($I$46) -> 4790.356215 | K46: 0.968 | L46: 0.937 | O46: 4804.424534
A47: N-8B-89B4 | B47: Roubaix/Nemo | C47: Unnamedironfm. | D47: SilicateBIF | E47: 22.447 | F47: 0.013 | G47: 16.171 | H47: 0.011 | I47: 0.7204080723 | J47: =[1]!AgePb76($I$47) -> 4771.972074 | K47: 0.962 | L47: 0.916 | O47: 4790.356215
A48: N-8B-89B5 | B48: Roubaix/Nemo | C48: Unnamedironfm. | D48: SilicateBIF | E48: 23.373 | F48: 0.019 | G48: 16.216 | H48: 0.015 | I48: 0.6937919822 | J48: =[1]!AgePb76($I$48) -> 4717.914134 | K48: 0.962 | L48: 0.941 | O48: 4780.685654
A49: PD-8C-89B1 | B49: PactolaDam | C49: eq.toHayCreekgrst. | D49: SulfideBIF | E49: 19.758 | F49: 0.012 | G49: 15.752 | H49: 0.011 | I49: 0.7972466849 | J49: =[1]!AgePb76($I$49) -> 4916.825804 | K49: 0.951 | L49: 0.934 | O49: 4771.972074
A50: PD-8C-89B2 | B50: PactolaDam | C50: eq.toHayCreekgrst. | D50: SulfideBIF | E50: 20.278 | F50: 0.019 | G50: 15.792 | H50: 0.016 | I50: 0.7787750271 | J50: =[1]!AgePb76($I$50) -> 4883.406028 | K50: 0.966 | L50: 0.945 | O50: 4771.839756
A51: PD-8C-89B3 | B51: PactolaDam | C51: eq.toHayCreekgrst. | D51: SulfideBIF | E51: 20.538 | F51: 0.036 | G51: 15.928 | H51: 0.029 | I51: 0.7755380271 | J51: =[1]!AgePb76($I$51) -> 4877.462652 | K51: 0.979 | L51: 0.939 | O51: 4755.307638
A52: 25L88-1 B 3020B1 | B52: Lead,HomestakeMine | C52: HomestakeIronFm. | D52: SilicateBIF | E52: 16.61 | F52: 0.01 | G52: 15.466 | H52: 0.011 | I52: 0.9311258278 | J52: =[1]!AgePb76($I$52) -> 5136.892097 | K52: 0.968 | L52: 0.931 | O52: 4755.21285
A53: 25L88-1 B 3020B2 | B53: Lead,HomestakeMine | C53: HomestakeIronFm. | D53: SilicateBIF | E53: 16.513 | F53: 0.009 | G53: 15.471 | H53: 0.011 | I53: 0.9368982014 | J53: =[1]!AgePb76($I$53) -> 5145.610764 | K53: 0.97 | L53: 0.936 | O53: 4752.390452
A54: 25L88-1 B 3020B3 | B54: Lead,HomestakeMine | C54: HomestakeIronFm. | D54: SilicateBIF | E54: 16.553 | F54: 0.009 | G54: 15.455 | H54: 0.01 | I54: 0.9336676131 | J54: =[1]!AgePb76($I$54) -> 5140.738275 | K54: 0.944 | L54: 0.872 | O54: 4717.953983
A55: 25L88-1 B 3020 B4 | B55: Lead, Homestake Mine | C55: Homestake Iron Fm. | D55: Silicate BIF | E55: 16.242 | F55: 0.008 | G55: 15.417 | H55: 0.01 | I55: 0.9492057628 | J55: =[1]!AgePb76($I$55) -> 5164.011845 | K55: 0.956 | L55: 0.936 | O55: 4717.914134
A56: 25L88-1 B 3020B5 | B56: Lead,HomestakeMine | C56: HomestakeIronFm. | D56: SilicateBIF | E56: 17.299 | F56: 0.011 | G56: 15.548 | H56: 0.011 | I56: 0.8987802763 | J56: =[1]!AgePb76($I$56) -> 5086.952607 | K56: 0.964 | L56: 0.923 | O56: 4696.528667
A57: 19600-2845B1 | B57: Lead,HomestakeMine | C57: HomestakeIronFm. | D57: SilicateBIF | E57: 28.208 | F57: 0.05 | G57: 16.581 | H57: 0.03 | I57: 0.5878119682 | J57: =[1]!AgePb76($I$57) -> 4478.156975 | K57: 0.986 | L57: 0.978 | O57: 4663.769409
A58: 19600-2845B1 r | B58: Lead,HomestakeMine | C58: HomestakeIronFm. | D58: SilicateBIF | E58: 24.49 | F58: 0.018 | G58: 16.22 | H58: 0.014 | I58: 0.6623111474 | J58: =[1]!AgePb76($I$58) -> 4651.037801 | K58: 0.946 | L58: 0.925 | O58: 4663.444083
A59: 19600-2845B2 | B59: Lead,HomestakeMine | C59: HomestakeIronFm. | D59: SilicateBIF | E59: 38.095 | F59: 0.102 | G59: 17.462 | H59: 0.048 | I59: 0.4583803649 | J59: =[1]!AgePb76($I$59) -> 4112.630592 | K59: 0.988 | L59: 0.988 | O59: 4661.470286
A60: 19600-2845B2r | B60: Lead,HomestakeMine | C60: HomestakeIronFm. | D60: SilicateBIF | E60: 35.883 | F60: 0.037 | G60: 17.099 | H60: 0.019 | I60: 0.4765209152 | J60: =[1]!AgePb76($I$60) -> 4170.169965 | K60: 0.965 | L60: 0.951 | O60: 4651.037801
A61: 19600-2845B3 | B61: Lead,HomestakeMine | C61: HomestakeIronFm. | D61: SilicateBIF | E61: 23.587 | F61: 0.102 | G61: 16.123 | H61: 0.07 | I61: 0.6835545004 | J61: =[1]!AgePb76($I$61) -> 4696.528667 | K61: 0.993 | L61: 0.993 | O61: 4644.107238
A62: 19600-2845B3r | B62: Lead,HomestakeMine | C62: HomestakeIronFm. | D62: SilicateBIF | E62: 27.184 | F62: 0.03 | G62: 16.443 | H62: 0.019 | I62: 0.6048778693 | J62: =[1]!AgePb76($I$62) -> 4519.759279 | K62: 0.974 | L62: 0.951 | O62: 4624.482907
A63: 19600-2845B4 | B63: Lead,HomestakeMine | C63: HomestakeIronFm. | D63: Metatuff | E63: 15.672 | F63: 0.009 | G63: 15.363 | H63: 0.011 | I63: 0.9802833078 | J63: =[1]!AgePb76($I$63) -> 5209.374554 | K63: 0.954 | L63: 0.917 | O63: 4621.707749
A64: 19600-2845B4r | B64: Lead,HomestakeMine | C64: HomestakeIronFm. | D64: Metatuff | E64: 15.669 | F64: 0.006 | G64: 15.355 | H64: 0.008 | I64: 0.9799604314 | J64: =[1]!AgePb76($I$64) -> 5208.911127 | K64: 0.971 | L64: 0.956 | O64: 4597.368756
A65: 19600-2849B1 | B65: Lead,HomestakeMine | C65: HomestakeIronFm. | D65: SilicateBIF | E65: 33.601 | F65: 0.02 | G65: 17.083 | H65: 0.012 | I65: =(G65/E65) -> 0.5084074879 | J65: =[1]!AgePb76($I$65) -> 4265.772017 | K65: 0.959 | L65: 0.928 | O65: 4588.794835
A66: 19600-2849B3 | B66: Lead,HomestakeMine | C66: HomestakeIronFm. | D66: SilicateBIF | E66: 18.22 | F66: 0.01 | G66: 15.623 | H66: 0.01 | I66: 0.8574643249 | J66: =[1]!AgePb76($I$66) -> 5020.316931 | K66: 0.96 | L66: 0.929 | O66: 4519.759279
A67: 19600-2849B4 | B67: Lead,HomestakeMine | C67: HomestakeIronFm. | D67: SilicateBIF | E67: 15.913 | F67: 0.007 | G67: 15.385 | H67: 0.008 | I67: 0.9668195815 | J67: =[1]!AgePb76($I$67) -> 5189.911612 | K67: 0.97 | L67: 0.943 | O67: 4480.173181
A68: 19600-2960 | B68: Lead,HomestakeMine | C68: HomestakeIronFm. | D68: SilicateBIF/bulk | E68: 39.624 | F68: 0.112 | G68: 17.637 | H68: 0.05 | I68: 0.4451090248 | J68: =[1]!AgePb76($I$68) -> 4068.944661 | K68: 0.994 | L68: 0.991 | O68: 4478.156975
A69: 19600-2960B1 | B69: Lead,HomestakeMine | C69: HomestakeIronFm. | D69: SilicateBIF | E69: 24.282 | F69: 0.02 | G69: 16.199 | H69: 0.015 | I69: 0.6671196771 | J69: =[1]!AgePb76($I$69) -> 4661.470286 | K69: 0.972 | L69: 0.944 | O69: 4446.217195
A70: 19600-2960B2 | B70: Lead,HomestakeMine | C70: HomestakeIronFm. | D70: SilicateBIF | E70: 30.038 | F70: 0.238 | G70: 16.722 | H70: 0.133 | I70: 0.5566948532 | J70: =[1]!AgePb76($I$70) -> 4398.843204 | K70: 0.995 | L70: 0.997 | O70: 4434.799527
A71: 19600-2960B3 | B71: Lead,HomestakeMine | C71: HomestakeIronFm. | D71: SilicateBIF | E71: 25.591 | F71: 0.021 | G71: 16.331 | H71: 0.015 | I71: 0.6381540385 | J71: =[1]!AgePb76($I$71) -> 4597.368756 | K71: 0.972 | L71: 0.932 | O71: 4414.931225
A72: 19600-2960B4 | B72: Lead,HomestakeMine | C72: HomestakeIronFm. | D72: SilicateBIF | E72: 29.153 | F72: 0.033 | G72: 16.634 | H72: 0.02 | I72: 0.570575927 | J72: =[1]!AgePb76($I$72) -> 4434.799527 | K72: 0.979 | L72: 0.949 | O72: 4398.843204
A73: 19600-2964 | B73: Lead,HomestakeMine | C73: HomestakeIronFm. | D73: SilicateBIF/bulk | E73: 15.997 | F73: 0.007 | G73: 15.388 | H73: 0.009 | I73: 0.9619303619 | J73: =[1]!AgePb76($I$73) -> 5182.772775 | K73: 0.97 | L73: 0.947 | O73: 4382.12666
A74: PM-YM-1 | B74: Lead,HomestakeMine | C74: PoormanFm. | D74: Metabasalt | E74: 18.628 | F74: 0.015 | G74: 15.748 | H74: 0.014 | I74: 0.8453940305 | J74: =[1]!AgePb76($I$74) -> 5000.204844 | K74: 0.967 | L74: 0.942 | O74: 4265.772017
A75: Rochford | C75: RochfordIronFm. | D75: SilicateBIF | E75: 18.456 | F75: 0.012 | G75: 15.71 | H75: 0.012 | I75: 0.8512136974 | J75: =[1]!AgePb76($I$75) -> 5009.939653 | K75: 0.967 | L75: 0.935 | O75: 4246.707937
A76: R-3-89B2 | B76: Rochford | C76: RochfordIronFm. | D76: SilicateBIF | E76: 18.043 | F76: 0.007 | G76: 15.605 | H76: 0.007 | I76: 0.8648783462 | J76: =[1]!AgePb76($I$76) -> 5032.522035 | K76: 0.949 | L76: 0.962 | O76: 4216.000611
A77: R-3-89B3 | B77: Rochford | C77: RochfordIronFm. | D77: SilicateBIF | E77: 18.021 | F77: 0.01 | G77: 15.648 | H77: 0.011 | I77: 0.868320293 | J77: =[1]!AgePb76($I$77) -> 5038.150536 | K77: 0.959 | L77: 0.935 | O77: 4170.169965
A78: RF-BIF-1 B1 | B78: Rochford | C78: Rochford Iron Fm. | D78: Silicate BIF | E78: 19.627 | F78: 0.019 | G78: 15.796 | H78: 0.016 | I78: 0.8048097009 | J78: =[1]!AgePb76($I$78) -> 4930.272038 | K78: 0.971 | L78: 0.953 | O78: 4134.343961
A79: RF-BIF-2(D.C.) | B79: Rochford | C79: RochfordIronFm. | D79: SilicateBIF/bulk | E79: 19.129 | F79: 0.015 | G79: 15.783 | H79: 0.014 | I79: 0.8250823357 | J79: =[1]!AgePb76($I$79) -> 4965.661927 | K79: 0.966 | L79: 0.941 | O79: 4112.630592
A80: RF-BIF-3 | B80: Rochford | C80: Rochford Iron Fm. | D80: Metachert | E80: 17.375 | F80: 0.019 | G80: 15.558 | H80: 0.019 | I80: 0.8954244604 | J80: =[1]!AgePb76($I$80) -> 5081.662695 | K80: 0.972 | L80: 0.957 | O80: 4080.768742
A81: RC-GRST-1 | B81: Rochford | C81: Rapid Creek grst. | D81: Metabasalt/bulk | E81: 18.295 | F81: 0.058 | G81: 15.643 | H81: 0.05 | I81: 0.8550423613 | J81: =[1]!AgePb76($I$81) -> 5016.305554 | K81: 0.99 | L81: 0.988 | O81: 4078.42905
A82: SP-6 | B82: AtlanticCity | C82: SouthPassgrst. | D82: OxideBIF/bulk | E82: 17.968 | F82: 0.009 | G82: 15.593 | H82: 0.009 | I82: 0.8678205699 | J82: =[1]!AgePb76($I$82) -> 5037.334827 | K82: 0.961 | L82: 0.943 | O82: 4068.944661
A83: SP-6B1 | B83: AtlanticCity | C83: SouthPassgrst. | D83: OxideBIF/Fe | E83: 17.171 | F83: 0.009 | G83: 15.53 | H83: 0.01 | I83: 0.904431891 | J83: =[1]!AgePb76($I$83) -> 5095.814328 | K83: 0.957 | L83: 0.936 | O83: 4006.905795
A84: SP-6B2 | B84: AtlanticCity | C84: SouthPassgrst. | D84: OxideBIF/Si | E84: 16.826 | F84: 0.01 | G84: 15.492 | H84: 0.011 | I84: 0.9207179365 | J84: =[1]!AgePb76($I$84) -> 5121.026234 | K84: 0.964 | L84: 0.931
A85: SP-6B3 | B85: AtlanticCity | C85: SouthPassgrst. | D85: OxideBIF/Fe | E85: 17.756 | F85: 0.009 | G85: 15.653 | H85: 0.01 | I85: 0.8815611624 | J85: =[1]!AgePb76($I$85) -> 5059.584302 | K85: 0.968 | L85: 0.935
I86: AVG | J86: =AVERAGE(J1:J85) -> 4776.559938
I87: MAX | J87: =MAX(J1:J85) -> 5250.032554
I88: MIN | J88: =MIN(J1:J85) -> 4006.905795
I89: STD DEV | J89: =STDEV(J1:J85) -> 320.7649841

Sheet Pb_207_14
A1: Sample | B1: 206Pb/204Pb | C1: 207Pb/204Pb | D1: 207Pb/206Pb | E1: 207Pb/206Pb
A2: Name | B2: Ratio | C2: Ratio | D2: Ratio | E2: Age
A3: C1-1/L1 | B3: 17.717 | C3: 15.868 | D3: =(C3/B3) -> 0.8956369589 | E3: =[1]!AgePb76($D$3) -> 5081.998288
A4: C1-2/L1 | B4: 17.513 | C4: 15.843 | D4: =(C4/B4) -> 0.9046422657 | E4: =[1]!AgePb76($D$4) -> 5096.143061
A5: C1-3/L1 | B5: 18.322 | C5: 15.963 | D5: 0.8712476804 | E5: =[1]!AgePb76($D$5) -> 5042.918993
A6: C1-4/L1 | B6: 17.76 | C6: 15.888 | D6: 0.8945945946 | E6: =[1]!AgePb76($D$6) -> 5080.351301
A7: C1-5/L1 | B7: 18.214 | C7: 15.951 | D7: 0.8757549138 | E7: =[1]!AgePb76($D$7) -> 5050.227736
A8: C1-1/L2 | B8: 19.117 | C8: 16.09 | D8: 0.8416592562 | E8: =[1]!AgePb76($D$8) -> 4993.919953
A9: C1-2/L2 | B9: 19.377 | C9: 16.12 | D9: 0.831914125 | E9: =[1]!AgePb76($D$9) -> 4977.380261
A10: C1-3/L2 | B10: 19.914 | C10: 16.217 | D10: 0.8143517124 | E10: =[1]!AgePb76($D$10) -> 4947.046194
A11: C1-5/L2 | B11: 20.069 | C11: 16.241 | D11: 0.8092580597 | E11: =[1]!AgePb76($D$11) -> 4938.118101
A12: C1-C1/L2 | B12: 15.501 | C12: 15.482 | D12: 0.9987742726 | E12: =[1]!AgePb76($D$12) -> 5235.648946
A13: C1-C2/L1 | B13: 15.308 | C13: 15.431 | D13: 1.008035014 | E13: =[1]!AgePb76($D$13) -> 5248.615222
A14: C1-1/R | B14: 19.002 | C14: 16.01 | D14: 0.8425428902 | E14: =[1]!AgePb76($D$14) -> 4995.409607
A15: C1-3/R | B15: 19.191 | C15: 16.036 | D15: 0.8356000208 | E15: =[1]!AgePb76($D$15) -> 4983.660151
A16: C2-1/L1 | B16: 17.427 | C16: 15.831 | D16: 0.9084179721 | E16: =[1]!AgePb76($D$16) -> 5102.029265
A17: C2-2/L1 | B17: 17.232 | C17: 15.793 | D17: 0.916492572 | E17: =[1]!AgePb76($D$17) -> 5114.530754
A18: C2-3/L1 | B18: 17.633 | C18: 15.866 | D18: 0.8997901662 | E18: =[1]!AgePb76($D$18) -> 5088.54044
A19: C2-5/L1 | B19: 18.339 | C19: 15.988 | D19: 0.8718032608 | E19: =[1]!AgePb76($D$19) -> 5043.822064
A20: C2-1/L2 | B20: 17.868 | C20: 15.904 | D20: 0.8900828296 | E20: =[1]!AgePb76($D$20) -> 5073.198943
A21: C2-2/L2 | B21: 17.927 | C21: 15.913 | D21: 0.8876554917 | E21: =[1]!AgePb76($D$21) -> 5069.335037
A22: C2-4/L2 | B22: 17.629 | C22: 15.779 | D22: 0.8950592773 | E22: =[1]!AgePb76($D$22) -> 5081.085774
A23: C2-5/L2 | B23: 18.168 | C23: 15.597 | D23: 0.8584874505 | E23: =[1]!AgePb76($D$23) -> 5022.007869
A24: C2-C1/L1 | B24: 16.058 | C24: 15.587 | D24: 0.9706688255 | E24: =[1]!AgePb76($D$24) -> 5195.505141
A25: C2-C2/L1 | B25: 17.039 | C25: 15.77 | D25: 0.9255237983 | E25: =[1]!AgePb76($D$25) -> 5128.375808
A26: C2-C1/L2 | B26: 16.143 | C26: 15.592 | D26: 0.9658675587 | E26: =[1]!AgePb76($D$26) -> 5188.524545
A27: C2-5/R2 | B27: 18.682 | C27: 16.036 | D27: 0.8583663419 | E27: =[1]!AgePb76($D$27) -> 5021.807822
A28: C2-1/31 | B28: 18.027 | C28: 15.893 | D28: 0.8816220114 | E28: =[1]!AgePb76($D$28) -> 5059.682011
A29: M-I/L1 | B29: 17.799 | C29: 15.551 | D29: 0.8737007697 | E29: =[1]!AgePb76($D$29) -> 5046.901783
A30: M-2/L1 | B30: 14.391 | C30: 14.951 | D30: 1.03891321 | E30: =[1]!AgePb76($D$30) -> 5290.956755
A31: M-3/L1 | B31: 15.715 | C31: 15.183 | D31: 0.9661469933 | E31: =[1]!AgePb76($D$31) -> 5188.931823
A32: M-4/L1 | B32: 14.269 | C32: 14.933 | D32: 1.046534445 | E32: =[1]!AgePb76($D$32) -> 5301.202885
A33: M-S/L1 | B33: 19.322 | C33: 15.885 | D33: 0.8221198634 | E33: =[1]!AgePb76($D$33) -> 4960.548401
A34: M-6/L1 | B34: 19.398 | C34: 16.033 | D34: 0.8265285081 | E34: =[1]!AgePb76($D$34) -> 4968.151081
A35: M-1/L2 | B35: 18.465 | C35: 15.704 | D35: 0.8504738695 | E35: =[1]!AgePb76($D$35) -> 5008.706039
A36: M-2/L2 | B36: 14.71 | C36: 15.033 | D36: 1.021957852 | E36: =[1]!AgePb76($D$36) -> 5267.874053
A37: M-3/L2 | B37: 16.548 | C37: 15.367 | D37: 0.9286318588 | E37: =[1]!AgePb76($D$37) -> 5133.107449
A38: M-4/L2 | B38: 14.475 | C38: 14.986 | D38: 1.035302245 | E38: =[1]!AgePb76($D$38) -> 5286.074365
A39: M-5/L2 | B39: 19.542 | C39: 15.536 | D39: 0.7950056289 | E39: =[1]!AgePb76($D$39) -> 4912.815363
A40: M-6/L2 | B40: 14.552 | C40: 15.01 | D40: 1.031473337 | E40: =[1]!AgePb76($D$40) -> 5280.87761
A41: M-7/L2 | B41: 19.651 | C41: 15.98 | D41: 0.8131901684 | E41: =[1]!AgePb76($D$41) -> 4945.015492
A42: M-C2/L1 | B42: 15.545 | C42: 15.206 | D42: 0.9781923448 | E42: =[1]!AgePb76($D$42) -> 5206.370506
A43: M-C2/L1 | B43: 14.064 | C43: 14.904 | D43: 1.059726962 | E43: =[1]!AgePb76($D$43) -> 5318.754346
A44: M-4/R | B44: 14.43 | C44: 14.956 | D44: 1.036451836 | E44: =[1]!AgePb76($D$44) -> 5287.630678
A45: M-5/R | B45: 20.912 | C45: 16.163 | D45: 0.7729055088 | E45: =[1]!AgePb76($D$45) -> 4872.609634
D46: AVG | E46: =AVERAGE(E3:E45) -> 5096.195617
D47: MAX | E47: =MAX(E3:E45) -> 5318.754346
D48: MIN | E48: =MIN(E3:E45) -> 4872.609634
D49: STD DEV | E49: =STDEV(E3:E45) -> 121.3407226

Sheet Pb_207_15
A1: Sample | B1: 206Pb/204Pb | D1: 207Pb/204Pb | F1: 207Pb/206Pb | G1: 207Pb/206Pb | H1: Table 3
A2: Name | B2: Ratio | D2: Ratio | F2: Ratio | G2: Age
A3: 001A | B3: 14.998 | C3: 0.016 | D3: 14.867 | E3: 0.018 | F3: =(D3/B3) -> 0.9912655021 | G3: =[1]!AgePb76($F$3) -> 5225.042023
A4: 001B | B4: 16.114 | C4: 0.016 | D4: 15.076 | E4: 0.018 | F4: =(D4/B4) -> 0.9355839643 | G4: =[1]!AgePb76($F$4) -> 5143.630734
A5: 001C | B5: 16.229 | C5: 0.016 | D5: 15.149 | E5: 0.018 | F5: 0.9334524616 | G5: =[1]!AgePb76($F$5) -> 5140.413142
A6: 001D | B6: 16.081 | C6: 0.016 | D6: 15.119 | E6: 0.018 | F6: 0.9401778496 | G6: =[1]!AgePb76($F$6) -> 5150.539081
A7: 002A | B7: 15.601 | C7: 0.016 | D7: 15.05 | E7: 0.018 | F7: 0.9646817512 | G7: =[1]!AgePb76($F$7) -> 5186.794838
A8: 002B | B8: 16.091 | C8: 0.016 | D8: 15.146 | E8: 0.018 | F8: 0.9412715182 | G8: =[1]!AgePb76($F$8) -> 5152.178486
A9: 002C | B9: 15.22 | C9: 0.016 | D9: 15.006 | E9: 0.018 | F9: 0.9859395532 | G9: =[1]!AgePb76($F$9) -> 5217.466941
A10: 002D | B10: 15.804 | C10: 0.016 | D10: 15.074 | E10: 0.018 | F10: 0.9538091622 | G10: =[1]!AgePb76($F$10) -> 5170.829582
A11: 002E | B11: 15.077 | C11: 0.016 | D11: 14.964 | E11: 0.018 | F11: 0.9925051403 | G11: =[1]!AgePb76($F$11) -> 5226.798984
A12: 003A | B12: 13.7 | C12: 0.014 | D12: 14.577 | E12: 0.018 | F12: 1.064014599 | G12: =[1]!AgePb76($F$12) -> 5324.409048
A13: 003B | B13: 13.585 | C13: 0.014 | D13: 14.583 | E13: 0.018 | F13: 1.073463379 | G13: =[1]!AgePb76($F$13) -> 5336.786051
A14: 003C | B14: 13.534 | C14: 0.014 | D14: 14.551 | E14: 0.018 | F14: 1.075144082 | G14: =[1]!AgePb76($F$14) -> 5338.975567
A15: 005A | B15: 13.985 | C15: 0.014 | D15: 14.673 | E15: 0.018 | F15: 1.049195567 | G15: =[1]!AgePb76($F$15) -> 5304.762002
A16: 006A | B16: 33.74 | C16: 0.034 | D16: 18.262 | E16: 0.022 | F16: 0.5412566686 | G16: =[1]!AgePb76($F$16) -> 4357.700106
A17: 006B | B17: 34.15 | C17: 0.034 | D17: 18.304 | E17: 0.022 | F17: 0.535988287 | G17: =[1]!AgePb76($F$17) -> 4343.369206
A18: 006C | B18: 35.648 | C18: 0.036 | D18: 18.545 | E18: 0.022 | F18: 0.5202255386 | G18: =[1]!AgePb76($F$18) -> 4299.565566
A19: 006D | B19: 35.029 | C19: 0.036 | D19: 18.476 | E19: 0.022 | F19: 0.5274486854 | G19: =[1]!AgePb76($F$19) -> 4319.813748
A20: 008A | B20: 20.121 | C20: 0.02 | D20: 15.82 | E20: 0.02 | F20: 0.7862432285 | G20: =[1]!AgePb76($F$20) -> 4897.018435
A21: 008B | B21: 19.649 | C21: 0.02 | D21: 15.752 | E21: 0.02 | F21: 0.8016692961 | G21: =[1]!AgePb76($F$21) -> 4924.705125
A22: 008C | B22: 17.422 | C22: 0.018 | D22: 15.425 | E22: 0.018 | F22: 0.8853748135 | G22: =[1]!AgePb76($F$22) -> 5065.694362
A23: 008D | B23: 17.86 | C23: 0.018 | D23: 15.519 | E23: 0.018 | F23: 0.868924972 | G23: =[1]!AgePb76($F$23) -> 5039.136902
F24: AVG | G24: =AVERAGE(G3:G23) -> 5007.88714
F25: MAX | G25: =MAX(G3:G23) -> 5338.975567
F26: MIN | G26: =MIN(G3:G23) -> 4299.565566
F27: STD DEV | G27: =STDEV(G3:G23) -> 356.6409581
A29: Sample | B29: 206Pb/204Pb | D29: 207Pb/204Pb | F29: 207Pb/206Pb | G29: 207Pb/206Pb | H29: Table 4
A30: Name | B30: Ratio | D30: Ratio | F30: Ratio | G30: Age
A31: #3-A | B31: 17.081 | C31: 0.016 | D31: 15.614 | E31: 0.016 | F31: =(D31/B31) -> 0.9141150986 | G31: =[1]!AgePb76($F$31) -> 5110.861997
A32: #3-B | B32: 17.497 | C32: 0.018 | D32: 15.694 | E32: 0.02 | F32: =(D32/B32) -> 0.8969537635 | G32: =[1]!AgePb76($F$32) -> 5084.076002
A33: #3-B-Res | B33: 22.416 | C33: 0.022 | D33: 16.36 | E33: 0.02 | F33: 0.7298358315 | G33: =[1]!AgePb76($F$33) -> 4790.610061
A34: #2-A | B34: 15.956 | C34: 0.024 | D34: 15.433 | E34: 0.026 | F34: 0.9672223615 | G34: =[1]!AgePb76($F$34) -> 5190.498014
A35: #2-B | B35: 16.232 | C35: 0.016 | D35: 15.501 | E35: 0.02 | F35: 0.9549655002 | G35: =[1]!AgePb76($F$35) -> 5172.536671
A36: #2-B-Res | B36: 16.909 | C36: 0.022 | D36: 15.595 | E36: 0.028 | F36: 0.9222899048 | G36: =[1]!AgePb76($F$36) -> 5123.434699
A37: #2-C | B37: 16.71 | C37: 0.016 | D37: 15.559 | E37: 0.02 | F37: 0.9311190904 | G37: =[1]!AgePb76($F$37) -> 5136.881887
A38: #2-C-Res | B38: 17.957 | C38: 0.03 | D38: 15.799 | E38: 0.072 | F38: 0.8798240241 | G38: =[1]!AgePb76($F$38) -> 5056.791835
A39: #1-A | B39: 18.627 | C39: 0.048 | D39: 15.875 | E39: 0.05 | F39: 0.8522574757 | G39: =[1]!AgePb76($F$39) -> 5011.678148
A40: #1-B | B40: 18.675 | C40: 0.018 | D40: 15.876 | E40: 0.02 | F40: 0.8501204819 | G40: =[1]!AgePb76($F$40) -> 5008.116387
A41: #1-B-Res | B41: 21.802 | C41: 0.022 | D41: 16.291 | E41: 0.02 | F41: 0.7472250252 | G41: =[1]!AgePb76($F$41) -> 4824.32273
A42: #1-C | B42: 18.785 | C42: 0.018 | D42: 15.908 | E42: 0.02 | F42: 0.8468458877 | G42: =[1]!AgePb76($F$42) -> 5002.640077
A43: #1-C-Res | B43: 23.221 | C43: 0.134 | D43: 16.53 | E43: 0.11 | F43: 0.7118556479 | G43: =[1]!AgePb76($F$43) -> 4754.837861
F44: AVG | G44: =AVERAGE(G31:G43) -> 5020.56049
F45: MAX | G45: =MAX(G31:G43) -> 5190.498014
F46: MIN | G46: =MIN(G31:G43) -> 4754.837861
F47: STD DEV | G47: =STDEV(G31:G43) -> 144.9541455

Sheet Pb_207_16
B1: 206Pb/204Pb | D1: 207Pb/206Pb | F1: 207Pb/206Pb | G1: 207Pb/206Pb | I1: 5122.990853
B2: Ratio | D2: Ratio | F2: Ratio | G2: Age | I2: 5096.701873
A3: Q725.1.1 | B3: 0.049 | C3: 0.0031 | D3: 0.799 | E3: 0.058 | F3: =(D3) -> 0.799 | G3: =[1]!AgePb76($F$3) -> 4919.95506 | I3: 5035.994309
A4: Q725.1.2 | B4: 0.0519 | C4: 0.0017 | D4: 0.843 | E4: 0.023 | F4: =(D4) -> 0.843 | G4: =[1]!AgePb76($F$4) -> 4996.179564 | I4: 5034.358846
A5: Q725.1.3 | B5: 0.0554 | C5: 0.0043 | D5: 0.836 | E5: 0.08 | F5: 0.836 | G5: =[1]!AgePb76($F$5) -> 4984.339849 | I5: 5024.503772
A6: Q727.2.1 | B6: 0.0246 | C6: 0.0051 | D6: 0.544 | E6: 0.061 | F6: 0.544 | G6: =[1]!AgePb76($F$6) -> 4365.102933 | I6: 5021.202518
A7: Q727.2.2 | B7: 0.0184 | C7: 0.005 | D7: 0.433 | E7: 0.033 | F7: 0.433 | G7: =[1]!AgePb76($F$7) -> 4027.829019 | I7: 5019.548826
A8: Q727.5.1 | B8: 0.0542 | C8: 0.0044 | D8: 0.807 | E8: 0.083 | F8: 0.807 | G8: =[1]!AgePb76($F$8) -> 4934.141061 | I8: 5017.893083
A9: Q727.5.2 | B9: 0.0518 | C9: 0.0028 | D9: 0.819 | E9: 0.05 | F9: 0.819 | G9: =[1]!AgePb76($F$9) -> 4955.14198 | I9: 5016.235286
A10: Q727.6.1 | B10: 0.0453 | C10: 0.0051 | D10: 0.801 | E10: 0.105 | F10: 0.801 | G10: =[1]!AgePb76($F$10) -> 4923.515682 | I10: 5016.235286
A11: Q727.6.2 | B11: 0.054 | C11: 0.0022 | D11: 0.821 | E11: 0.056 | F11: 0.821 | G11: =[1]!AgePb76($F$11) -> 4958.6103 | I11: 5014.575428
A12: Q727.6.3 | B12: 0.0474 | C12: 0.0063 | D12: 0.776 | E12: 0.078 | F12: 0.776 | G12: =[1]!AgePb76($F$12) -> 4878.312483 | I12: 5012.913505
A13: Q727.7.1 | B13: 0.0479 | C13: 0.0014 | D13: 0.812 | E13: 0.04 | F13: 0.812 | G13: =[1]!AgePb76($F$13) -> 4942.931543 | I13: 5004.572734
A14: Q727.7.2 | B14: 0.0538 | C14: 0.0012 | D14: 0.845 | E14: 0.022 | F14: 0.845 | G14: =[1]!AgePb76($F$14) -> 4999.543161 | I14: 5004.572734
A15: Q727.7.3 | B15: 0.0474 | C15: 0.002 | D15: 0.858 | E15: 0.02 | F15: 0.858 | G15: =[1]!AgePb76($F$15) -> 5021.202518 | I15: 5001.22179
A16: Q727.7.4 | B16: 0.0259 | C16: 0.0035 | D16: 0.616 | E16: 0.1 | F16: 0.616 | G16: =[1]!AgePb76($F$16) -> 4546.198753 | I16: 4999.543161
A17: Q727.7.5 | B17: 0.048 | C17: 0.0038 | D17: 0.81 | E17: 0.055 | F17: 0.81 | G17: =[1]!AgePb76($F$17) -> 4939.422278 | I17: 4996.179564
A18: Q727.7.6 | B18: 0.0499 | C18: 0.0029 | D18: 0.821 | E18: 0.031 | F18: 0.821 | G18: =[1]!AgePb76($F$18) -> 4958.6103 | I18: 4996.179564
A19: Q727.8.1 | B19: 0.0501 | C19: 0.0045 | D19: 0.749 | E19: 0.052 | F19: 0.749 | G19: =[1]!AgePb76($F$19) -> 4827.71673 | I19: 4994.494585
A20: Q727.9.1 | B20: 0.0338 | C20: 0.0058 | D20: 0.649 | E20: 0.044 | F20: 0.649 | G20: =[1]!AgePb76($F$20) -> 4621.729569 | I20: 4992.807478
A21: Q727.9.2 | B21: 0.0406 | C21: 0.0063 | D21: 0.712 | E21: 0.096 | F21: 0.712 | G21: =[1]!AgePb76($F$21) -> 4755.128882 | I21: 4984.339849
A22: Q728.1.1 | B22: 0.0506 | C22: 0.0023 | D22: 0.749 | E22: 0.024 | F22: 0.749 | G22: =[1]!AgePb76($F$22) -> 4827.71673 | I22: 4975.818233
A23: Q728.1.3 | B23: 0.0584 | C23: 0.0034 | D23: 0.848 | E23: 0.069 | F23: 0.848 | G23: =[1]!AgePb76($F$23) -> 5004.572734 | I23: 4958.6103
A24: Q728.8.1 | B24: 0.0526 | C24: 0.0047 | D24: 0.79 | E24: 0.07 | F24: 0.79 | G24: =[1]!AgePb76($F$24) -> 4903.81401 | I24: 4958.6103
A25: Q729.1.1 | B25: 0.0589 | C25: 0.0091 | D25: 0.798 | E25: 0.121 | F25: 0.798 | G25: =[1]!AgePb76($F$25) -> 4918.171191 | I25: 4958.6103
A26: Q729.1.2 | B26: 0.0517 | C26: 0.0023 | D26: 0.846 | E26: 0.047 | F26: 0.846 | G26: =[1]!AgePb76($F$26) -> 5001.22179 | I26: 4955.14198
A27: Q729.1.3 | B27: 0.0576 | C27: 0.0045 | D27: 0.841 | E27: 0.077 | F27: 0.841 | G27: =[1]!AgePb76($F$27) -> 4992.807478 | I27: 4948.178242
A28: Q729.7.1 | B28: 0.0536 | C28: 0.0007 | D28: 0.831 | E28: 0.022 | F28: 0.831 | G28: =[1]!AgePb76($F$28) -> 4975.818233 | I28: 4942.931543
A29: Q729.8.1 | B29: 0.0533 | C29: 0.0016 | D29: 0.803 | E29: 0.026 | F29: 0.803 | G29: =[1]!AgePb76($F$29) -> 4927.066857 | I29: 4941.178061
A30: Q729.8.2 | B30: 0.0498 | C30: 0.0019 | D30: 0.866 | E30: 0.023 | F30: 0.866 | G30: =[1]!AgePb76($F$30) -> 5034.358846 | I30: 4939.422278
A31: Q730.1.1 | B31: 0.056 | C31: 0.0038 | D31: 0.799 | E31: 0.07 | F31: 0.799 | G31: =[1]!AgePb76($F$31) -> 4919.95506 | I31: 4935.903784
A32: Q730.1.2 | B32: 0.0518 | C32: 0.0037 | D32: 0.856 | E32: 0.086 | F32: 0.856 | G32: =[1]!AgePb76($F$32) -> 5017.893083 | I32: 4934.141061
A33: Q731.1.1 | B33: 0.057 | C33: 0.0041 | D33: 0.922 | E33: 0.033 | F33: 0.922 | G33: =[1]!AgePb76($F$33) -> 5122.990853 | I33: 4927.066857
A34: Q731.1.2 | B34: 0.057 | C34: 0.0051 | D34: 0.842 | E34: 0.094 | F34: 0.842 | G34: =[1]!AgePb76($F$34) -> 4994.494585 | I34: 4927.066857
A35: Q733.1.1 | B35: 0.056 | C35: 0.004 | D35: 0.821 | E35: 0.047 | F35: 0.821 | G35: =[1]!AgePb76($F$35) -> 4958.6103 | I35: 4923.515682
A36: Q733.8.1 | B36: 0.0529 | C36: 0.0027 | D36: 0.815 | E36: 0.02 | F36: 0.815 | G36: =[1]!AgePb76($F$36) -> 4948.178242 | I36: 4919.95506
A37: R727.10 | B37: 0.0563 | C37: 0.0148 | D37: 0.808 | E37: 0.088 | F37: 0.808 | G37: =[1]!AgePb76($F$37) -> 4935.903784 | I37: 4919.95506
A38: R727.11 | B38: 0.0529 | C38: 0.0037 | D38: 0.86 | E38: 0.039 | F38: 0.86 | G38: =[1]!AgePb76($F$38) -> 5024.503772 | I38: 4918.171191
A39: R727.8 | B39: 0.0512 | C39: 0.0126 | D39: 0.853 | E39: 0.064 | F39: 0.853 | G39: =[1]!AgePb76($F$39) -> 5012.913505 | I39: 4907.417765
A40: R727.9 | B40: 0.0252 | C40: 0.0095 | D40: 0.631 | E40: 0.056 | F40: 0.631 | G40: =[1]!AgePb76($F$40) -> 4581.055985 | I40: 4903.81401
A41: R728.2 | B41: 0.0472 | C41: 0.0033 | D41: 0.792 | E41: 0.025 | F41: 0.792 | G41: =[1]!AgePb76($F$41) -> 4907.417765 | I41: 4878.312483
A42: R733.2 | B42: 0.0531 | C42: 0.0041 | D42: 0.855 | E42: 0.04 | F42: 0.855 | G42: =[1]!AgePb76($F$42) -> 5016.235286 | I42: 4827.71673
A43: C39.1.1 | B43: 0.0544 | C43: 0.004 | D43: 0.854 | E43: 0.055 | F43: 0.854 | G43: =[1]!AgePb76($F$43) -> 5014.575428 | I43: 4827.71673
A44: C39.1.2 | B44: 0.0505 | C44: 0.0069 | D44: 0.811 | E44: 0.063 | F44: 0.811 | G44: =[1]!AgePb76($F$44) -> 4941.178061 | I44: 4761.162794
A45: C39.2.1 | B45: 0.0558 | C45: 0.0076 | D45: 0.857 | E45: 0.029 | F45: 0.857 | G45: =[1]!AgePb76($F$45) -> 5019.548826 | I45: 4755.128882
A46: C39.2.2 | B46: 0.0548 | C46: 0.0065 | D46: 0.855 | E46: 0.027 | F46: 0.855 | G46: =[1]!AgePb76($F$46) -> 5016.235286 | I46: 4621.729569
A47: C39.2.3 | B47: 0.055 | C47: 0.0026 | D47: 0.843 | E47: 0.024 | F47: 0.843 | G47: =[1]!AgePb76($F$47) -> 4996.179564 | I47: 4585.636324
A48: C44.1 | B48: 0.0554 | C48: 0.0039 | D48: 0.848 | E48: 0.03 | F48: 0.848 | G48: =[1]!AgePb76($F$48) -> 5004.572734 | I48: 4581.055985
A49: C50.1.1 | B49: 0.0562 | C49: 0.0024 | D49: 0.867 | E49: 0.011 | F49: 0.867 | G49: =[1]!AgePb76($F$49) -> 5035.994309 | I49: 4546.198753
A50: M21.1 | B50: 0.0532 | C50: 0.0136 | D50: 0.715 | E50: 0.034 | F50: 0.715 | G50: =[1]!AgePb76($F$50) -> 4761.162794 | I50: 4365.102933
A51: M22.1 | B51: 0.0415 | C51: 0.0121 | D51: 0.633 | E51: 0.034 | F51: 0.633 | G51: =[1]!AgePb76($F$51) -> 4585.636324 | I51: 4027.829019
A52: M31.1 | B52: 0.0655 | C52: 0.0205 | D52: 0.803 | E52: 0.05 | F52: 0.803 | G52: =[1]!AgePb76($F$52) -> 4927.066857
A53: M32.1 | B53: 0.0871 | C53: 0.0255 | D53: 0.905 | E53: 0.117 | F53: 0.905 | G53: =[1]!AgePb76($F$53) -> 5096.701873
F54: AVG | G54: =AVERAGE(G3:G53) -> 4901.571839
F55: MAX | G55: =MAX(G3:G53) -> 5122.990853
F56: MIN | G56: =MIN(G3:G53) -> 4027.829019
F57: STD DEV | G57: =STDEV(G3:G53) -> 192.5937477

Sheet U_238_01
A1: Sample | B1: 206Pb/204Pb | C1: 207Pb/204Pb | D1: 208Pb/204Pb | E1: 207Pb/206Pb | F1: 207Pb/206Pb | G1: 238U/204Pb | H1: 238U/206Pb | I1: 238U/206Pb | M1: 5086.087159
A2: Number | B2: Ratio | C2: Ratio | D2: Ratio | E2: Ratio | F2: Age | G2: Ratio | H2: Ratio | I2: Age | M2: 5070.476908
A3: l | B3: 18.054 | C3: 15.761 | D3: 36.908 | E3: =(C3/B3) -> 0.8729921347 | F3: =[1]!AgePb76(E3) -> 5045.752477 | I3: . | M3: 5045.752477
A4: 2a | B4: 33.402 | C4: 18.017 | D4: 40.208 | E4: =(C4/B4) -> 0.5393988384 | F4: =[1]!AgePb76(E4) -> 4352.663747 | I4: . | M4: 4989.002552
A5: 2b | B5: 44.983 | C5: 19.828 | D5: 42.435 | E5: 0.4407887424 | F5: =[1]!AgePb76(E5) -> 4054.416732 | I5: . | M5: 4966.563433
A6: 2c | B6: 48.154 | C6: 20.323 | D6: 43.069 | E6: 0.4220417826 | F6: =[1]!AgePb76(E6) -> 3989.525408 | I6: . | M6: 4964.99219
A7: 3a | B7: 21.924 | C7: 16.378 | D7: 40.692 | E7: 0.7470352126 | F7: =[1]!AgePb76(E7) -> 4823.959273 | G7: 8.24 | H7: =(G7/B7) -> 0.3758438241 | I7: =[1]!AgePb6U8(H7) -> 2056.839537 | M7: 4932.846908
A8: 3b | B8: 22.807 | C8: 16.53 | D8: 41.306 | E8: 0.7247774806 | F8: =[1]!AgePb76(E8) -> 4780.642248 | G8: 10.27 | H8: =(G8/B8) -> 0.4503003464 | I8: =[1]!AgePb6U8(H8) -> 2396.587722 | M8: 4912.55959
A9: 4 | B9: 20.961 | C9: 16.212 | D9: 40.125 | E9: 0.7734363819 | F9: =[1]!AgePb76(E9) -> 4873.589708 | H9: 0 | I9: . | M9: 4883.470014
A10: 5 | B10: 21.509 | C10: 16.306 | D10: 39.958 | E10: 0.7581012599 | F10: =[1]!AgePb76(E10) -> 4844.985948 | G10: 6.54 | H10: 0.3040587661 | I10: =[1]!AgePb6U8(H10) -> 1711.403891 | M10: 4882.969388
A11: 6a | B11: 21.134 | C11: 16.218 | D11: 41.55 | E11: 0.7673890414 | F11: =[1]!AgePb76(E11) -> 4862.382723 | G11: 4.86 | H11: 0.2299612 | I11: =[1]!AgePb6U8(H11) -> 1334.295724 | M11: 4878.487665
A12: 6b | B12: 24.753 | C12: 16.831 | D12: 44.401 | E12: 0.6799579849 | F12: =[1]!AgePb76(E12) -> 4688.93434 | H12: 0 | I12: . | M12: 4873.589708
A13: 6c | B13: 25.604 | C13: 16.972 | D13: 44.719 | E13: 0.6628651773 | F13: =[1]!AgePb76(E13) -> 4652.24394 | H13: 0 | I13: . | M13: 4869.278804
A14: 7a | B14: 19.883 | C14: 16.031 | D14: 39.975 | E14: 0.80626666 | F14: =[1]!AgePb76(E14) -> 4932.846908 | G14: 4.45 | H14: 0.2238092843 | I14: =[1]!AgePb6U8(H14) -> 1301.97169 | M14: 4862.382723
A15: 7b | B15: 22.565 | C15: 16.476 | D15: 39.642 | E15: 0.7301573233 | F15: =[1]!AgePb76(E15) -> 4791.241087 | H15: 0 | I15: . | M15: 4844.985948
A16: 8a | B16: 20.245 | C16: 16.092 | D16: 39.833 | E16: 0.7948629291 | F16: =[1]!AgePb76(E16) -> 4912.55959 | H16: 0 | I16: . | M16: 4843.238971
A17: 8b | B17: 22.305 | C17: 16.425 | D17: 39.238 | E17: 0.7363819771 | F17: =[1]!AgePb76(E17) -> 4803.400768 | G17: 10.09 | H17: 0.4523649406 | I17: =[1]!AgePb6U8(H17) -> 2405.758075 | M17: 4823.959273
A18: 9a | B18: 20.789 | C18: 16.185 | D18: 40.26 | E18: 0.7785367262 | F18: =[1]!AgePb76(E18) -> 4882.969388 | G18: 6.39 | H18: 0.3073740921 | I18: =[1]!AgePb6U8(H18) -> 1727.771898 | M18: 4803.400768
A19: 96766B | B19: 21.184 | C19: 16.04 | D19: 39.827 | E19: 0.7571752266 | F19: =[1]!AgePb76(E19) -> 4843.238971 | M19: 4791.241087
A20: 96781 | B20: 36.871 | C20: 18.727 | D20: 45.321 | E20: 0.5079059423 | F20: =[1]!AgePb76(E20) -> 4264.319106 | M20: 4780.642248
A21: 104113 | B21: 22.85 | C21: 16.32 | D21: 40.963 | E21: 0.7142231947 | F21: =[1]!AgePb76(E21) -> 4759.603001 | M21: 4759.603001
A22: 104113-2 | B22: 51.023 | C22: 21.105 | D22: 44.932 | E22: 0.4136369872 | F22: =[1]!AgePb76(E22) -> 3959.403895 | M22: 4688.93434
A23: 104114 | B23: 17.63 | C23: 15.662 | D23: 36.043 | E23: 0.888372093 | F23: =[1]!AgePb76(E23) -> 5070.476908 | M23: 4652.24394
A24: 101114-2 | B24: 17.461 | C24: 15.684 | D24: 36.158 | E24: 0.8982303419 | F24: =[1]!AgePb76(E24) -> 5086.087159 | M24: 4516.639625
A25: 104115 | B25: 20.406 | C25: 15.837 | D25: 37.814 | E25: 0.7760952661 | F25: =[1]!AgePb76(E25) -> 4878.487665 | M25: 4420.448802
A26: 104140B | B26: 20.612 | C26: 15.894 | D26: 37.972 | E26: 0.7711042111 | F26: =[1]!AgePb76(E26) -> 4869.278804 | M26: 4352.663747
A27: 104143 | B27: 20.453 | C27: 15.929 | D27: 38.831 | E27: 0.7788099545 | F27: =[1]!AgePb76(E27) -> 4883.470014 | M27: 4264.319106
A28: 104151 | B28: 18.71 | C28: 15.693 | D28: 37.262 | E28: 0.8387493319 | F28: =[1]!AgePb76(E28) -> 4989.002552 | M28: 4054.416732
A29: 104161 | B29: 19.066 | C29: 15.741 | D29: 37.494 | E29: 0.8256057904 | F29: =[1]!AgePb76(E29) -> 4966.563433 | M29: 3989.525408
A30: 104161-2 | B30: 19.098 | C30: 15.75 | D30: 38.683 | E30: 0.8246936852 | F30: =[1]!AgePb76(E30) -> 4964.99219 | M30: 3959.403895
A31: 104186 | B31: 31.381 | C31: 17.73 | D31: 42.693 | E31: 0.5649915554 | F31: =[1]!AgePb76(E31) -> 4420.448802
A32: 104186-2 | B32: 28.437 | C32: 17.164 | D32: 41.66 | E32: 0.6035798432 | F32: =[1]!AgePb76(E32) -> 4516.639625
B33: 35.357 | C33: 18.406 | D33: 50.538 | E33: AVG | F33: =AVERAGE(F3:F32) -> 4725.47088
B34: 31.221 | C34: 17.695 | D34: 47.448 | E34: MAX | F34: =MAX(F3:F32) -> 5086.087159
E35: MIN | F35: =MIN(F3:F32) -> 3959.403895
E36: STD DEV | F36: =STDEV(F3:F32) -> 314.8833942

Sheet U_238_02
A1: Sample | C1: 238U/206Pb | D1: 238U/206Pb
A2: Number | C2: Ratio | D2: Age
A3: 1.1 | B3: c,osc,p | C3: 1.321 | D3: =[1]!AgePb6U8(1/C3) -> 3633.257707 | E3: 0.035 | F3: 0.363 | G3: 0.0015 | H3: 3762 | I3: 6
A4: 1.2 | B4: r,s,p | C4: 1.355 | D4: =[1]!AgePb6U8(1/C4) -> 3563.186289 | E4: 0.035 | F4: 0.3373 | G4: 0.001 | H4: 3651 | I4: 5
A5: 2.1 | B5: c,osc,eq | C5: 1.332 | D5: =[1]!AgePb6U8(1/C5) -> 3610.280073 | E5: 0.034 | F5: 0.3429 | G5: 0.0015 | H5: 3676 | I5: 7
A6: 2.2 | B6: r,s,eq | C6: 1.28 | D6: =[1]!AgePb6U8(1/C6) -> 3721.613957 | E6: 0.033 | F6: 0.3383 | G6: 0.0011 | H6: 3655 | I6: 5
A7: 3.1 | B7: c,osc,p | C7: 1.292 | D7: =[1]!AgePb6U8(1/C7) -> 3695.299877 | E7: 0.033 | F7: 0.358 | G7: 0.0015 | H7: 3741 | I7: 7
A8: 3.2 | B8: r,h,p | C8: 1.458 | D8: =[1]!AgePb6U8(1/C8) -> 3366.848526 | E8: 0.04 | F8: 0.3171 | G8: 0.0042 | H8: 3556 | I8: 20
A9: 3.3 | B9: e,osc,p | C9: 1.338 | D9: =[1]!AgePb6U8(1/C9) -> 3597.872047 | E9: 0.036 | F9: 0.3294 | G9: 0.0032 | H9: 3614 | I9: 15
A10: 4.1 | B10: m,s,anh | C10: 1.441 | D10: =[1]!AgePb6U8(1/C10) -> 3397.714581 | E10: 0.037 | F10: 0.3147 | G10: 0.0017 | H10: 3544 | I10: 8
A11: 5.1 | B11: c,osc,p | C11: 1.337 | D11: =[1]!AgePb6U8(1/C11) -> 3599.933972 | E11: 0.036 | F11: 0.3488 | G11: 0.0017 | H11: 3702 | I11: 7
A12: 5.2 | B12: r,h,p | C12: 1.905 | D12: =[1]!AgePb6U8(1/C12) -> 2720.073371 | E12: 0.051 | F12: 0.1841 | G12: 0.0011 | H12: 2690 | I12: 10
A13: 5.3 | B13: e,osc,p | C13: 1.338 | D13: =[1]!AgePb6U8(1/C13) -> 3597.872047 | E13: 0.034 | F13: 0.3141 | G13: 0.0058 | H13: 3541 | I13: 29
A14: 6.1 | B14: s,f | C14: 1.961 | D14: =[1]!AgePb6U8(1/C14) -> 2656.39002 | E14: 0.054 | F14: 0.1816 | G14: 0.0016 | H14: 2667 | I14: 15
A15: 7.1 | B15: m,s,anh | C15: 1.435 | D15: =[1]!AgePb6U8(1/C15) -> 3408.747187 | E15: 0.037 | F15: 0.3079 | G15: 0.0009 | H15: 3510 | I15: 5
A16: 8.1 | B16: m,osc,p | C16: 1.289 | D16: =[1]!AgePb6U8(1/C16) -> 3701.842495 | E16: 0.033 | F16: 0.3483 | G16: 0.0014 | H16: 3700 | I16: 6
A17: 8.2 | B17: e,osc,p | C17: 1.257 | D17: =[1]!AgePb6U8(1/C17) -> 3773.141455 | E17: 0.027 | F17: 0.3618 | G17: 0.0091 | H17: 3757 | I17: 39
A18: 9.1 | B18: m,osc,p | C18: 1.37 | D18: =[1]!AgePb6U8(1/C18) -> 3533.145626 | E18: 0.039 | F18: 0.357 | G18: 0.0031 | H18: 3737 | I18: 13
A19: 9.2 | B19: e,osc,p | C19: 1.201 | D19: =[1]!AgePb6U8(1/C19) -> 3904.962188 | E19: 0.029 | F19: 0.3671 | G19: 0.0031 | H19: 3780 | I19: 13
A20: 10.1 | B20: m,osc,p | C20: 1.299 | D20: =[1]!AgePb6U8(1/C20) -> 3680.125757 | E20: 0.034 | F20: 0.3517 | G20: 0.0015 | H20: 3715 | I20: 7
A21: 11.1 | B21: m,s,anh | C21: 1.931 | D21: =[1]!AgePb6U8(1/C21) -> 2690.125114 | E21: 0.052 | F21: 0.186 | G21: 0.0015 | H21: 2707 | I21: 14
A22: 12.1 | B22: m,osc,p | C22: 1.215 | D22: =[1]!AgePb6U8(1/C22) -> 3871.125394 | E22: 0.032 | F22: 0.3729 | G22: 0.0019 | H22: 3803 | I22: 8
A23: 12.2 | B23: e,osc,p | C23: 1.224 | D23: =[1]!AgePb6U8(1/C23) -> 3849.6902 | E23: 0.04 | F23: 0.3561 | G23: 0.0023 | H23: 3733 | I23: 10
A24: 13.1 | B24: m,s,anh | C24: 1.77 | D24: =[1]!AgePb6U8(1/C24) -> 2887.141168 | E24: 0.05 | F24: 0.2228 | G24: 0.0018 | H24: 3001 | I24: 13
A25: 14.1 | B25: c,osc,eq | C25: 1.266 | D25: =[1]!AgePb6U8(1/C25) -> 3752.804763 | E25: 0.037 | F25: 0.3696 | G25: 0.0032 | H25: 3790 | I25: 13
A26: 14.2 | B26: r,h,eq | C26: 1.832 | D26: =[1]!AgePb6U8(1/C26) -> 2807.896274 | E26: 0.064 | F26: 0.199 | G26: 0.0036 | H26: 2818 | I26: 29
A27: 15.1 | B27: m,osc,p | C27: 1.372 | D27: =[1]!AgePb6U8(1/C27) -> 3529.179383 | E27: 0.036 | F27: 0.3282 | G27: 0.0017 | H27: 3609 | I27: 8
A28: 15.2 | B28: e,osc,p | C28: 1.338 | D28: =[1]!AgePb6U8(1/C28) -> 3597.872047 | E28: 0.032 | F28: 0.3565 | G28: 0.0055 | H28: 3735 | I28: 24
A29: 16.1 | B29: s,f | C29: 1.873 | D29: =[1]!AgePb6U8(1/C29) -> 2757.874982 | E29: 0.049 | F29: 0.1863 | G29: 0.0015 | H29: 2710 | I29: 13
A30: 17.1 | B30: m,h,p | C30: 1.271 | D30: =[1]!AgePb6U8(1/C30) -> 3741.60368 | E30: 0.034 | F30: 0.3184 | G30: 0.0025 | H30: 3562 | I30: 12
A31: 17.2 | B31: e,osc,p | C31: 1.395 | D31: =[1]!AgePb6U8(1/C31) -> 3484.214766 | E31: 0.04 | F31: 0.3335 | G31: 0.0055 | H31: 3633 | I31: 25
A32: 18.1 | B32: m,osc,p | C32: 1.471 | D32: =[1]!AgePb6U8(1/C32) -> 3343.629237 | E32: 0.041 | F32: 0.3239 | G32: 0.0033 | H32: 3588 | I32: 16
A33: 19.1 | B33: c,s,p | C33: 1.524 | D33: =[1]!AgePb6U8(1/C33) -> 3252.257775 | E33: 0.04 | F33: 0.281 | G33: 0.0011 | H33: 3368 | I33: 6
A34: 20.1 | B34: c,osc,anh | C34: 1.37 | D34: =[1]!AgePb6U8(1/C34) -> 3533.145626 | E34: 0.039 | F34: 0.3716 | G34: 0.0039 | H34: 3798 | I34: 16
A35: 20.2 | B35: r,s,anh | C35: 1.359 | D35: =[1]!AgePb6U8(1/C35) -> 3555.124353 | E35: 0.035 | F35: 0.3122 | G35: 0.002 | H35: 3532 | I35: 10
A36: 21.1 | B36: m,osc,p | C36: 1.312 | D36: =[1]!AgePb6U8(1/C36) -> 3652.282097 | E36: 0.034 | F36: 0.3523 | G36: 0.0007 | H36: 3717 | I36: 3
A37: 21.2 | B37: e,osc,p | C37: 1.503 | D37: =[1]!AgePb6U8(1/C37) -> 3287.844652 | E37: 0.054 | F37: 0.2953 | G37: 0.0082 | H37: 3446 | I37: 44
A38: 21.3 | B38: e,osc,p | C38: 1.209 | D38: =[1]!AgePb6U8(1/C38) -> 3885.552637 | E38: 0.027 | F38: 0.3696 | G38: 0.0052 | H38: 3790 | I38: 21
A39: 22.1 | B39: m,osc,p | C39: 1.605 | D39: =[1]!AgePb6U8(1/C39) -> 3122.055882 | E39: 0.041 | F39: 0.2955 | G39: 0.0008 | H39: 3447 | I39: 4
A40: 22.2 | B40: e,osc,p | C40: 1.23 | D40: =[1]!AgePb6U8(1/C40) -> 3835.535317 | E40: 0.025 | F40: 0.3569 | G40: 0.0028 | H40: 3737 | I40: 12
A41: 22.3 | B41: e,osc,p | C41: 1.303 | D41: =[1]!AgePb6U8(1/C41) -> 3671.512153 | E41: 0.056 | F41: 0.3544 | G41: 0.0053 | H41: 3726 | I41: 23
A42: 22.4 | B42: r,h/osc,p | C42: 1.496 | D42: =[1]!AgePb6U8(1/C42) -> 3299.884422 | E42: 0.035 | F42: 0.3324 | G42: 0.0067 | H42: 3628 | I42: 31
C43: 1.422 | D43: =[1]!AgePb6U8(1/C43) -> 3432.904521 | E43: 0.042 | F43: 0.3308 | G43: 0.0026 | H43: 3621 | I43: 12
C44: 1.329 | D44: =[1]!AgePb6U8(1/C44) -> 3616.517074 | E44: 0.059 | F44: 0.3475 | G44: 0.0041 | H44: 3696 | I44: 18
A45: 2.1 | B45: osc,p,f | C45: 1.341 | D45: =[1]!AgePb6U8(1/C45) -> 3591.700785 | E45: 0.061 | F45: 0.3288 | G45: 0.0054 | H45: 3611 | I45: 26
A46: 3.1 | B46: c,osc,p | C46: 1.638 | D46: =[1]!AgePb6U8(1/C46) -> 3072.00689 | E46: 0.073 | F46: 0.2901 | G46: 0.0055 | H46: 3418 | I46: 30
A47: 3.2 | B47: r,h,p | C47: 1.364 | D47: =[1]!AgePb6U8(1/C47) -> 3545.099372 | E47: 0.058 | F47: 0.343 | G47: 0.002 | H47: 3676 | I47: 9
A48: 4.1 | B48: m,osc,p | C48: 1.317 | D48: =[1]!AgePb6U8(1/C48) -> 3641.687817 | E48: 0.044 | F48: 0.3553 | G48: 0.0052 | H48: 3730 | I48: 23
A49: 5.1 | B49: m,osc,p | C49: 1.518 | D49: =[1]!AgePb6U8(1/C49) -> 3262.344926 | E49: 0.045 | F49: 0.3371 | G49: 0.0037 | H49: 3650 | I49: 17
A50: 6.1 | B50: c,osc,p | C50: 1.508 | D50: =[1]!AgePb6U8(1/C50) -> 3279.299618 | E50: 0.09 | F50: 0.3333 | G50: 0.0079 | H50: 3632 | I50: 37
A51: 6.2 | B51: rex/r,h,p | C51: 1.59 | D51: =[1]!AgePb6U8(1/C51) -> 3145.359288 | E51: 0.079 | F51: 0.3232 | G51: 0.0021 | H51: 3585 | I51: 10
A52: 7.1 | B52: e,osc,p,f | C52: 1.381 | D52: =[1]!AgePb6U8(1/C52) -> 3511.44363 | E52: 0.064 | F52: 0.3053 | G52: 0.0025 | H52: 3497 | I52: 13
A53: 7.2 | B53: e,osc,p,f | C53: 1.376 | D53: =[1]!AgePb6U8(1/C53) -> 3521.274211 | E53: 0.089 | F53: 0.3549 | G53: 0.0174 | H53: 3728 | I53: 77
A54: 8.1 | B54: m,osc,p,f | C54: 1.359 | D54: =[1]!AgePb6U8(1/C54) -> 3555.124353 | E54: 0.209 | F54: 0.3458 | G54: 0.0409 | H54: 3689 | I54: 193
A55: 8.2 | B55: m,osc,p,f | C55: 1.424 | D55: =[1]!AgePb6U8(1/C55) -> 3429.165223 | E55: 0.043 | F55: 0.3286 | G55: 0.0041 | H55: 3611 | I55: 19
A56: 9.1 | B56: e,osc,p | C56: 1.39 | D56: =[1]!AgePb6U8(1/C56) -> 3493.889565 | E56: 0.04 | F56: 0.3438 | G56: 0.0027 | H56: 3680 | I56: 12
A57: 10.1 | B57: c,osc,p | C57: 1.617 | D57: =[1]!AgePb6U8(1/C57) -> 3103.665063 | E57: 0.101 | F57: 0.263 | G57: 0.0055 | H57: 3265 | I57: 33
A58: 10.2 | B58: r,h,p | C58: 1.356 | D58: =[1]!AgePb6U8(1/C58) -> 3561.167293 | E58: 0.049 | F58: 0.325 | G58: 0.0031 | H58: 3594 | I58: 15
A59: 1.616 | B59: 0.07 | C59: 1.616 | D59: =[1]!AgePb6U8(1/C59) -> 3105.189193 | E59: 0.07 | F59: 0.2988 | G59: 0.0022 | H59: 3464 | I59: 11
A60: 1.348 | B60: 0.043 | C60: 1.348 | D60: =[1]!AgePb6U8(1/C60) -> 3577.385267 | E60: 0.043 | F60: 0.3402 | G60: 0.0026 | H60: 3664 | I60: 12
A61: 1.459 | B61: 0.055 | C61: 1.459 | D61: =[1]!AgePb6U8(1/C61) -> 3365.050725 | E61: 0.055 | F61: 0.3116 | G61: 0.0035 | H61: 3529 | I61: 17
A62: 1.285 | B62: 0.033 | C62: 1.285 | D62: =[1]!AgePb6U8(1/C62) -> 3710.603101 | E62: 0.033 | F62: 0.3425 | G62: 0.0038 | H62: 3674 | I62: 17
A63: 1.318 | B63: 0.117 | C63: 1.318 | D63: =[1]!AgePb6U8(1/C63) -> 3639.576528 | E63: 0.117 | F63: 0.3183 | G63: 0.0143 | H63: 3562 | I63: 71
A64: 1.341 | B64: 0.031 | C64: 1.341 | D64: =[1]!AgePb6U8(1/C64) -> 3591.700785 | E64: 0.031 | F64: 0.3467 | G64: 0.0026 | H64: 3693 | I64: 11
A65: 1.376 | B65: 0.04 | C65: 1.376 | D65: =[1]!AgePb6U8(1/C65) -> 3521.274211 | E65: 0.04 | F65: 0.3366 | G65: 0.0029 | H65: 3647 | I65: 13
A66: 1.291 | B66: 0.039 | C66: 1.291 | D66: =[1]!AgePb6U8(1/C66) -> 3697.478109 | E66: 0.039 | F66: 0.3477 | G66: 0.0029 | H66: 3697 | I66: 13
A67: 1.449 | B67: 0.035 | C67: 1.449 | D67: =[1]!AgePb6U8(1/C67) -> 3383.11758 | E67: 0.035 | F67: 0.3209 | G67: 0.0026 | H67: 3574 | I67: 12
A68: 1.908 | B68: 0.056 | C68: 1.908 | D68: =[1]!AgePb6U8(1/C68) -> 2716.583314 | E68: 0.056 | F68: 0.1834 | G68: 0.0027 | H68: 2683 | I68: 24
A69: 1.425 | B69: 0.041 | C69: 1.425 | D69: =[1]!AgePb6U8(1/C69) -> 3427.298699 | E69: 0.041 | F69: 0.3247 | G69: 0.0014 | H69: 3592 | I69: 7
A70: 1.36 | B70: 0.046 | C70: 1.36 | D70: =[1]!AgePb6U8(1/C70) -> 3553.114709 | E70: 0.046 | F70: 0.3427 | G70: 0.0009 | H70: 3675 | I70: 4
A71: 1.368 | B71: 0.044 | C71: 1.368 | D71: =[1]!AgePb6U8(1/C71) -> 3537.121017 | E71: 0.044 | F71: 0.3198 | G71: 0.0051 | H71: 3569 | I71: 25
A72: 1.367 | B72: 0.051 | C72: 1.367 | D72: =[1]!AgePb6U8(1/C72) -> 3539.112153 | E72: 0.051 | F72: 0.3232 | G72: 0.0037 | H72: 3585 | I72: 17
A73: 1.255 | B73: 0.063 | C73: 1.255 | D73: =[1]!AgePb6U8(1/C73) -> 3777.691541 | E73: 0.063 | F73: 0.3311 | G73: 0.0055 | H73: 3622 | I73: 26
A74: 1.303 | B74: 0.05 | C74: 1.303 | D74: =[1]!AgePb6U8(1/C74) -> 3671.512153 | E74: 0.05 | F74: 0.33 | G74: 0.0038 | H74: 3617 | I74: 18
A75: 1.334 | B75: 0.049 | C75: 1.334 | D75: =[1]!AgePb6U8(1/C75) -> 3606.13432 | E75: 0.049 | F75: 0.3278 | G75: 0.0024 | H75: 3607 | I75: 11
A76: 1.377 | B76: 0.037 | C76: 1.377 | D76: =[1]!AgePb6U8(1/C76) -> 3519.303585 | E76: 0.037 | F76: 0.3278 | G76: 0.0044 | H76: 3607 | I76: 21
A77: 1.167 | B77: 0.075 | C77: 1.167 | D77: =[1]!AgePb6U8(1/C77) -> 3989.733243 | E77: 0.075 | F77: 0.3457 | G77: 0.0049 | H77: 3688 | I77: 22
A78: 1.376 | B78: 0.098 | C78: 1.376 | D78: =[1]!AgePb6U8(1/C78) -> 3521.274211 | E78: 0.098 | F78: 0.3252 | G78: 0.0041 | H78: 3595 | I78: 19
A79: 1.445 | B79: 0.11 | C79: 1.445 | D79: =[1]!AgePb6U8(1/C79) -> 3390.400009 | E79: 0.11 | F79: 0.3263 | G79: 0.0028 | H79: 3600 | I79: 13
A80: 1.426 | B80: 0.066 | C80: 1.426 | D80: =[1]!AgePb6U8(1/C80) -> 3425.434253 | E80: 0.066 | F80: 0.3159 | G80: 0.0047 | H80: 3550 | I80: 23
A81: 1.533 | B81: 0.062 | C81: 1.533 | D81: =[1]!AgePb6U8(1/C81) -> 3237.245906 | E81: 0.062 | F81: 0.2937 | G81: 0.0047 | H81: 3437 | I81: 25
A82: 1.718 | B82: 0.095 | C82: 1.718 | D82: =[1]!AgePb6U8(1/C82) -> 2957.198983 | E82: 0.095 | F82: 0.1736 | G82: 0.0124 | H82: 2592 | I82: 124
A83: 1.89 | B83: 0.172 | C83: 1.89 | D83: =[1]!AgePb6U8(1/C83) -> 2737.661067 | E83: 0.172 | F83: 0.193 | G83: 0.0083 | H83: 2768 | I83: 72
A84: 2.967 | B84: 1.037 | C84: 2.967 | D84: =[1]!AgePb6U8(1/C84) -> 1872.417729 | E84: 1.037 | F84: 0.1464 | G84: 0.0862 | H84: 2304 | I84: 1695
A85: 1.85 | B85: 0.187 | C85: 1.85 | D85: =[1]!AgePb6U8(1/C85) -> 2785.710589 | E85: 0.187 | F85: 0.2085 | G85: 0.0151 | H85: 2894 | I85: 122
A86: 1.885 | B86: 0.117 | C86: 1.885 | D86: =[1]!AgePb6U8(1/C86) -> 2743.575046 | E86: 0.117 | F86: 0.1874 | G86: 0.006 | H86: 2719 | I86: 54
A87: 1.442 | B87: 0.098 | C87: 1.442 | D87: =[1]!AgePb6U8(1/C87) -> 3395.882913 | E87: 0.098 | F87: 0.3093 | G87: 0.0084 | H87: 3517 | I87: 43
A88: 2.063 | B88: 0.224 | C88: 2.063 | D88: =[1]!AgePb6U8(1/C88) -> 2547.839444 | E88: 0.224 | F88: 0.1858 | G88: 0.0074 | H88: 2705 | I88: 67
A89: 1.371 | B89: 0.157 | C89: 1.371 | D89: =[1]!AgePb6U8(1/C89) -> 3531.161363 | E89: 0.157 | F89: 0.3069 | G89: 0.0152 | H89: 3505 | I89: 79
A90: 1.961 | B90: 0.095 | C90: 1.961 | D90: =[1]!AgePb6U8(1/C90) -> 2656.39002 | E90: 0.095 | F90: 0.1861 | G90: 0.0067 | H90: 2708 | I90: 61
A91: 1.864 | B91: 0.127 | C91: 1.864 | D91: =[1]!AgePb6U8(1/C91) -> 2768.699648 | E91: 0.127 | F91: 0.2113 | G91: 0.0109 | H91: 2915 | I91: 86
A92: 1.32 | B92: 0.069 | C92: 1.32 | D92: =[1]!AgePb6U8(1/C92) -> 3635.361477 | E92: 0.069 | F92: 0.3326 | G92: 0.0051 | H92: 3629 | I92: 24
A93: 2.036 | B93: 0.144 | C93: 2.036 | D93: =[1]!AgePb6U8(1/C93) -> 2575.68903 | E93: 0.144 | F93: 0.1885 | G93: 0.0058 | H93: 2729 | I93: 51
A94: 1.969 | B94: 0.114 | C94: 1.969 | D94: =[1]!AgePb6U8(1/C94) -> 2647.538412 | E94: 0.114 | F94: 0.1878 | G94: 0.0081 | H94: 2723 | I94: 73
A95: 1.237 | B95: 0.047 | C95: 1.237 | D95: =[1]!AgePb6U8(1/C95) -> 3819.156094 | E95: 0.047 | F95: 0.3706 | G95: 0.0042 | H95: 3794 | I95: 17
A96: 1.157 | B96: 0.058 | C96: 1.157 | D96: =[1]!AgePb6U8(1/C96) -> 4015.393516 | E96: 0.058 | F96: 0.3828 | G96: 0.003 | H96: 3843 | I96: 12
A97: 1.307 | B97: 0.09 | C97: 1.307 | D97: =[1]!AgePb6U8(1/C97) -> 3662.939852 | E97: 0.09 | F97: 0.3834 | G97: 0.0047 | H97: 3845 | I97: 18
A98: 1.4 | B98: 0.087 | C98: 1.4 | D98: =[1]!AgePb6U8(1/C98) -> 3474.594686 | E98: 0.087 | F98: 0.3767 | G98: 0.0074 | H98: 3819 | I98: 30
A99: 1.508 | B99: 0.074 | C99: 1.508 | D99: =[1]!AgePb6U8(1/C99) -> 3279.299618 | E99: 0.074 | F99: 0.181 | G99: 0.0041 | H99: 2662 | I99: 38
A100: 1.274 | B100: 0.057 | C100: 1.274 | D100: =[1]!AgePb6U8(1/C100) -> 3734.915959 | E100: 0.057 | F100: 0.3539 | G100: 0.0042 | H100: 3724 | I100: 18
A101: 1.357 | B101: 0.077 | C101: 1.357 | D101: =[1]!AgePb6U8(1/C101) -> 3559.15064 | E101: 0.077 | F101: 0.329 | G101: 0.0053 | H101: 3612 | I101: 25
A102: 1.302 | B102: 0.032 | C102: 1.302 | D102: =[1]!AgePb6U8(1/C102) -> 3673.66167 | E102: 0.032 | F102: 0.3563 | G102: 0.0028 | H102: 3734 | I102: 12
A103: 1.426 | B103: 0.036 | C103: 1.426 | D103: =[1]!AgePb6U8(1/C103) -> 3425.434253 | E103: 0.036 | F103: 0.3328 | G103: 0.0054 | H103: 3630 | I103: 25
A104: 1.504 | B104: 0.034 | C104: 1.504 | D104: =[1]!AgePb6U8(1/C104) -> 3286.132008 | E104: 0.034 | F104: 0.2797 | G104: 0.0035 | H104: 3361 | I104: 19
A105: 1.354 | B105: 0.052 | C105: 1.354 | D105: =[1]!AgePb6U8(1/C105) -> 3565.207635 | E105: 0.052 | F105: 0.3267 | G105: 0.0044 | H105: 3602 | I105: 21
A106: 1.391 | B106: 0.036 | C106: 1.391 | D106: =[1]!AgePb6U8(1/C106) -> 3491.950205 | E106: 0.036 | F106: 0.3257 | G106: 0.0033 | H106: 3597 | I106: 16
A107: 1.283 | B107: 0.079 | C107: 1.283 | D107: =[1]!AgePb6U8(1/C107) -> 3714.9994 | E107: 0.079 | F107: 0.3613 | G107: 0.0066 | H107: 3755 | I107: 28
A108: 1.304 | B108: 0.077 | C108: 1.304 | D108: =[1]!AgePb6U8(1/C108) -> 3669.365217 | E108: 0.077 | F108: 0.3711 | G108: 0.0083 | H108: 3796 | I108: 34
A109: 1.235 | B109: 0.069 | C109: 1.235 | D109: =[1]!AgePb6U8(1/C109) -> 3823.821163 | E109: 0.069 | F109: 0.3773 | G109: 0.0051 | H109: 3821 | I109: 21
A110: 1.19 | B110: 0.093 | C110: 1.19 | D110: =[1]!AgePb6U8(1/C110) -> 3931.978963 | E110: 0.093 | F110: 0.2424 | G110: 0.0048 | H110: 3136 | I110: 32
A111: 1.285 | B111: 0.073 | C111: 1.285 | D111: =[1]!AgePb6U8(1/C111) -> 3710.603101 | E111: 0.073 | F111: 0.3851 | G111: 0.0065 | H111: 3852 | I111: 26
A112: 1.666 | B112: 0.406 | C112: 1.666 | D112: =[1]!AgePb6U8(1/C112) -> 3030.805338 | E112: 0.406 | F112: 0.2016 | G112: 0.0146 | H112: 2839 | I112: 123
A113: 1.181 | B113: 0.051 | C113: 1.181 | D113: =[1]!AgePb6U8(1/C113) -> 3954.371958 | E113: 0.051 | F113: 0.3902 | G113: 0.0039 | H113: 3872 | I113: 15
A114: 1.254 | B114: 0.059 | C114: 1.254 | D114: =[1]!AgePb6U8(1/C114) -> 3779.97082 | E114: 0.059 | F114: 0.3841 | G114: 0.0051 | H114: 3848 | I114: 20
A115: 1.236 | B115: 0.06 | C115: 1.236 | D115: =[1]!AgePb6U8(1/C115) -> 3821.487164 | E115: 0.06 | F115: 0.3814 | G115: 0.0048 | H115: 3837 | I115: 19
A116: 1.873 | B116: 0.163 | C116: 1.873 | D116: =[1]!AgePb6U8(1/C116) -> 2757.874982 | E116: 0.163 | F116: 0.1877 | G116: 0.0066 | H116: 2722 | I116: 59
A117: 1.223 | B117: 0.071 | C117: 1.223 | D117: =[1]!AgePb6U8(1/C117) -> 3852.059812 | E117: 0.071 | F117: 0.3918 | G117: 0.0062 | H117: 3878 | I117: 24
A118: 1.431 | B118: 0.101 | C118: 1.431 | D118: =[1]!AgePb6U8(1/C118) -> 3416.143077 | E118: 0.101 | F118: 0.3433 | G118: 0.0076 | H118: 3678 | I118: 34
A119: 1.423 | B119: 0.093 | C119: 1.423 | D119: =[1]!AgePb6U8(1/C119) -> 3431.033829 | E119: 0.093 | F119: 0.3627 | G119: 0.0092 | H119: 3761 | I119: 39
A120: 1.419 | B120: 0.084 | C120: 1.419 | D120: =[1]!AgePb6U8(1/C120) -> 3438.529144 | E120: 0.084 | F120: 0.3483 | G120: 0.0121 | H120: 3700 | I120: 54
A121: 1.232 | B121: 0.063 | C121: 1.232 | D121: =[1]!AgePb6U8(1/C121) -> 3830.840802 | E121: 0.063 | F121: 0.3953 | G121: 0.0057 | H121: 3891 | I121: 22
A122: 1.396 | B122: 0.095 | C122: 1.396 | D122: =[1]!AgePb6U8(1/C122) -> 3482.286388 | E122: 0.095 | F122: 0.3426 | G122: 0.0045 | H122: 3674 | I122: 20
A123: 1.294 | B123: 0.095 | C123: 1.294 | D123: =[1]!AgePb6U8(1/C123) -> 3690.951314 | E123: 0.095 | F123: 0.3611 | G123: 0.0174 | H123: 3755 | I123: 75
A124: 1.335 | B124: 0.091 | C124: 1.335 | D124: =[1]!AgePb6U8(1/C124) -> 3604.065104 | E124: 0.091 | F124: 0.3607 | G124: 0.0064 | H124: 3753 | I124: 27
A125: 1.304 | B125: 0.074 | C125: 1.304 | D125: =[1]!AgePb6U8(1/C125) -> 3669.365217 | E125: 0.074 | F125: 0.3386 | G125: 0.0119 | H125: 3656 | I125: 55
A126: 1.311 | B126: 0.114 | C126: 1.311 | D126: =[1]!AgePb6U8(1/C126) -> 3654.408551 | E126: 0.114 | F126: 0.3419 | G126: 0.01 | H126: 3671 | I126: 45
A127: 1.235 | B127: 0.082 | C127: 1.235 | D127: =[1]!AgePb6U8(1/C127) -> 3823.821163 | E127: 0.082 | F127: 0.3359 | G127: 0.0169 | H127: 3644 | I127: 79
A128: 1.168 | B128: 0.091 | C128: 1.168 | D128: =[1]!AgePb6U8(1/C128) -> 3987.185813 | E128: 0.091 | F128: 0.3441 | G128: 0.0102 | H128: 3681 | I128: 46
A129: 1.26 | B129: 0.084 | C129: 1.26 | D129: =[1]!AgePb6U8(1/C129) -> 3766.33742 | E129: 0.084 | F129: 0.3402 | G129: 0.0084 | H129: 3664 | I129: 38
A130: 1.342 | B130: 0.1 | C130: 1.342 | D130: =[1]!AgePb6U8(1/C130) -> 3589.64852 | E130: 0.1 | F130: 0.3338 | G130: 0.0136 | H130: 3635 | I130: 64
A131: 0.3663 | B131: 0.0019 | C131: 1.285 | D131: =[1]!AgePb6U8(1/C131) -> 3710.603101 | E131: 0.0019 | F131: 3776 | G131: 8
A132: 1.303 | B132: 0.044 | C132: 1.303 | D132: =[1]!AgePb6U8(1/C132) -> 3671.512153 | E132: 0.044 | F132: 0.3481 | G132: 0.0038 | H132: 3699 | I132: 17
A133: 1.218 | B133: 0.038 | C133: 1.218 | D133: =[1]!AgePb6U8(1/C133) -> 3863.953068 | E133: 0.038 | F133: 0.3818 | G133: 0.0028 | H133: 3839 | I133: 11
A134: 1.281 | B134: 0.04 | C134: 1.281 | D134: =[1]!AgePb6U8(1/C134) -> 3719.406417 | E134: 0.04 | F134: 0.3733 | G134: 0.0035 | H134: 3805 | I134: 14
A135: 1.322 | B135: 0.045 | C135: 1.322 | D135: =[1]!AgePb6U8(1/C135) -> 3631.156434 | E135: 0.045 | F135: 0.3554 | G135: 0.0048 | H135: 3730 | I135: 21
A136: 1.306 | B136: 0.048 | C136: 1.306 | D136: =[1]!AgePb6U8(1/C136) -> 3665.079072 | E136: 0.048 | F136: 0.3336 | G136: 0.0053 | H136: 3634 | I136: 25
A137: 1.254 | B137: 0.037 | C137: 1.254 | D137: =[1]!AgePb6U8(1/C137) -> 3779.97082 | E137: 0.037 | F137: 0.3859 | G137: 0.0018 | H137: 3855 | I137: 7
A138: 1.201 | B138: 0.041 | C138: 1.201 | D138: =[1]!AgePb6U8(1/C138) -> 3904.962188 | E138: 0.041 | F138: 0.3863 | G138: 0.0025 | H138: 3856 | I138: 10
A139: 1.285 | B139: 0.044 | C139: 1.285 | D139: =[1]!AgePb6U8(1/C139) -> 3710.603101 | E139: 0.044 | F139: 0.3849 | G139: 0.0015 | H139: 3851 | I139: 6
A140: 1.228 | B140: 0.038 | C140: 1.228 | D140: =[1]!AgePb6U8(1/C140) -> 3840.241691 | E140: 0.038 | F140: 0.3844 | G140: 0.0027 | H140: 3849 | I140: 10
A141: 1.228 | B141: 0.042 | C141: 1.228 | D141: =[1]!AgePb6U8(1/C141) -> 3840.241691 | E141: 0.042 | F141: 0.3774 | G141: 0.0027 | H141: 3821 | I141: 11
A142: 1.333 | B142: 0.052 | C142: 1.333 | D142: =[1]!AgePb6U8(1/C142) -> 3608.205975 | E142: 0.052 | F142: 0.322 | G142: 0.0042 | H142: 3580 | I142: 20
A143: 1.308 | B143: 0.047 | C143: 1.308 | D143: =[1]!AgePb6U8(1/C143) -> 3660.803195 | E143: 0.047 | F143: 0.3727 | G143: 0.0056 | H143: 3802 | I143: 23
A144: 1.306 | B144: 0.062 | C144: 1.306 | D144: =[1]!AgePb6U8(1/C144) -> 3665.079072 | E144: 0.062 | F144: 0.365 | G144: 0.006 | H144: 3771 | I144: 25
A145: 1.255 | B145: 0.046 | C145: 1.255 | D145: =[1]!AgePb6U8(1/C145) -> 3777.691541 | E145: 0.046 | F145: 0.3683 | G145: 0.0015 | H145: 3784 | I145: 6
A146: 1.289 | B146: 0.05 | C146: 1.289 | D146: =[1]!AgePb6U8(1/C146) -> 3701.842495 | E146: 0.05 | F146: 0.3851 | G146: 0.0029 | H146: 3852 | I146: 11
A147: 1.244 | B147: 0.043 | C147: 1.244 | D147: =[1]!AgePb6U8(1/C147) -> 3802.920183 | E147: 0.043 | F147: 0.3819 | G147: 0.0016 | H147: 3839 | I147: 6
A148: 1.205 | B148: 0.039 | C148: 1.205 | D148: =[1]!AgePb6U8(1/C148) -> 3895.232503 | E148: 0.039 | F148: 0.379 | G148: 0.0012 | H148: 3828 | I148: 5
A149: 1.321 | B149: 0.054 | C149: 1.321 | D149: =[1]!AgePb6U8(1/C149) -> 3633.257707 | E149: 0.054 | F149: 0.3356 | G149: 0.0029 | H149: 3643 | I149: 13
A150: 1.357 | B150: 0.048 | C150: 1.357 | D150: =[1]!AgePb6U8(1/C150) -> 3559.15064 | E150: 0.048 | F150: 0.3344 | G150: 0.004 | H150: 3637 | I150: 18
A151: 1.35 | B151: 0.048 | C151: 1.35 | D151: =[1]!AgePb6U8(1/C151) -> 3573.316588 | E151: 0.048 | F151: 0.3292 | G151: 0.0033 | H151: 3613 | I151: 16
A152: 1.358 | B152: 0.048 | C152: 1.358 | D152: =[1]!AgePb6U8(1/C152) -> 3557.136329 | E152: 0.048 | F152: 0.3309 | G152: 0.0035 | H152: 3621 | I152: 17
A153: 1.338 | B153: 0.051 | C153: 1.338 | D153: =[1]!AgePb6U8(1/C153) -> 3597.872047 | E153: 0.051 | F153: 0.33 | G153: 0.0038 | H153: 3617 | I153: 18
A154: 1.328 | B154: 0.065 | C154: 1.328 | D154: =[1]!AgePb6U8(1/C154) -> 3618.600992 | E154: 0.065 | F154: 0.3423 | G154: 0.004 | H154: 3673 | I154: 18
A155: 1.306 | B155: 0.044 | C155: 1.306 | D155: =[1]!AgePb6U8(1/C155) -> 3665.079072 | E155: 0.044 | F155: 0.3442 | G155: 0.0028 | H155: 3681 | I155: 13
A156: 1.177 | B156: 0.067 | C156: 1.177 | D156: =[1]!AgePb6U8(1/C156) -> 3964.409051 | E156: 0.067 | F156: 0.3426 | G156: 0.0036 | H156: 3675 | I156: 16
C157: AVG | D157: =AVERAGE(D3:D156) -> 3491.75251
C158: MAX | D158: =MAX(D3:D156) -> 4015.393516
C159: MIN | D159: =MIN(D3:D156) -> 1872.417729
C160: STD DEV | D160: =STDEV(D3:D156) -> 359.2497609

Sheet U_238_03
A1: Sample | B1: 238U/206Pb | C1: 238U/206Pb | G1: 207Pb/206Pb | I1: Table 3 | M1: 11444
A2: Number | B2: Ratio | C2: Age | G2: Age | M2: 11298
A3: 1.1 | B3: 3.77 | C3: =[1]!AgePb6U8(1/B3) -> 1516.656267 | D3: 0.126 | E3: 0.1083 | F3: 0.0024 | G3: 1771 | H3: 41 | M3: 10909
A4: 16.1 | B4: 3.845 | C4: =[1]!AgePb6U8(1/B4) -> 1490.241047 | D4: 0.117 | E4: 0.1071 | F4: 0.0029 | G4: 1751 | H4: 50 | M4: 10754
A5: 9.1 | B5: 3.253 | C5: =[1]!AgePb6U8(1/B5) -> 1727.941781 | D5: 0.097 | E5: 0.107 | F5: 0.0028 | G5: 1749 | H5: 49 | M5: 10620
A6: 11.1 | B6: 3.523 | C6: =[1]!AgePb6U8(1/B6) -> 1610.717751 | D6: 0.092 | E6: 0.1069 | F6: 0.0014 | G6: 1747 | H6: 23 | M6: 10475
A7: 13.1 | B7: 3.424 | C7: =[1]!AgePb6U8(1/B7) -> 1651.795687 | D7: 0.088 | E7: 0.1057 | F7: 0.001 | G7: 1727 | H7: 18 | M7: 10354
A8: 8.1c | B8: 3.469 | C8: =[1]!AgePb6U8(1/B8) -> 1632.865766 | D8: 0.103 | E8: 0.1057 | F8: 0.0013 | G8: 1727 | H8: 23 | M8: 10317
A9: 15.1 | B9: 3.392 | C9: =[1]!AgePb6U8(1/B9) -> 1665.527712 | D9: 0.08 | E9: 0.1047 | F9: 0.0009 | G9: 1710 | H9: 17 | M9: 10308
A10: 7.1 | B10: 3.372 | C10: =[1]!AgePb6U8(1/B10) -> 1674.227431 | D10: 0.091 | E10: 0.1044 | F10: 0.0021 | G10: 1703 | H10: 37 | M10: 10299
A11: 23 | B11: 3.511 | C11: =[1]!AgePb6U8(1/B11) -> 1615.58718 | D11: 0.082 | E11: 0.1043 | F11: 0.0008 | G11: 1702 | H11: 15 | M11: 10275
A12: 10.1 | B12: 3.235 | C12: =[1]!AgePb6U8(1/B12) -> 1736.370025 | D12: 0.069 | E12: 0.1041 | F12: 0.001 | G12: 1698 | H12: 18 | M12: 10249
A13: 42 | B13: 3.576 | C13: =[1]!AgePb6U8(1/B13) -> 1589.559367 | D13: 0.075 | E13: 0.1041 | F13: 0.0008 | G13: 1698 | H13: 14 | M13: 10187
A14: 18.1 | B14: 3.383 | C14: =[1]!AgePb6U8(1/B14) -> 1669.431308 | D14: 0.082 | E14: 0.104 | F14: 0.0014 | G14: 1697 | H14: 25 | M14: 10149
A15: 2.1 | B15: 3.5 | C15: =[1]!AgePb6U8(1/B15) -> 1620.076895 | D15: 0.084 | E15: 0.104 | F15: 0.0016 | G15: 1696 | H15: 29 | M15: 10135
A16: 14.1 | B16: 3.375 | C16: =[1]!AgePb6U8(1/B16) -> 1672.916651 | D16: 0.073 | E16: 0.1039 | F16: 0.0011 | G16: 1695 | H16: 20 | M16: 10129
A17: 3.1 | B17: 3.275 | C17: =[1]!AgePb6U8(1/B17) -> 1717.751705 | D17: 0.073 | E17: 0.1037 | F17: 0.0011 | G17: 1691 | H17: 19 | M17: 10117
A18: 20 | B18: 4.923 | C18: =[1]!AgePb6U8(1/B18) -> 1192.102991 | D18: 0.136 | E18: 0.1036 | F18: 0.0034 | G18: 1690 | H18: 61 | M18: 10112
A19: 10.2 | B19: 3.355 | C19: =[1]!AgePb6U8(1/B19) -> 1681.694375 | D19: 0.234 | E19: 0.1029 | F19: 0.0021 | G19: 1677 | H19: 38 | M19: 10104
A20: 6.1 | B20: 3.4 | C20: =[1]!AgePb6U8(1/B20) -> 1662.073227 | D20: 0.089 | E20: 0.1028 | F20: 0.0017 | G20: 1676 | H20: 32 | M20: 10090
A21: 19.1 | B21: 3.131 | C21: =[1]!AgePb6U8(1/B21) -> 1786.733706 | D21: 0.071 | E21: 0.1028 | F21: 0.0005 | G21: 1675 | H21: 10 | M21: 10086
A22: 17.1 | B22: 3.417 | C22: =[1]!AgePb6U8(1/B22) -> 1654.780077 | D22: 0.094 | E22: 0.1025 | F22: 0.0029 | G22: 1670 | H22: 53 | M22: 10034
A23: 5.1 | B23: 3.284 | C23: =[1]!AgePb6U8(1/B23) -> 1713.617799 | D23: 0.086 | E23: 0.102 | F23: 0.0009 | G23: 1662 | H23: 16 | M23: 10032
A24: 4.1 | B24: 3.571 | C24: =[1]!AgePb6U8(1/B24) -> 1591.531544 | D24: 0.092 | E24: 0.1011 | F24: 0.0021 | G24: 1644 | H24: 38 | M24: 10032
A25: 21.1 | B25: 3.54 | C25: =[1]!AgePb6U8(1/B25) -> 1603.869685 | D25: 0.077 | E25: 0.0989 | F25: 0.0006 | G25: 1604 | H25: 12 | M25: 10029
A26: 12.2 | B26: 3.855 | C26: =[1]!AgePb6U8(1/B26) -> 1486.788685 | D26: 0.114 | E26: 0.0982 | F26: 0.0006 | G26: 1590 | H26: 12 | M26: 10021
A27: 12.1 | B27: 3.616 | C27: =[1]!AgePb6U8(1/B27) -> 1573.957045 | D27: 0.091 | E27: 0.0976 | F27: 0.001 | G27: 1579 | H27: 20 | M27: 10005
B28: AVG | C28: =AVERAGE(C3:C27) -> 1621.552628 | F28: AVG | G28: =AVERAGE(G3:G27) -> 1689.16 | M28: 9991
B29: MAX | C29: =MAX(C3:C27) -> 1786.733706 | F29: MAX | G29: =MAX(G3:G27) -> 1771 | M29: 9986
B30: MIN | C30: =MIN(C3:C27) -> 1192.102991 | F30: MIN | G30: =MIN(G3:G27) -> 1579 | M30: 9984
B31: STD DEV | C31: =STDEV(C3:C27) -> 115.8400039 | F31: STD DEV | G31: =STDEV(G3:G27) -> 47.56195959 | M31: 9972
M32: 9965
M33: 9964
A34: Sample | B34: 238U/206Pb | C34: 238U/206Pb | G34: 207Pb/206Pb | I34: Table 4 | M34: 9949
A35: Number | B35: Ratio | C35: Age | G35: Age | M35: 9946
A36: 9.1 | B36: 3.457 | C36: =[1]!AgePb6U8(1/B36) -> 1637.870962 | D36: 0.08 | E36: 0.1041 | F36: 0.0005 | G36: 1699 | H36: 8 | M36: 9939
A37: 6.1 | B37: 3.409 | C37: =[1]!AgePb6U8(1/B37) -> 1658.204114 | D37: 0.074 | E37: 0.104 | F37: 0.0008 | G37: 1697 | H37: 14 | M37: 9935
A38: 15.2 | B38: 3.559 | C38: =[1]!AgePb6U8(1/B38) -> 1596.284897 | D38: 0.061 | E38: 0.1039 | F38: 0.0004 | G38: 1695 | H38: 7 | M38: 9934
A39: 13.1 | B39: 3.47 | C39: =[1]!AgePb6U8(1/B39) -> 1632.450054 | D39: 0.1 | E39: 0.1039 | F39: 0.0007 | G39: 1694 | H39: 13 | M39: 9931
A40: 10.1 | B40: 3.39 | C40: =[1]!AgePb6U8(1/B40) -> 1666.39359 | D40: 0.076 | E40: 0.1038 | F40: 0.0006 | G40: 1693 | H40: 11 | M40: 9929
A41: 11.1 | B41: 3.371 | C41: =[1]!AgePb6U8(1/B41) -> 1674.664816 | D41: 0.074 | E41: 0.1037 | F41: 0.0008 | G41: 1692 | H41: 14 | M41: 9911
A42: 8.1 | B42: 3.522 | C42: =[1]!AgePb6U8(1/B42) -> 1611.12241 | D42: 0.078 | E42: 0.1037 | F42: 0.0012 | G42: 1692 | H42: 21 | M42: 9905
A43: 2.3 | B43: 3.569 | C43: =[1]!AgePb6U8(1/B43) -> 1592.321793 | D43: 0.061 | E43: 0.1036 | F43: 0.0005 | G43: 1690 | H43: 8 | M43: 9903
A44: 14.3 | B44: 3.523 | C44: =[1]!AgePb6U8(1/B44) -> 1610.717751 | D44: 0.044 | E44: 0.1034 | F44: 0.0006 | G44: 1687 | H44: 11 | M44: 9895
A45: 5.1 | B45: 3.5 | C45: =[1]!AgePb6U8(1/B45) -> 1620.076895 | D45: 0.104 | E45: 0.1034 | F45: 0.0012 | G45: 1686 | H45: 22 | M45: 9885
A46: 4.1 | B46: 3.429 | C46: =[1]!AgePb6U8(1/B46) -> 1649.670598 | D46: 0.072 | E46: 0.1034 | F46: 0.0006 | G46: 1686 | H46: 10 | M46: 9881
A47: 1.1 | B47: 3.397 | C47: =[1]!AgePb6U8(1/B47) -> 1663.366969 | D47: 0.098 | E47: 0.1031 | F47: 0.0011 | G47: 1680 | H47: 19 | M47: 9881
A48: 10.2 | B48: 3.683 | C48: =[1]!AgePb6U8(1/B48) -> 1548.501484 | D48: 0.048 | E48: 0.103 | F48: 0.0006 | G48: 1680 | H48: 10 | M48: 9877
A49: 3.3 | B49: 3.536 | C49: =[1]!AgePb6U8(1/B49) -> 1605.475724 | D49: 0.048 | E49: 0.103 | F49: 0.0006 | G49: 1679 | H49: 10 | M49: 9857
A50: 14.1 | B50: 3.484 | C50: =[1]!AgePb6U8(1/B50) -> 1626.652353 | D50: 0.085 | E50: 0.1029 | F50: 0.0013 | G50: 1676 | H50: 23 | M50: 9833
A51: 2.1 | B51: 3.426 | C51: =[1]!AgePb6U8(1/B51) -> 1650.944991 | D51: 0.077 | E51: 0.1025 | F51: 0.0006 | G51: 1670 | H51: 11 | M51: 9833
A52: 15.1 | B52: 3.49 | C52: =[1]!AgePb6U8(1/B52) -> 1624.180277 | D52: 0.074 | E52: 0.1023 | F52: 0.0006 | G52: 1666 | H52: 10 | M52: 9828
A53: 3.1 | B53: 3.428 | C53: =[1]!AgePb6U8(1/B53) -> 1650.095176 | D53: 0.077 | E53: 0.1022 | F53: 0.0012 | G53: 1665 | H53: 23 | M53: 9826
A54: 1.3 | B54: 3.573 | C54: =[1]!AgePb6U8(1/B54) -> 1590.742083 | D54: 0.068 | E54: 0.1022 | F54: 0.0008 | G54: 1665 | H54: 14 | M54: 9822
A55: 16.1 | B55: 3.573 | C55: =[1]!AgePb6U8(1/B55) -> 1590.742083 | D55: 0.079 | E55: 0.1018 | F55: 0.0008 | G55: 1657 | H55: 15 | M55: 9821
A56: 7.1 | B56: 3.438 | C56: =[1]!AgePb6U8(1/B56) -> 1645.859259 | D56: 0.079 | E56: 0.1017 | F56: 0.0008 | G56: 1655 | H56: 15 | M56: 9812
A57: 12.1 | B57: 3.486 | C57: =[1]!AgePb6U8(1/B57) -> 1625.827488 | D57: 0.095 | E57: 0.1016 | F57: 0.0011 | G57: 1653 | H57: 20 | M57: 9812
B58: AVG | C58: =AVERAGE(C36:C57) -> 1626.007535 | F58: AVG | G58: =AVERAGE(G36:G57) -> 1679.863636 | M58: 9807
B59: MAX | C59: =MAX(C36:C57) -> 1674.664816 | F59: MAX | G59: =MAX(G36:G57) -> 1699 | M59: 9804
B60: MIN | C60: =MIN(C36:C57) -> 1548.501484 | F60: MIN | G60: =MIN(G36:G57) -> 1653 | M60: 9795
B61: STD DEV | C61: =STDEV(C36:C57) -> 31.01289816 | F61: STD DEV | G61: =STDEV(G36:G57) -> 14.46603725 | M61: 9783
M62: 9760
M63: 9760
A64: Sample | B64: 238U/206Pb | C64: 238U/206Pb | G64: 207Pb/206Pb | H64: Table 5 | M64: 9747
A65: Number | B65: Ratio | C65: Age | G65: Age | M65: 9736
A66: 1.4 | B66: 3.546 | C66: =[1]!AgePb6U8(1/B66) -> 1601.466674 | D66: 0.068 | E66: 0.1037 | F66: 0.003 | G66: 1691 | H66: 61 | M66: 9730
A67: 14.2 | B67: 3.408 | C67: =[1]!AgePb6U8(1/B67) -> 1658.633121 | D67: 0.07 | E67: 0.1024 | F67: 0.001 | G67: 1668 | H67: 21 | M67: 9720
A68: 13.1 | B68: 3.535 | C68: =[1]!AgePb6U8(1/B68) -> 1605.877739 | D68: 0.085 | E68: 0.1022 | F68: 0.001 | G68: 1665 | H68: 10 | M68: 9704
A69: 19.2 | B69: 3.621 | C69: =[1]!AgePb6U8(1/B69) -> 1572.028371 | D69: 0.105 | E69: 0.1021 | F69: 0.001 | G69: 1663 | H69: 12 | M69: 9592
A70: 18.1 | B70: 3.663 | C70: =[1]!AgePb6U8(1/B70) -> 1556.013112 | D70: 0.077 | E70: 0.1017 | F70: 0.001 | G70: 1655 | H70: 13 | M70: 9577
A71: 13.2 | B71: 3.615 | C71: =[1]!AgePb6U8(1/B71) -> 1574.343351 | D71: 0.078 | E71: 0.1015 | F71: 0.001 | G71: 1652 | H71: 13 | M71: 9577
A72: 14.1 | B72: 3.495 | C72: =[1]!AgePb6U8(1/B72) -> 1622.125977 | D72: 0.08 | E72: 0.1014 | F72: 0.001 | G72: 1649 | H72: 18 | M72: 9555
A73: 33.1 | B73: 3.28 | C73: =[1]!AgePb6U8(1/B73) -> 1715.452617 | D73: 0.071 | E73: 0.1013 | F73: 0.002 | G73: 1648 | H73: 41 | M73: 9553
A74: 21.1 | B74: 3.529 | C74: =[1]!AgePb6U8(1/B74) -> 1608.294085 | D74: 0.074 | E74: 0.1012 | F74: 0.001 | G74: 1646 | H74: 17 | M74: 9463
A75: 17.1 | B75: 3.555 | C75: =[1]!AgePb6U8(1/B75) -> 1597.875697 | D75: 0.076 | E75: 0.1012 | F75: 0.001 | G75: 1645 | H75: 15 | M75: 9365
A76: 4.1 | B76: 3.431 | C76: =[1]!AgePb6U8(1/B76) -> 1648.822101 | D76: 0.072 | E76: 0.1006 | F76: 0.001 | G76: 1635 | H76: 22 | M76: 9332
A77: 28.1 | B77: 3.755 | C77: =[1]!AgePb6U8(1/B77) -> 1522.052608 | D77: 0.086 | E77: 0.1005 | F77: 0.001 | G77: 1634 | H77: 11 | M77: 8633
A78: 19.1 | B78: 3.556 | C78: =[1]!AgePb6U8(1/B78) -> 1597.477698 | D78: 0.078 | E78: 0.1005 | F78: 0.001 | G78: 1633 | H78: 17 | M78: 8013
A79: 16.1 | B79: 3.562 | C79: =[1]!AgePb6U8(1/B79) -> 1595.093886 | D79: 0.085 | E79: 0.1005 | F79: 0.001 | G79: 1633 | H79: 10 | M79: 7264
A80: 24.1 | B80: 3.609 | C80: =[1]!AgePb6U8(1/B80) -> 1576.665193 | D80: 0.08 | E80: 0.1004 | F80: 0.001 | G80: 1632 | H80: 13 | M80: 7252
A81: 1.2 | B81: 3.472 | C81: =[1]!AgePb6U8(1/B81) -> 1631.619269 | D81: 0.076 | E81: 0.1003 | F81: 0.001 | G81: 1630 | H81: 14
A82: 15.1 | B82: 3.538 | C82: =[1]!AgePb6U8(1/B82) -> 1604.672301 | D82: 0.071 | E82: 0.1002 | F82: 0.001 | G82: 1628 | H82: 15
A83: 75.1 | B83: 3.6 | C83: =[1]!AgePb6U8(1/B83) -> 1580.16089 | D83: 0.083 | E83: 0.1001 | F83: 0.001 | G83: 1626 | H83: 19
A84: 22.1 | B84: 3.606 | C84: =[1]!AgePb6U8(1/B84) -> 1577.828697 | D84: 0.092 | E84: 0.1001 | F84: 0.001 | G84: 1625 | H84: 19
A85: 7.2 | B85: 3.673 | C85: =[1]!AgePb6U8(1/B85) -> 1552.248167 | D85: 0.101 | E85: 0.0996 | F85: 0.003 | G85: 1616 | H85: 49
A86: 29.1 | B86: 3.396 | C86: =[1]!AgePb6U8(1/B86) -> 1663.798666 | D86: 0.142 | E86: 0.0994 | F86: 0.004 | G86: 1614 | H86: 77
A87: 16.2 | B87: 3.668 | C87: =[1]!AgePb6U8(1/B87) -> 1554.128348 | D87: 0.074 | E87: 0.0992 | F87: 0.001 | G87: 1608 | H87: 10
A88: 27.1 | B88: 3.708 | C88: =[1]!AgePb6U8(1/B88) -> 1539.213806 | D88: 0.126 | E88: 0.0978 | F88: 0.001 | G88: 1583 | H88: 25
A89: 1.3 | B89: 3.676 | C89: =[1]!AgePb6U8(1/B89) -> 1551.122251 | D89: 0.08 | E89: 0.0978 | F89: 0.003 | G89: 1583 | H89: 53
A90: 12.1 | B90: 3.884 | C90: =[1]!AgePb6U8(1/B90) -> 1476.86708 | D90: 0.076 | E90: 0.0978 | F90: 0.001 | G90: 1582 | H90: 10
A91: 10.1 | B91: 3.652 | C91: =[1]!AgePb6U8(1/B91) -> 1560.175806 | D91: 0.081 | E91: 0.0977 | F91: 0.001 | G91: 1581 | H91: 25
A92: 37.2 | B92: 3.868 | C92: =[1]!AgePb6U8(1/B92) -> 1482.324561 | D92: 0.137 | E92: 0.0973 | F92: 0.004 | G92: 1573 | H92: 79
A93: 31.1 | B93: 3.448 | C93: =[1]!AgePb6U8(1/B93) -> 1641.645152 | D93: 0.053 | E93: 0.0972 | F93: 0.001 | G93: 1571 | H93: 19
A94: 11.1 | B94: 3.722 | C94: =[1]!AgePb6U8(1/B94) -> 1534.061437 | D94: 0.081 | E94: 0.0972 | F94: 0.001 | G94: 1571 | H94: 12
A95: 3.1 | B95: 3.594 | C95: =[1]!AgePb6U8(1/B95) -> 1582.500022 | D95: 0.115 | E95: 0.0969 | F95: 0.001 | G95: 1565 | H95: 19
A96: 5.1 | B96: 3.616 | C96: =[1]!AgePb6U8(1/B96) -> 1573.957045 | D96: 0.092 | E96: 0.0969 | F96: 0.002 | G96: 1565 | H96: 41
A97: 26.1 | B97: 3.625 | C97: =[1]!AgePb6U8(1/B97) -> 1570.488849 | D97: 0.106 | E97: 0.0968 | F97: 0.002 | G97: 1563 | H97: 33
A98: 1.1 | B98: 3.488 | C98: =[1]!AgePb6U8(1/B98) -> 1625.003463 | D98: 0.096 | E98: 0.0966 | F98: 0.003 | G98: 1560 | H98: 56
A99: 6.1 | B99: 3.703 | C99: =[1]!AgePb6U8(1/B99) -> 1541.062376 | D99: 0.075 | E99: 0.0965 | F99: 0.001 | G99: 1558 | H99: 10
A100: 20.1 | B100: 3.914 | C100: =[1]!AgePb6U8(1/B100) -> 1466.742338 | D100: 0.1 | E100: 0.0963 | F100: 0.001 | G100: 1554 | H100: 12
A101: 5.2 | B101: 3.508 | C101: =[1]!AgePb6U8(1/B101) -> 1616.809165 | D101: 0.1097 | E101: 0.0962 | F101: 0.002 | G101: 1552 | H101: 35
A102: 8.1 | B102: 3.461 | C102: =[1]!AgePb6U8(1/B102) -> 1636.199139 | D102: 0.081 | E102: 0.0957 | F102: 0.002 | G102: 1542 | H102: 43
A103: 3.2 | B103: 3.55 | C103: =[1]!AgePb6U8(1/B103) -> 1599.868683 | D103: 0.103 | E103: 0.0957 | F103: 0.001 | G103: 1541 | H103: 29
A104: 2.1 | B104: 3.555 | C104: =[1]!AgePb6U8(1/B104) -> 1597.875697 | D104: 0.076 | E104: 0.0955 | F104: 0.001 | G104: 1539 | H104: 18
A105: 9.1 | B105: 4.006 | C105: =[1]!AgePb6U8(1/B105) -> 1436.544437 | D105: 0.083 | E105: 0.0952 | F105: 0.001 | G105: 1533 | H105: 20
A106: 7.1 | B106: 3.583 | C106: =[1]!AgePb6U8(1/B106) -> 1586.806557 | D106: 0.078 | E106: 0.095 | F106: 0.001 | G106: 1529 | H106: 30
A107: 26.2 | B107: 3.472 | C107: =[1]!AgePb6U8(1/B107) -> 1631.619269 | D107: 0.096 | E107: 0.0933 | F107: 0.005 | G107: 1494 | H107: 104
A108: 30.1 | B108: 3.33 | C108: =[1]!AgePb6U8(1/B108) -> 1692.797667 | D108: 0.133 | E108: 0.0903 | F108: 0.005 | G108: 1433 | H108: 119
A109: 32.1 | B109: 3.873 | C109: =[1]!AgePb6U8(1/B109) -> 1480.614752 | D109: 0.112 | E109: 0.0841 | F109: 0.005 | G109: 1296 | H109: 122
B110: AVG | C110: =AVERAGE(C66:C109) -> 1582.749503 | F110: AVG | G110: =AVERAGE(G66:G109) -> 1590.090909
B111: MAX | C111: =MAX(C66:C109) -> 1715.452617 | F111: MAX | G111: =MAX(G66:G109) -> 1691
B112: MIN | C112: =MIN(C66:C109) -> 1436.544437 | F112: MIN | G112: =MIN(G66:G109) -> 1296
B113: STD DEV | C113: =STDEV(C66:C109) -> 58.24387959 | F113: STD DEV | G113: =STDEV(G66:G109) -> 69.44156593
A117: Sample | B117: 238U/206Pb | C117: 238U/206Pb | G117: 207Pb/206Pb | I117: Table 6
A118: Number | B118: Ratio | C118: Age | G118: Age
A119: 1.1 | B119: 3.427 | C119: =[1]!AgePb6U8(1/B119) -> 1650.519973 | D119: 0.079 | E119: 0.1039 | F119: 0.0012 | G119: 1695 | H119: 21
A120: 13.1 | B120: 1.911 | C120: =[1]!AgePb6U8(1/B120) -> 2713.102334 | D120: 0.236 | E120: 0.1668 | F120: 0.0231 | G120: 2526 | H120: 254
A121: 34.1 | B121: 2.294 | C121: =[1]!AgePb6U8(1/B121) -> 2332.348835 | D121: 0.06 | E121: 0.1574 | F121: 0.0016 | G121: 2428 | H121: 17
A122: 37.1 | B122: 3.469 | C122: =[1]!AgePb6U8(1/B122) -> 1632.865766 | D122: 0.103 | E122: 0.1518 | F122: 0.0074 | G122: 2366 | H122: 85
A123: 20.1 | B123: 2.651 | C123: =[1]!AgePb6U8(1/B123) -> 2063.266239 | D123: 0.085 | E123: 0.1298 | F123: 0.0018 | G123: 2095 | H123: 24
A124: 22.1 | B124: 3.059 | C124: =[1]!AgePb6U8(1/B124) -> 1823.35905 | D124: 0.062 | E124: 0.1282 | F124: 0.0034 | G124: 2074 | H124: 48
A125: 28.1 | B125: 3.354 | C125: =[1]!AgePb6U8(1/B125) -> 1682.135693 | D125: 0.067 | E125: 0.1219 | F125: 0.0029 | G125: 1985 | H125: 42
A126: 16.3 | B126: 3.51 | C126: =[1]!AgePb6U8(1/B126) -> 1615.994302 | D126: 0.107 | E126: 0.1108 | F126: 0.0027 | G126: 1813 | H126: 45
A127: 33.1 | B127: 3.416 | C127: =[1]!AgePb6U8(1/B127) -> 1655.207304 | D127: 0.097 | E127: 0.1063 | F127: 0.0016 | G127: 1738 | H127: 27
A128: 8.1 | B128: 3.323 | C128: =[1]!AgePb6U8(1/B128) -> 1695.933062 | D128: 0.112 | E128: 0.1059 | F128: 0.0016 | G128: 1730 | H128: 29
A129: 9.1 | B129: 3.395 | C129: =[1]!AgePb6U8(1/B129) -> 1664.230589 | D129: 0.079 | E129: 0.1056 | F129: 0.002 | G129: 1725 | H129: 35
A130: 2.1 | B130: 3.397 | C130: =[1]!AgePb6U8(1/B130) -> 1663.366969 | D130: 0.102 | E130: 0.1056 | F130: 0.0031 | G130: 1724 | H130: 55
A131: 10.1 | B131: 4.888 | C131: =[1]!AgePb6U8(1/B131) -> 1199.89144 | D131: 0.087 | E131: 0.1055 | F131: 0.0009 | G131: 1723 | H131: 15
A132: 4.1 | B132: 3.316 | C132: =[1]!AgePb6U8(1/B132) -> 1699.080162 | D132: 0.092 | E132: 0.1051 | F132: 0.0019 | G132: 1716 | H132: 33
A133: 7.1 | B133: 3.346 | C133: =[1]!AgePb6U8(1/B133) -> 1685.674645 | D133: 0.088 | E133: 0.105 | F133: 0.0046 | G133: 1714 | H133: 84
A134: 11.1 | B134: 3.663 | C134: =[1]!AgePb6U8(1/B134) -> 1556.013112 | D134: 0.085 | E134: 0.1044 | F134: 0.0016 | G134: 1705 | H134: 28
A135: 39.1 | B135: 3.8 | C135: =[1]!AgePb6U8(1/B135) -> 1505.97809 | D135: 0.095 | E135: 0.1043 | F135: 0.0011 | G135: 1702 | H135: 19
A136: 3.1 | B136: 3.436 | C136: =[1]!AgePb6U8(1/B136) -> 1646.704692 | D136: 0.074 | E136: 0.1042 | F136: 0.0025 | G136: 1700 | H136: 45
A137: 26.1 | B137: 3.547 | C137: =[1]!AgePb6U8(1/B137) -> 1601.066875 | D137: 0.066 | E137: 0.1041 | F137: 0.0007 | G137: 1698 | H137: 13
A138: 21.1 | B138: 3.447 | C138: =[1]!AgePb6U8(1/B138) -> 1642.065586 | D138: 0.083 | E138: 0.1039 | F138: 0.001 | G138: 1696 | H138: 17
A139: 12.1 | B139: 3.391 | C139: =[1]!AgePb6U8(1/B139) -> 1665.960538 | D139: 0.08 | E139: 0.1039 | F139: 0.0023 | G139: 1694 | H139: 42
A140: 19.1 | B140: 3.739 | C140: =[1]!AgePb6U8(1/B140) -> 1527.851391 | D140: 0.07 | E140: 0.1038 | F140: 0.0006 | G140: 1694 | H140: 11
A141: 35.1 | B141: 4.155 | C141: =[1]!AgePb6U8(1/B141) -> 1390.199447 | D141: 0.108 | E141: 0.1037 | F141: 0.0011 | G141: 1691 | H141: 20
A142: 24.1 | B142: 3.482 | C142: =[1]!AgePb6U8(1/B142) -> 1627.47806 | D142: 0.069 | E142: 0.1036 | F142: 0.0009 | G142: 1690 | H142: 15
A143: 40.1 | B143: 4.552 | C143: =[1]!AgePb6U8(1/B143) -> 1280.203232 | D143: 0.111 | E143: 0.1032 | F143: 0.0011 | G143: 1683 | H143: 19
A144: 5.1 | B144: 3.625 | C144: =[1]!AgePb6U8(1/B144) -> 1570.488849 | D144: 0.086 | E144: 0.1032 | F144: 0.0007 | G144: 1683 | H144: 12
A145: 27.1 | B145: 3.491 | C145: =[1]!AgePb6U8(1/B145) -> 1623.768999 | D145: 0.092 | E145: 0.1029 | F145: 0.0019 | G145: 1678 | H145: 34
A146: 38.1 | B146: 3.473 | C146: =[1]!AgePb6U8(1/B146) -> 1631.204195 | D146: 0.083 | E146: 0.1022 | F146: 0.0014 | G146: 1665 | H146: 25
A147: 25.2 | B147: 3.167 | C147: =[1]!AgePb6U8(1/B147) -> 1768.970733 | D147: 0.085 | E147: 0.1021 | F147: 0.0018 | G147: 1663 | H147: 33
A148: 30.1 | B148: 3.556 | C148: =[1]!AgePb6U8(1/B148) -> 1597.477698 | D148: 0.087 | E148: 0.1021 | F148: 0.0008 | G148: 1662 | H148: 15
A149: 36.1 | B149: 3.367 | C149: =[1]!AgePb6U8(1/B149) -> 1676.41666 | D149: 0.087 | E149: 0.102 | F149: 0.0012 | G149: 1661 | H149: 22
A150: 25.3 | B150: 3.497 | C150: =[1]!AgePb6U8(1/B150) -> 1621.305719 | D150: 0.093 | E150: 0.102 | F150: 0.0011 | G150: 1661 | H150: 19
A151: 16.2 | B151: 3.432 | C151: =[1]!AgePb6U8(1/B151) -> 1648.398181 | D151: 0.092 | E151: 0.1018 | F151: 0.0016 | G151: 1656 | H151: 29
A152: 32.1 | B152: 3.632 | C152: =[1]!AgePb6U8(1/B152) -> 1567.801963 | D152: 0.118 | E152: 0.1016 | F152: 0.0018 | G152: 1653 | H152: 33
A153: 25.1 | B153: 3.333 | C153: =[1]!AgePb6U8(1/B153) -> 1691.457492 | D153: 0.079 | E153: 0.1014 | F153: 0.002 | G153: 1649 | H153: 37
A154: 16.1 | B154: 3.338 | C154: =[1]!AgePb6U8(1/B154) -> 1689.228604 | D154: 0.071 | E154: 0.1013 | F154: 0.0018 | G154: 1648 | H154: 32
A155: 31.1 | B155: 4.748 | C155: =[1]!AgePb6U8(1/B155) -> 1232.093418 | D155: 0.13 | E155: 0.1007 | F155: 0.0013 | G155: 1637 | H155: 25
B156: AVG | C156: =AVERAGE(C119:C155) -> 1663.219186 | F156: AVG | G156: =AVERAGE(G119:G155) -> 1781.648649
B157: MAX | C157: =MAX(C119:C155) -> 2713.102334 | F157: MAX | G157: =MAX(G119:G155) -> 2526
B158: MIN | C158: =MIN(C119:C155) -> 1199.89144 | F158: MIN | G158: =MIN(G119:G155) -> 1637
B159: STD DEV | C159: =STDEV(C119:C155) -> 261.6122933 | F159: STD DEV | G159: =STDEV(G119:G155) -> 225.1829153
A162: Sample | B162: 238U/206Pb | C162: 238U/206Pb | G162: 207Pb/206Pb | I162: Table 7
A163: Number | B163: Ratio | C163: Age | G163: Age
A164: h-17.1 | B164: 2.184 | C164: =[1]!AgePb6U8(1/B164) -> 2430.170573 | D164: 0.051 | E164: 0.1961 | F164: 0.0017 | G164: 2794 | H164: 15
A165: b-18.1 | B165: 2.015 | C165: =[1]!AgePb6U8(1/B165) -> 2597.780079 | D165: 0.056 | E165: 0.1776 | F165: 0.0022 | G165: 2631 | H165: 21
A166: b-20.2 | B166: 3.117 | C166: =[1]!AgePb6U8(1/B166) -> 1793.738869 | D166: 0.081 | E166: 0.1706 | F166: 0.0018 | G166: 2563 | H166: 18
A167: b-20.1 | B167: 3.244 | C167: =[1]!AgePb6U8(1/B167) -> 1732.145589 | D167: 0.054 | E167: 0.1645 | F167: 0.0023 | G167: 2502 | H167: 24
A168: b-21.1 | B168: 2.461 | C168: =[1]!AgePb6U8(1/B168) -> 2198.161439 | D168: 0.068 | E168: 0.1532 | F168: 0.003 | G168: 2382 | H168: 34
A169: b-26.1 | B169: 2.339 | C169: =[1]!AgePb6U8(1/B169) -> 2294.587419 | D169: 0.059 | E169: 0.1489 | F169: 0.0021 | G169: 1333 | H169: 15
A170: b-25. | B170: 3.271 | C170: =[1]!AgePb6U8(1/B170) -> 1719.595444 | D170: 0.088 | E170: 0.1455 | F170: 0.0037 | G170: 2294 | H170: 44
A171: a-13.1 | B171: 3.706 | C171: =[1]!AgePb6U8(1/B171) -> 1539.952699 | D171: 0.105 | E171: 0.137 | F171: 0.0035 | G171: 2190 | H171: 45
A172: b-28. | B172: 3.533 | C172: =[1]!AgePb6U8(1/B172) -> 1606.682376 | D172: 0.083 | E172: 1.1177 | F172: 0.0013 | G172: 1921 | H172: 20
A173: b-32.1 | B173: 3.233 | C173: =[1]!AgePb6U8(1/B173) -> 1737.311605 | D173: 0.079 | E173: 0.1128 | F173: 0.0024 | G173: 1846 | H173: 39
A174: a-6.1 | B174: 3.861 | C174: =[1]!AgePb6U8(1/B174) -> 1484.724969 | D174: 0.095 | E174: 0.1117 | F174: 0.0021 | G174: 1828 | H174: 34
A175: b-23. | B175: 3.574 | C175: =[1]!AgePb6U8(1/B175) -> 1590.347648 | D175: 0.08 | E175: 0.111 | F175: 0.002 | G175: 1815 | H175: 34
A176: a-14.1 | B176: 4.656 | C176: =[1]!AgePb6U8(1/B176) -> 1254.21575 | D176: 0.12 | E176: 0.1106 | F176: 0.002 | G176: 1809 | H176: 33
A177: a-5.1 | B177: 3.03 | C177: =[1]!AgePb6U8(1/B177) -> 1838.54154 | D177: 0.072 | E177: 0.1103 | F177: 0.0018 | G177: 1805 | H177: 30
A178: a- 16. | B178: 3.465 | C178: =[1]!AgePb6U8(1/B178) -> 1634.530744 | D178: 0.085 | E178: 0.1086 | F178: 0.0029 | G178: 1775 | H178: 50
A179: a-1.1 | B179: 3.623 | C179: =[1]!AgePb6U8(1/B179) -> 1571.258231 | D179: 0.088 | E179: 0.1075 | F179: 0.0025 | G179: 1758 | H179: 42
A180: a-10.1 | B180: 3.381 | C180: =[1]!AgePb6U8(1/B180) -> 1670.301274 | D180: 0.079 | E180: 0.1066 | F180: 0.0018 | G180: 1742 | H180: 31
A181: a-8.1 | B181: 3.352 | C181: =[1]!AgePb6U8(1/B181) -> 1683.019029 | D181: 0.084 | E181: 0.1065 | F181: 0.0022 | G181: 1741 | H181: 37
A182: b-31.I | B182: 3.355 | C182: =[1]!AgePb6U8(1/B182) -> 1681.694375 | D182: 0.107 | E182: 0.1061 | F182: 0.0021 | G182: 1733 | H182: 37
A183: a-9.1 | B183: 3.566 | C183: =[1]!AgePb6U8(1/B183) -> 1593.508646 | D183: 0.087 | E183: 0.1058 | F183: 0.0013 | G183: 1728 | H183: 23
A184: a-15.1 | B184: 3.399 | C184: =[1]!AgePb6U8(1/B184) -> 1662.504249 | D184: 0.099 | E184: 0.115 | F184: 0.002 | G184: 1714 | H184: 35
A185: b-19. | B185: 3.332 | C185: =[1]!AgePb6U8(1/B185) -> 1691.90398 | D185: 0.088 | E185: 0.104 | F185: 0.0026 | G185: 1697 | H185: 47
A186: a-3.1 | B186: 3.504 | C186: =[1]!AgePb6U8(1/B186) -> 1618.441372 | D186: 0.099 | E186: 0.1038 | F186: 0.0016 | G186: 1692 | H186: 29
A187: b-24.1 | B187: 3.729 | C187: =[1]!AgePb6U8(1/B187) -> 1531.498227 | D187: 0.081 | E187: 0.1035 | F187: 0.0019 | G187: 1687 | H187: 34
A188: b-33.1 | B188: 3.468 | C188: =[1]!AgePb6U8(1/B188) -> 1633.281691 | D188: 0.112 | E188: 0.1033 | F188: 0.0018 | G188: 1685 | H188: 33
A189: a-4.1 | B189: 3.281 | C189: =[1]!AgePb6U8(1/B189) -> 1714.993542 | D189: 0.083 | E189: 0.1032 | F189: 0.0019 | G189: 1682 | H189: 34
A190: a-7.1 | B190: 3.276 | C190: =[1]!AgePb6U8(1/B190) -> 1717.291392 | D190: 0.099 | E190: 0.1029 | F190: 0.0023 | G190: 1677 | H190: 43
A191: b-30. | B191: 3.339 | C191: =[1]!AgePb6U8(1/B191) -> 1688.783535 | D191: 0.105 | E191: 0.1028 | F191: 0.0018 | G191: 1675 | H191: 33
A192: b-27.1 | B192: 3.332 | C192: =[1]!AgePb6U8(1/B192) -> 1691.90398 | D192: 0.079 | E192: 0.1026 | F192: 0.0014 | G192: 1672 | H192: 25
A193: a-1.2 | B193: 3.361 | C193: =[1]!AgePb6U8(1/B193) -> 1679.051346 | D193: 0.081 | E193: 0.1024 | F193: 0.0023 | G193: 1668 | H193: 43
A194: b-22. | B194: 3.413 | C194: =[1]!AgePb6U8(1/B194) -> 1656.490317 | D194: 0.08 | E194: 0.1023 | F194: 0.0012 | G194: 1667 | H194: 22
A195: b-29.1 | B195: 3.525 | C195: =[1]!AgePb6U8(1/B195) -> 1609.909047 | D195: 0.101 | E195: 0.1014 | F195: 0.0014 | G195: 1650 | H195: 25
A196: a-2.1 | B196: 3.337 | C196: =[1]!AgePb6U8(1/B196) -> 1689.673909 | D196: 0.095 | E196: 0.1012 | F196: 0.0029 | G196: 1646 | H196: 54
A197: a-12. | B197: 3.427 | C197: =[1]!AgePb6U8(1/B197) -> 1650.519973 | D197: 0.088 | E197: 0.0983 | F197: 0.0027 | G197: 1593 | H197: 53
B198: AVG | C198: =AVERAGE(C164:C197) -> 1732.015143 | F198: AVG | G198: =AVERAGE(G164:G197) -> 1870.441176
B199: MAX | C199: =MAX(C164:C197) -> 2597.780079 | F199: MAX | G199: =MAX(G164:G197) -> 2794
B200: MIN | C200: =MIN(C164:C197) -> 1254.21575 | F200: MIN | G200: =MIN(G164:G197) -> 1333
B201: STD DEV | C201: =STDEV(C164:C197) -> 264.9530934 | F201: STD DEV | G201: =STDEV(G164:G197) -> 340.0309425
A204: Sample | B204: 238U/206Pb | C204: 238U/206Pb | G204: 207Pb/206Pb | I204: Table 8
A205: Number | B205: Ratio | C205: Age | G205: Age
A206: 1.1 | B206: 1.91 | C206: =[1]!AgePb6U8(1/B206) -> 2714.261654 | D206: 0.049 | E206: 0.2011 | F206: 0.0022 | G206: 2835 | H206: 18
A207: 12.1 | B207: 4.029 | C207: =[1]!AgePb6U8(1/B207) -> 1429.189047 | D207: 0.107 | E207: 0.1089 | F207: 0.0022 | G207: 1781 | H207: 38
... 172 more rows

Sheet Th_232_01
C1: 207Pb/206Pb | D1: 207Pb/206Pb | E1: 206/Pb/238U | F1: 206/Pb/238U | G1: 208Pb/232Th | H1: 208Pb/232Th | I1: 206Pb/ | J1: 207Pb/ | K1: 208Pb/ | L1: 238U/ | N1: 235U/ | P1: 232Th/
C2: Ratio | D2: Age | E2: Ratio | F2: Age | G2: Ratio | H2: Age | I2: 204Pb | J2: 204Pb | K2: 204Pb | L2: 204Pb | N2: 204Pb | P2: 204Pb
A3: ABDP-42.60b | B3: Tholeiite | C3: =(J3/I3) -> 0.9893595253 | D3: =[1]!AgePb76($C$3) -> 5222.336113 | E3: =(I3/L3) -> 3.663418291 | F3: =[1]!AgePb6U8(E3) -> 9925.857973 | G3: =(K3/P3) -> 2.684838027 | H3: =[1]!AgePb8Th2(G3) -> 26361.32531 | I3: 14.661 | J3: 14.505 | K3: 34.229 | L3: 4.002 | M3: 0.32 | N3: 0.029 | O3: 0.32 | P3: 12.749 | Q3: 0.34
A4: ABDP-190.26 | B4: Tholeiite | C4: =(J4/I4) -> 1.042898762 | D4: =[1]!AgePb76($C$4) -> 5296.324867 | E4: =(I4/L4) -> 13.16395014 | F4: =[1]!AgePb6U8(E4) -> 17087.51016 | G4: =(K4/P4) -> 37.84502262 | H4: =[1]!AgePb8Th2(G4) -> 73968.26581 | I4: 13.73 | J4: 14.319 | K4: 33.455 | L4: 1.043 | M4: 0.09 | N4: 0.0076 | O4: 0.09 | P4: 0.884 | Q4: 0.13
A5: ABDP-193.28 | B5: Tholeiite | C5: 1.067053417 | D5: =[1]!AgePb76($C$5) -> 5328.402219 | E5: 6.538423645 | F5: =[1]!AgePb6U8(E5) -> 13021.84106 | G5: 14.43283582 | H5: =[1]!AgePb8Th2(G5) -> 55310.71118 | I5: 13.273 | J5: 14.163 | K5: 32.878 | L5: 2.03 | M5: 0.84 | N5: 0.0147 | O5: 0.84 | P5: 2.278 | Q5: 0.84
A6: ABDP-194.17 | B6: Tholeiite | C6: 1.044283414 | D6: =[1]!AgePb76($C$6) -> 5298.184776 | E6: 7.006153846 | F6: =[1]!AgePb6U8(E6) -> 13409.89832 | G6: 15.87440533 | H6: =[1]!AgePb8Th2(G6) -> 57115.67451 | I6: 13.662 | J6: 14.267 | K6: 33.368 | L6: 1.95 | M6: 1.09 | N6: 0.0141 | O6: 1.09 | P6: 2.102 | Q6: 1.12
A7: ABDP-194.44 | B7: Tholeiite | C7: 1.069909043 | D7: =[1]!AgePb76($C$7) -> 5332.143746 | E7: 22.47128378 | F7: =[1]!AgePb6U8(E7) -> 20343.45017 | G7: 144.073913 | H7: =[1]!AgePb8Th2(G7) -> 100601.1795 | I7: 13.303 | J7: 14.233 | K7: 33.137 | L7: 0.592 | M7: 0.01 | N7: 0.0043 | O7: 0.01 | P7: 0.23 | Q7: 0.08
A8: ABDP-211.40 | B8: Tholeiite | C8: 1.05698324 | D8: =[1]!AgePb76($C$8) -> 5315.123135 | E8: 4.219044626 | F8: =[1]!AgePb6U8(E8) -> 10651.50274 | G8: 5.917053157 | H8: =[1]!AgePb8Th2(G8) -> 39090.24426 | I8: 13.425 | J8: 14.19 | K8: 33.171 | L8: 3.182 | M8: 0.09 | N8: 0.0231 | O8: 0.09 | P8: 5.606 | Q8: 0.13
A9: ABDP-214.13 | B9: Tholeiite | C9: 1.084236415 | D9: =[1]!AgePb76($C$9) -> 5350.758247 | E9: 4.818888889 | F9: =[1]!AgePb6U8(E9) -> 11352.84017 | G9: 8.012439024 | H9: =[1]!AgePb8Th2(G9) -> 44438.72131 | I9: 13.011 | J9: 14.107 | K9: 32.851 | L9: 2.7 | M9: 0.49 | N9: 0.0196 | O9: 0.49 | P9: 4.1 | Q9: 0.5
A10: ABDP-214.18 | B10: Tholeiite | C10: 1.07521018 | D10: =[1]!AgePb76($C$10) -> 5339.061602 | E10: 2.025932177 | F10: =[1]!AgePb6U8(E10) -> 7137.593565 | G10: 11.84876654 | H10: =[1]!AgePb8Th2(G10) -> 51606.82804 | I10: 13.203 | J10: 14.196 | K10: 33.141 | L10: 6.517 | M10: 0.17 | N10: 0.0473 | O10: 0.17 | P10: 2.797 | Q10: 0.19
A11: ABDP-217.80 | B11: Tholeiite | C11: 1.022789164 | D11: =[1]!AgePb76($C$11) -> 5269.015186 | I11: 13.954 | J11: 14.272 | K11: 33.962
A12: ABDP-223.25 | B12: Tholeiite | C12: 1.125674696 | D12: =[1]!AgePb76($C$12) -> 5403.170217 | E12: 121.6960784 | F12: =[1]!AgePb6U8(E12) -> 31005.38527 | G12: 64.2689243 | H12: =[1]!AgePb8Th2(G12) -> 84457.1204 | I12: 12.413 | J12: 13.973 | K12: 32.263 | L12: 0.102 | M12: 0.07 | N12: 0.0007 | O12: 0.07 | P12: 0.502 | Q12: 0.06
A13: ABDP-229.45 | B13: Tholeiite | C13: 1.115047771 | D13: =[1]!AgePb76($C$13) -> 5389.925389 | E13: 13.65217391 | F13: =[1]!AgePb6U8(E13) -> 17305.97076 | G13: 16.939885 | H13: =[1]!AgePb8Th2(G13) -> 58353.23792 | I13: 12.56 | J13: 14.005 | K13: 32.406 | L13: 0.92 | M13: 0.1 | N13: 0.0067 | O13: 0.1 | P13: 1.913 | Q13: 0.11
A14: ABDP-229.60 | B14: Tholeiite | C14: 1.11894661 | D14: =[1]!AgePb76($C$14) -> 5394.800081 | E14: 19.86168521 | F14: =[1]!AgePb6U8(E14) -> 19583.6534 | G14: 27.09991604 | H14: =[1]!AgePb8Th2(G14) -> 67423.27617 | I14: 12.493 | J14: 13.979 | K14: 32.276 | L14: 0.629 | M14: 0.19 | N14: 0.0046 | O14: 0.19 | P14: 1.191 | Q14: 0.19
A15: ABDP-261.45 | B15: Tholeiite | C15: 1.037258041 | D15: =[1]!AgePb76($C$15) -> 5288.721027 | E15: 4.934290844 | F15: =[1]!AgePb6U8(E15) -> 11479.43616 | G15: 2.441351603 | H15: =[1]!AgePb8Th2(G15) -> 24979.57154 | I15: 13.742 | J15: 14.254 | K15: 34.03 | L15: 2.785 | M15: 0.03 | N15: 0.0202 | O15: 0.03 | P15: 13.939 | Q15: 0.26
C16: Average | D16: =AVERAGE(D3:D15) -> 5325.2282 | E16: AVG | F16: =AVERAGE(F3:F15) -> 15192.07831 | G16: AVG | H16: =AVERAGE(H3:H15) -> 56975.513
C17: Maximum | D17: =MAX(D3:D15) -> 5403.170217 | E17: MAX | F17: =MAX(F3:F15) -> 31005.38527 | G17: MAX | H17: =MAX(H3:H15) -> 100601.1795
C18: Miunimum | D18: =MIN(D3:D15) -> 5222.336113 | E18: MIN | F18: =MIN(F3:F15) -> 7137.593565 | G18: MIN | H18: =MIN(H3:H15) -> 24979.57154
C19: Std Deviation | D19: =STDEV(D3:D15) -> 52.24166301 | E19: STD DEV | F19: =STDEV(F3:F15) -> 6421.403332 | G19: STD DEV | H19: =STDEV(H3:H15) -> 22417.28591
A20: Dating | B20: 207Pb/206Pb | C20: 206/Pb/238U | D20: 208Pb/232Th
A21: Summary | B21: Age | C21: Age | D21: Age
A22: Average | B22: 5325.2282 | C22: 15192.07831 | D22: 56975.513 | H22: 207Pb/206Pb | I22: 206/Pb/238U | J22: 208Pb/232Th | L22: 206/Pb/238U | M22: 206/Pb/238U | N22: 206/Pb/238U
A23: Maximum | B23: 5403.170217 | C23: 31005.38527 | D23: 100601.1795 | H23: Age | I23: Age | J23: Age | L23: Age | M23: Age | N23: Age
A24: Miunimum | B24: 5222.336113 | C24: 7137.593565 | D24: 24979.57154 | H24: 5403.170217 | I24: 31005.38527 | J24: 100601.1795 | L24: 31005.38527 | M24: 17087.51016 | N24: 11352.84017
A25: Std Deviation | B25: 52.24166301 | C25: 6421.403332 | D25: 22417.28591 | H25: 5394.800081 | I25: 20343.45017 | J25: 84457.1204 | L25: 20343.45017 | M25: 13409.89832 | N25: 10651.50274
H26: 5389.925389 | I26: 19583.6534 | J26: 73968.26581 | L26: 19583.6534 | M26: 13021.84106 | N26: 9925.857973
H27: 5350.758247 | I27: 17305.97076 | J27: 67423.27617 | L27: 17305.97076 | M27: 11479.43616 | N27: 7137.593565
H28: 5339.061602 | I28: 17087.51016 | J28: 58353.23792 | L28: 17087.51016
H29: 5332.143746 | I29: 13409.89832 | J29: 57115.67451 | L29: 13409.89832
H30: 5328.402219 | I30: 13021.84106 | J30: 55310.71118 | L30: 13021.84106
H31: 5315.123135 | I31: 11479.43616 | J31: 51606.82804 | L31: 11479.43616
H32: 5298.184776 | I32: 11352.84017 | J32: 44438.72131 | L32: 11352.84017
H33: 5296.324867 | I33: 10651.50274 | J33: 39090.24426 | L33: 10651.50274
H34: 5288.721027 | I34: 9925.857973 | J34: 26361.32531 | L34: 9925.857973
H35: 5269.015186 | I35: 7137.593565 | J35: 24979.57154 | L35: 7137.593565

Sheet Th_232_02
A1: Rock | B1: 207Pb/206Pb | C1: 207Pb/206Pb | D1: 232Th/208Pb | E1: 232Th/208Pb
A2: Sample | B2: Ratio | C2: Age | D2: Ratio | E2: Age
A3: Garnet | B3: 0.9543963864 | C3: =[1]!AgePb76($B$3) -> 5171.696768 | D3: 39.17 | E3: =[1]!AgePb8Th2(1/D3) -> 509.5361434
A4: Clinopyroxene | B4: 0.9983149708 | C4: =[1]!AgePb76($B$4) -> 5235.002558 | D4: 3.84 | E4: =[1]!AgePb8Th2(1/D4) -> 4677.965723
A5: Phlogopite | B5: 0.8924749741 | C5: =[1]!AgePb76($B$5) -> 5076.99591 | D5: 118.4 | E5: =[1]!AgePb8Th2(1/D5) -> 169.9945126
B6: AVG | C6: =AVERAGE(C3:C5) -> 5161.231745 | D6: AVG | E6: =AVERAGE(E3:E5) -> 1785.832126
B7: MAX | C7: =MAX(C3:C5) -> 5235.002558 | D7: MAX | E7: =MAX(E3:E5) -> 4677.965723
B8: MIN | C8: =MIN(C3:C5) -> 5076.99591 | D8: MIN | E8: =MIN(E3:E5) -> 169.9945126
B9: STD DEV | C9: =STDEV(C3:C5) -> 79.52146086 | D9: STD DEV | E9: =STDEV(E3:E5) -> 2510.408271

Sheet Th_232_03
A1: Sample | H1: 238U/204Pb | I1: 232Th/204Pb | J1: 206Pb/204Pb | K1: 207Pb/204Pb | L1: 208Pb/204Pb | M1: 238U/206Pb | N1: 238U/206Pb | O1: 232Th/208Pb | P1: 232Th/208Pb | Q1: 207Pb/206Pb | R1: 207Pb/206Pb | V1: 238U/206Pb | X1: 232Th/208Pb | Z1: 207Pb/206Pb
A2: Number | H2: Ratio | I2: Ratio | J2: Ratio | K2: Ratio | L2: Ratio | M2: Ratio | N2: Age | O2: Ratio | P2: Age | Q2: Ratio | R2: Age | V2: 6285.48251 | X2: 13286.71038 | Z2: 5015.84652
A3: D-37 | B3: 2.3 | C3: 1.45 | D3: 0.54 | E3: 18.759 | F3: 15.671 | G3: 39.279 | H3: 15.2 | I3: 42.1 | J3: 18.603 | K3: 15.664 | L3: 39.14 | M3: =(J3/H3) -> 1.223881579 | N3: =[1]!AgePb6U8(M3) -> 5152.323146 | O3: =(L3/I3) -> 0.9296912114 | P3: =[1]!AgePb8Th2(O3) -> 13286.71038 | Q3: =(K3/J3) -> 0.8420147288 | R3: =[1]!AgePb76($Q$3) -> 4994.519418 | V3: 6164.82923 | X3: 11832.49268 | Z3: 4999.508268
A4: D-34 | B4: 2.51 | C4: 2.2 | D4: 0.5 | E4: 18.79 | F4: 15.68 | G4: 39.481 | H4: 12.9 | I4: 58.7 | J4: 18.657 | K4: 15.674 | L4: 39.29 | M4: =(J4/H4) -> 1.44627907 | N4: =[1]!AgePb6U8(M4) -> 5766.756635 | O4: =(L4/I4) -> 0.6693356048 | P4: =[1]!AgePb8Th2(O4) -> 10357.2654 | Q4: =(K4/J4) -> 0.8401136303 | R4: =[1]!AgePb76($Q$4) -> 4991.310295 | V4: 5766.756635 | X4: 11017.08089 | Z4: 4999.388469
A5: D-29 | B5: 5.93 | C5: 7.89 | D5: 1.61 | E5: 19.225 | F5: 15.733 | G5: 41.099 | H5: 18.1 | I5: 91.6 | J5: 19.039 | K5: 15.724 | L5: 40.8 | M5: 1.051878453 | N5: =[1]!AgePb6U8(M5) -> 4633.396887 | O5: 0.4454148472 | P5: =[1]!AgePb8Th2(O5) -> 7446.111608 | Q5: 0.8258837124 | R5: =[1]!AgePb76($Q$5) -> 4967.04183 | V5: 5552.611364 | X5: 10357.2654 | Z5: 4998.734914
A6: I)-26 | B6: 3.94 | C6: 4.4 | D6: 1.2 | E6: 19.204 | F6: 15.734 | G6: 41.035 | H6: 20.3 | I6: 76.8 | J6: 18.995 | K6: 15.724 | L6: 40.78 | M6: 0.9357142857 | N6: =[1]!AgePb6U8(M6) -> 4257.704421 | O6: 0.5309895833 | P6: =[1]!AgePb8Th2(O6) -> 8608.677369 | Q6: 0.8277967886 | R6: =[1]!AgePb76($Q$6) -> 4970.330239 | V6: 5152.323146 | X6: 9101.262052 | Z6: 4994.519418
A7: I)-20 | B7: 2.45 | C7: 4.41 | D7: 1.02 | E7: 18.811 | F7: 15.673 | G7: 39.498 | H7: 27 | I7: 121 | J7: 18.533 | K7: 15.66 | L7: 39.1 | M7: 0.6864074074 | N7: =[1]!AgePb6U8(M7) -> 3368.899093 | O7: 0.3231404959 | P7: =[1]!AgePb8Th2(O7) -> 5659.587153 | Q7: 0.8449792262 | R7: =[1]!AgePb76($Q$7) -> 4999.508268 | V7: 4903.387116 | X7: 8725.121271 | Z7: 4991.310295
A8: I)-19 | B8: 3.26 | C8: 3.53 | D8: 1.11 | E8: 19.142 | F8: 15.599 | G8: 39.54 | H8: 22.2 | I8: 72.8 | J8: 18.915 | K8: 15.588 | L8: 39.3 | M8: 0.852027027 | N8: =[1]!AgePb6U8(M8) -> 3972.800835 | O8: 0.5398351648 | P8: =[1]!AgePb8Th2(O8) -> 8725.121271 | Q8: 0.8241078509 | R8: =[1]!AgePb76($Q$8) -> 4963.982025 | X8: 8608.677369 | Z8: 4989.043363
A9: D-18 | B9: 3.14 | C9: 4.05 | D9: 1.06 | E9: 19.302 | F9: 15.606 | G9: 39.671 | H9: 22.1 | I9: 87.1 | J9: 19.075 | K9: 15.595 | L9: 39.39 | M9: 0.8631221719 | N9: =[1]!AgePb6U8(M9) -> 4011.304867 | O9: 0.452238806 | P9: =[1]!AgePb8Th2(O9) -> 7541.311163 | Q9: 0.8175622543 | R9: =[1]!AgePb76($Q$9) -> 4952.643131 | X9: 7541.311163 | Z9: 4973.013147
A10: 1)-16 | B10: 1.76 | C10: 2.79 | D10: 0.45 | E10: 19.204 | F10: 15.611 | G10: 39.647 | H10: 16.7 | I10: 107 | J10: 19.032 | K10: 15.603 | L10: 39.3 | M10: 1.139640719 | N10: =[1]!AgePb6U8(M10) -> 4903.387116 | O10: 0.3672897196 | P10: =[1]!AgePb8Th2(O10) -> 6323.000982 | Q10: 0.8198297604 | R10: =[1]!AgePb76($Q$10) -> 4956.582009 | X10: 7517.377913 | Z10: 4970.56238
A11: D-16* | B11: 2.24 | C11: 3.43 | D11: 0.41 | E11: 19.188 | F11: 15.608 | G11: 39.692 | H11: 11.9 | I11: 103 | J11: 19.065 | K11: 15.602 | L11: 39.35 | M11: 1.60210084 | N11: =[1]!AgePb6U8(M11) -> 6164.82923 | O11: 0.382038835 | P11: =[1]!AgePb8Th2(O11) -> 6539.865093 | Q11: 0.8183582481 | R11: =[1]!AgePb76($Q$11) -> 4954.027171 | X11: 7446.111608 | Z11: 4970.330239
A12: D-8 | B12: 2.48 | C12: 3.5 | D12: 0.8 | E12: 19.179 | F12: 15.646 | G12: 39.956 | H12: 21.1 | I12: 95.5 | J12: 18.961 | K12: 15.636 | L12: 39.64 | M12: 0.8986255924 | N12: =[1]!AgePb6U8(M12) -> 4132.991149 | O12: 0.415078534 | P12: =[1]!AgePb8Th2(O12) -> 7017.383136 | Q12: 0.8246400506 | R12: =[1]!AgePb76($Q$12) -> 4964.899739 | X12: 7362.944634 | Z12: 4969.397104
A13: 1)-6 | B13: 2.43 | C13: 3.24 | D13: 0.78 | E13: 19.227 | F13: 15.658 | G13: 40.015 | H13: 21.1 | I13: 90.4 | J13: 19.01 | K13: 15.648 | L13: 39.72 | M13: 0.9009478673 | N13: =[1]!AgePb6U8(M13) -> 4140.871164 | O13: 0.439380531 | P13: =[1]!AgePb8Th2(O13) -> 7361.552991 | Q13: 0.8231457128 | R13: =[1]!AgePb76($Q$13) -> 4962.321335 | X13: 7361.552991 | Z13: 4969.327068
A14: D-5 | B14: 2.11 | C14: 2.95 | D14: 0.71 | E14: 19.151 | F14: 15.666 | G14: 39.987 | H14: 22 | I14: 94.6 | J14: 18.925 | K14: 15.655 | L14: 39.68 | M14: 0.8602272727 | N14: =[1]!AgePb6U8(M14) -> 4001.280708 | O14: 0.4194503171 | P14: =[1]!AgePb8Th2(O14) -> 7079.731098 | Q14: 0.8272126816 | R14: =[1]!AgePb76($Q$14) -> 4969.327068 | X14: 7079.731098 | Z14: 4967.04183
A15: D-3 | B15: 7.25 | C15: 5.92 | D15: 1.51 | E15: 18.859 | F15: 15.708 | G15: 40.334 | H15: 13.7 | I15: 55.4 | J15: 18.719 | K15: 15.701 | L15: 40.15 | M15: 1.366350365 | N15: =[1]!AgePb6U8(M15) -> 5552.611364 | O15: 0.7247292419 | P15: =[1]!AgePb8Th2(O15) -> 11017.08089 | Q15: 0.8387734388 | R15: =[1]!AgePb76($Q$15) -> 4989.043363 | X15: 7017.383136 | Z15: 4964.899739
A16: D-1 | B16: 5.46 | C16: 4.04 | D16: 0.94 | E16: 18.443 | F16: 15.672 | G16: 39.307 | H16: 11.1 | I16: 49.2 | J16: 18.329 | K16: 15.667 | L16: 39.15 | M16: 1.651261261 | N16: =[1]!AgePb6U8(M16) -> 6285.48251 | O16: 0.7957317073 | P16: =[1]!AgePb8Th2(O16) -> 11832.49268 | Q16: 0.8547656719 | R16: =[1]!AgePb76($Q$16) -> 5015.84652 | X16: 6678.75937 | Z16: 4963.982025
A17: W-5 | B17: 1.39 | C17: 2.52 | D17: 0.67 | E17: 19.25 | F17: 15.71 | G17: 40.327 | H17: 31.8 | I17: 124 | J17: 18.923 | K17: 15.694 | L17: 39.92 | M17: 0.5950628931 | N17: =[1]!AgePb6U8(M17) -> 3009.915661 | O17: 0.3219354839 | P17: =[1]!AgePb8Th2(O17) -> 5641.171063 | Q17: 0.829361095 | R17: =[1]!AgePb76($Q$17) -> 4973.013147 | X17: 6539.865093 | Z17: 4963.48251
A18: W-1 | B18: 2.14 | C18: 3.2 | D18: 0.81 | E18: 19.203 | F18: 15.698 | G18: 40.268 | H18: 24.9 | I18: 102 | J18: 18.946 | K18: 15.686 | L18: 39.94 | M18: 0.7608835341 | N18: =[1]!AgePb6U8(M18) -> 3647.482296 | O18: 0.3915686275 | P18: =[1]!AgePb8Th2(O18) -> 6678.75937 | Q18: 0.8279320173 | R18: =[1]!AgePb76($Q$18) -> 4970.56238 | X18: 6478.717137 | Z18: 4962.321335
A19: B-5 | B19: 1.03 | C19: 1.06 | D19: 0.32 | E19: 18.697 | F19: 15.626 | G19: 39.187 | H19: 20 | I19: 68.5 | J19: 18.491 | K19: 15.616 | L19: 38.96 | M19: 0.92455 | N19: =[1]!AgePb6U8(M19) -> 4220.416917 | O19: 0.5687591241 | P19: =[1]!AgePb8Th2(O19) -> 9101.262052 | Q19: 0.8445189552 | R19: =[1]!AgePb76($Q$19) -> 4998.734914 | X19: 6323.000982 | Z19: 4956.582009
A20: B-4 | B20: 1.15 | C20: 1.53 | D20: 0.4 | E20: 18.69 | F20: 15.608 | G20: 39.137 | H20: 22.4 | I20: 88.4 | J20: 18.46 | K20: 15.597 | L20: 38.85 | M20: 0.8241071429 | N20: =[1]!AgePb6U8(M20) -> 3874.879165 | O20: 0.439479638 | P20: =[1]!AgePb8Th2(O20) -> 7362.944634 | Q20: 0.844907909 | R20: =[1]!AgePb76($Q$20) -> 4999.388469 | X20: 5659.587153 | Z20: 4954.027171
A21: A171 | B21: 1.96 | C21: 3.04 | D21: 0.78 | E21: 18.888 | F21: 15.603 | G21: 38.954 | H21: 25.7 | I21: 103 | J21: 18.86 | K21: 15.602 | L21: 38.92 | M21: 0.7338521401 | N21: =[1]!AgePb6U8(M21) -> 3547.755705 | O21: 0.3778640777 | P21: =[1]!AgePb8Th2(O21) -> 6478.717137 | Q21: 0.8272534464 | R21: =[1]!AgePb76($Q$21) -> 4969.397104 | X21: 5641.171063 | Z21: 4952.643131
A22: A172 | B22: 2.57 | C22: 3.34 | D22: 0.79 | E22: 18.956 | F22: 15.6 | G22: 39.003 | H22: 19.7 | I22: 86.5 | J22: 18.935 | K22: 15.599 | L22: 38.97 | M22: 0.9611675127 | N22: =[1]!AgePb6U8(M22) -> 4341.917587 | O22: 0.4505202312 | P22: =[1]!AgePb8Th2(O22) -> 7517.377913 | Q22: 0.8238183259 | R22: =[1]!AgePb76($Q$22) -> 4963.48251
M23: AVG | N23: =AVERAGE(N3:N22) -> 4449.350323 | O23: AVG | P23: =AVERAGE(P3:P22) -> 8078.806169 | Q23: AVG | R23: =AVERAGE(R3:R22) -> 4976.298047
M24: MAX | N24: =MAX(N3:N22) -> 6285.48251 | O24: MAX | P24: =MAX(P3:P22) -> 13286.71038 | Q24: MAX | R24: =MAX(R3:R22) -> 5015.84652
M25: MIN | N25: =MIN(N3:N22) -> 3009.915661 | O25: MIN | P25: =MIN(P3:P22) -> 5641.171063 | Q25: MIN | R25: =MIN(R3:R22) -> 4952.643131
M26: STD DEV | N26: =STDEV(N3:N22) -> 916.0007134 | O26: STD DEV | P26: =STDEV(P3:P22) -> 2086.34084 | Q26: STD DEV | R26: =STDEV(R3:R22) -> 18.0727555
K28: Dating | L28: 238U/206Pb | M28: 232Th/208Pb | N28: 207Pb/206Pb | P28: Age | Q28: Age | R28: Age | S28: Age
K29: Summary | L29: Age | M29: Age | N29: Age | P29: 13286.71038 | Q29: 8725.121271 | R29: 7362.944634 | S29: 6539.865093
K30: Average | L30: 4449.350323 | M30: 8078.806169 | N30: 4976.298047 | P30: 11832.49268 | Q30: 8608.677369 | R30: 7361.552991 | S30: 6478.717137
K31: Maximum | L31: 6285.48251 | M31: 13286.71038 | N31: 5015.84652 | P31: 11017.08089 | Q31: 7541.311163 | R31: 7079.731098 | S31: 6323.000982
K32: Miunimum | L32: 3009.915661 | M32: 5641.171063 | N32: 4952.643131 | P32: 10357.2654 | Q32: 7517.377913 | R32: 7017.383136 | S32: 5659.587153
K33: Std Deviation | L33: 916.0007134 | M33: 2086.34084 | N33: 18.0727555 | P33: 9101.262052 | Q33: 7446.111608 | R33: 6678.75937 | S33: 5641.171063

Sheet PlotDat2 (hidden)
A1: Source sheet | B1: Plot_08 | C1: 1.9486 | D1: 0.0014 | E1: 0.2512930425 | F1: 0 | G1: 0.3361 | H1: 0.0003
A2: Plot name | B2: PbPlot2 | C2: 2.2285 | D2: 0.0019 | E2: 4.5 | F2: 0.006018365037 | G2: 0.3811 | H2: 0.0003636134502
A3: Plot Type | B3: 9 | C3: 3.54 | D3: 0.0027 | G3: 0.4261 | H3: 0.0004405298128
A4: 1st free col | B4: 9 | C4: 3.5997 | D4: 0.0041 | G4: 0.4711 | H4: 0.0005258604352
A5: Sigma Level | B5: 1 | C5: 2.8624 | D5: 0.0085 | G5: 0.5161 | H5: 0.0006147166645
A6: Absolute Errs | B6: TRUE | C6: 0.3361 | D6: 0.0003 | G6: 0.5611 | H6: 0.0007022098482
A7: Symbol Type | B7: 12 | C7: 1.2217 | D7: 0.0009 | G7: 0.6061 | H7: 0.0007834513335
A8: Inverse Plot | B8: TRUE | C8: IsoLine | D8: IsoLine | G8: 0.6511 | H8: 0.0008535524677
A9: Color Plot | B9: TRUE | G9: 0.6961 | H9: 0.0009076245983
A10: 3D plot | B10: FALSE | G10: 0.7411 | H10: 0.0009407790724
A11: Linear | B11: FALSE | G11: 0.7861 | H11: 0.0009481272374
A12: Data Range | B12: K3:L9 | G12: 0.8311 | H12: 0.0009247804407
A13: Filled Symbols | B13: TRUE | G13: 0.8761 | H13: 0.0008658500294
A14: ConcAge | B14: FALSE | G14: 0.9211 | H14: 0.000766447351
A15: ConcSwap | B15: FALSE | G15: 0.9661 | H15: 0.0006216837528
A16: 1st Symbol-row | B16: 1 | G16: 1.0111 | H16: 0.000426670582
G17: 1.0561 | H17: 0.000176519186
G18: 1.1011 | H18: -0.0001336590879
G19: 1.1461 | H19: -0.0005087528925
G20: 1.1911 | H20: -0.0009536508802
G21: 1.2217 | H21: 0.0009
G22: 1.2667 | H22: 0.000969473368
G23: 1.3117 | H23: 0.001030464599
G24: 1.3567 | H24: 0.001083581093
G25: 1.4017 | H25: 0.001129430248
G26: 1.4467 | H26: 0.001168619464
G27: 1.4917 | H27: 0.001201756139
G28: 1.5367 | H28: 0.001229447672
G29: 1.5817 | H29: 0.001252301463
G30: 1.6267 | H30: 0.00127092491
G31: 1.6717 | H31: 0.001285925413
G32: 1.7167 | H32: 0.00129791037
G33: 1.7617 | H33: 0.001307487181
G34: 1.8067 | H34: 0.001315263244
G35: 1.8517 | H35: 0.001321845959
G36: 1.8967 | H36: 0.001327842724
G37: 1.9417 | H37: 0.001333860939
G38: 1.9486 | H38: 0.0014
G39: 1.9936 | H39: 0.002570434632
G40: 2.0386 | H40: 0.001557878644
G41: 2.0836 | H41: -0.008222549639
G42: 2.1286 | H42: -0.03335573189
G43: 2.1736 | H43: -0.08042654979
G44: 2.2186 | H44: -0.156019885
G45: 2.2285 | H45: 0.0019
G46: 2.2735 | H46: 0.002084529044
G47: 2.3185 | H47: 0.002425529188
G48: 2.3635 | H48: 0.002940027882
G49: 2.4085 | H49: 0.00364505258
G50: 2.4535 | H50: 0.004557630733
G51: 2.4985 | H51: 0.005694789793
G52: 2.5435 | H52: 0.007073557211
G53: 2.5885 | H53: 0.008710960441
G54: 2.6335 | H54: 0.01062402693
G55: 2.6785 | H55: 0.01282978414
G56: 2.7235 | H56: 0.01534525951
G57: 2.7685 | H57: 0.0181874805
G58: 2.8135 | H58: 0.02137347456
G59: 2.8585 | H59: 0.02492026915
G60: 2.8624 | H60: 0.0085
G61: 2.9074 | H61: 0.008610008703
G62: 2.9524 | H62: 0.008714337815
G63: 2.9974 | H63: 0.00881275939
G64: 3.0424 | H64: 0.00890504548
G65: 3.0874 | H65: 0.008990968138
G66: 3.1324 | H66: 0.009070299418
G67: 3.1774 | H67: 0.009142811372
G68: 3.2224 | H68: 0.009208276054
G69: 3.2674 | H69: 0.009266465517
G70: 3.3124 | H70: 0.009317151812
G71: 3.3574 | H71: 0.009360106995
G72: 3.4024 | H72: 0.009395103116
G73: 3.4474 | H73: 0.009421912231
G74: 3.4924 | H74: 0.009440306391
G75: 3.5374 | H75: 0.009450057649
G76: 3.54 | H76: 0.0027
G77: 3.554925 | H77: 0.002719311536
G78: 3.56985 | H78: 0.002737720311
G79: 3.584775 | H79: 0.002755257057
G80: 3.5997 | H80: 0.002771952506
G81: IsoLine | H81: IsoLine
